{"text_format":"1","workbook":"xlsx","n_sheets":2,"sheets":["BilanPh","BD"],"not_rendered":{"charts":0,"images":15,"macros":1,"external_links":0,"defined_names":41,"comments":0,"pivot_tables":0},"unopened":[],"bounds":{"document_bytes":16777216,"sheet_cells":100000,"rows_first":2000,"rows_last":500,"rows_between":2000,"halvings":0,"cell_chars":16384,"cell_head_chars":4096},"cells_cut":0,"cells_raw":0,"read":"whole","date_system":"1900"}

{"sheet":"BilanPh","index":0,"n_rows":260,"n_cols":33,"rows_kept":260,"cut":false,"hidden":false,"merged":[[116,0,116,32],[97,0,97,32],[98,0,98,7],[98,16,98,21],[108,0,108,32],[111,9,111,32],[114,17,114,32],[112,0,112,32],[102,0,102,1],[102,2,102,32],[109,2,109,15],[109,0,109,1],[104,4,104,31],[104,0,104,3],[109,16,109,18],[72,0,72,32],[73,0,73,32],[83,0,83,13],[84,0,84,32],[86,19,86,32],[86,16,86,18],[86,0,86,1],[86,2,86,15],[94,0,94,13],[94,14,94,32],[89,0,89,32],[92,0,92,19],[87,0,87,16],[88,0,88,19],[81,0,81,19],[81,20,81,32],[82,0,82,1],[85,0,85,32],[80,0,80,16],[80,17,80,32],[75,0,75,1],[79,0,79,6],[79,7,79,32],[256,16,256,20],[256,21,256,26],[256,27,256,29],[256,30,256,32],[254,0,254,2],[254,3,254,5],[254,6,254,7],[254,8,254,18],[254,19,254,23],[254,24,254,31],[256,0,256,3],[256,4,256,9],[256,10,256,12],[256,13,256,15],[255,28,255,32],[255,9,255,11],[255,12,255,23],[255,0,255,4],[255,5,255,8],[255,24,255,27],[64,25,65,27],[64,0,65,24],[64,28,65,32],[200,11,200,32],[194,0,194,10],[194,11,194,32],[196,13,196,16],[196,17,196,22],[196,23,196,25],[115,2,115,32],[117,23,117,24],[117,2,117,11],[118,0,118,32],[82,2,82,32],[196,26,196,32],[195,0,195,2],[195,3,195,5],[195,6,195,7],[98,8,98,15],[93,0,93,1],[93,2,93,32],[69,0,69,32],[87,17,87,32],[88,20,88,32],[30,0,30,32],[29,15,29,22],[46,2,46,32],[46,0,46,1],[53,2,53,15],[47,0,47,6],[31,19,31,23],[32,10,32,12],[29,23,29,24],[32,0,32,4],[32,5,32,9],[34,0,34,32],[35,0,35,32],[33,30,33,32],[33,4,33,9],[33,10,33,12],[33,13,33,15],[33,21,33,26],[39,10,39,16],[39,17,39,21],[31,3,31,5],[31,6,31,7],[31,8,31,18],[41,8,41,32],[27,2,27,32],[28,0,28,32],[29,0,29,1],[29,2,29,11],[29,12,29,14],[29,25,29,32],[26,0,26,16],[26,17,26,32],[27,0,27,1],[25,0,25,19],[25,20,25,32],[23,0,23,6],[23,7,23,32],[24,0,24,10],[24,11,24,32],[18,0,18,10],[18,11,18,32],[21,9,21,32],[22,0,22,32],[19,0,19,19],[19,20,19,32],[20,0,20,16],[20,17,20,32],[21,0,21,8],[17,0,17,1],[17,16,17,18],[17,19,17,32],[17,2,17,15],[14,0,14,32],[15,0,15,32],[16,0,16,32],[11,0,12,32],[13,0,13,32],[0,0,7,32],[9,0,9,32],[10,17,10,18],[10,19,10,32],[8,10,8,21],[8,0,8,9],[8,22,8,32],[10,13,10,16],[10,0,10,12],[49,0,49,32],[42,0,42,4],[42,17,42,21],[42,22,42,32],[53,0,53,1],[53,16,53,18],[53,19,53,32],[59,0,59,1],[59,2,59,32],[54,0,54,16],[54,17,54,32],[58,0,58,16],[55,0,55,8],[58,17,58,32],[50,0,50,32],[51,0,51,32],[47,7,47,32],[55,9,55,32],[56,0,56,32],[57,0,57,6],[57,7,57,32],[48,0,48,3],[48,4,48,31],[52,0,52,32],[61,2,61,11],[61,23,61,24],[61,25,61,32],[78,0,78,32],[75,2,75,15],[74,0,74,32],[76,0,76,16],[76,17,76,32],[77,0,77,19],[77,20,77,32],[61,12,61,14],[61,15,61,22],[63,0,63,32],[62,11,62,32],[62,0,62,10],[75,16,75,18],[75,19,75,32],[66,0,66,23],[66,25,66,27],[66,28,66,31],[71,0,71,32],[67,0,67,32],[68,0,68,32],[70,0,70,32],[133,5,133,12],[133,0,133,4],[138,19,138,23],[134,23,134,27],[133,17,133,22],[138,3,138,5],[130,17,130,32],[130,0,130,16],[131,0,131,10],[142,23,142,27],[142,28,142,32],[142,0,142,22],[136,17,136,32],[134,28,134,32],[137,0,137,10],[140,0,140,22],[140,23,140,27],[140,28,140,32],[139,0,139,4],[139,5,139,12],[139,13,139,16],[139,17,139,22],[139,23,139,25],[139,26,139,32],[134,0,134,22],[154,0,154,32],[143,0,143,32],[144,0,144,32],[145,23,145,27],[145,28,145,32],[145,0,145,22],[146,0,146,32],[147,0,147,32],[148,0,148,22],[148,23,148,27],[148,28,148,32],[149,0,149,32],[150,0,150,32],[151,23,151,27],[151,28,151,32],[151,20,151,22],[151,0,151,19],[153,0,153,32],[152,0,152,32],[157,0,157,32],[158,0,158,8],[158,28,158,32],[158,23,158,27],[158,9,158,22],[156,0,156,32],[155,0,155,32],[164,0,164,8],[164,9,164,32],[160,9,160,22],[160,28,160,32],[159,0,159,32],[161,0,161,32],[168,0,168,3],[165,0,165,32],[167,0,167,6],[167,7,167,32],[166,0,166,1],[166,2,166,32],[168,4,168,31],[162,0,162,32],[163,23,163,27],[163,28,163,32],[163,8,163,12],[163,13,163,14],[163,15,163,21],[202,17,202,22],[202,23,202,25],[202,26,202,32],[201,8,201,18],[200,0,200,10],[197,0,197,22],[197,23,197,27],[176,23,176,27],[169,0,169,32],[170,23,170,27],[170,28,170,32],[170,0,170,7],[170,8,170,12],[170,13,170,14],[170,15,170,21],[171,0,171,8],[171,9,171,32],[179,0,179,22],[179,23,179,27],[179,28,179,32],[180,0,180,32],[201,0,201,2],[175,0,175,3],[173,0,173,1],[245,0,245,32],[246,0,246,32],[247,0,247,32],[243,0,243,17],[243,18,243,32],[231,0,231,32],[232,0,232,32],[221,23,221,32],[217,28,217,32],[217,0,217,15],[217,16,217,22],[217,23,217,27],[220,0,220,22],[220,23,220,27],[223,19,223,22],[228,0,228,32],[248,0,248,2],[248,3,248,32],[253,0,253,32],[233,0,233,32],[234,0,234,32],[235,0,235,32],[236,0,236,32],[238,0,238,32],[239,0,239,32],[244,0,244,9],[244,10,244,32],[240,0,240,32],[241,0,241,32],[242,0,242,17],[242,18,242,32],[237,0,237,32],[252,18,252,32],[252,0,252,17],[249,22,249,32],[250,22,250,32],[249,0,249,10],[250,0,250,11],[249,11,249,21],[250,12,250,21],[251,0,251,17],[251,18,251,32],[229,0,229,32],[230,0,230,32],[225,0,225,32],[41,6,41,7],[33,27,33,29],[38,0,38,32],[39,0,39,9],[195,19,195,23],[195,24,195,31],[195,8,195,18],[90,0,90,6],[90,7,90,32],[91,0,91,16],[91,17,91,32],[138,0,138,2],[163,0,163,7],[138,24,138,31],[92,20,92,32],[160,0,160,8],[160,23,160,27],[224,0,224,32],[223,28,223,32],[212,23,212,27],[212,28,212,32],[212,0,212,22],[222,23,222,27],[222,28,222,32],[218,0,218,32],[219,0,219,32],[223,23,223,27],[215,0,215,22],[215,23,215,27],[215,28,215,32],[221,0,221,18],[222,0,222,18],[222,19,222,22],[213,0,213,32],[214,0,214,32],[220,28,220,32],[221,19,221,22],[216,0,216,32],[210,0,210,32],[60,0,60,32],[61,0,61,1],[83,14,83,32],[227,0,227,32],[226,0,226,32],[223,0,223,18],[205,23,205,27],[205,28,205,32],[205,0,205,22],[206,0,206,32],[207,0,207,32],[208,23,208,27],[208,28,208,32],[209,0,209,32],[187,25,187,32],[188,0,188,24],[188,25,188,32],[189,0,189,24],[189,25,189,32],[201,19,201,23],[201,24,201,31],[211,0,211,32],[208,0,208,22],[126,22,126,32],[127,22,127,32],[127,0,127,21],[124,0,124,21],[122,22,122,32],[124,22,124,32],[121,22,121,32],[117,0,117,1],[31,24,31,31],[39,22,39,31],[42,5,42,15],[45,0,45,32],[43,0,43,32],[44,9,44,32],[40,0,40,32],[44,0,44,8],[36,0,36,32],[37,0,37,32],[32,13,32,32],[33,16,33,20],[33,0,33,3],[31,0,31,2],[41,0,41,2],[41,3,41,5],[173,2,173,32],[174,0,174,6],[174,7,174,32],[172,0,172,32],[178,0,178,32],[175,4,175,31],[177,0,177,32],[176,28,176,32],[176,0,176,22],[181,0,181,24],[182,0,182,24],[183,0,183,24],[184,0,184,24],[181,25,181,32],[182,25,182,30],[183,25,183,30],[184,25,184,30],[184,31,184,32],[183,31,183,32],[182,31,182,32],[203,28,203,32],[190,0,190,24],[190,25,190,32],[191,0,191,32],[192,0,192,32],[193,0,193,18],[193,19,193,32],[185,0,185,32],[186,0,186,24],[186,25,186,32],[187,0,187,24],[203,23,203,27],[203,0,203,22],[197,28,197,32],[196,5,196,12],[201,3,201,5],[201,6,201,7],[202,0,202,4],[202,5,202,12],[202,13,202,16],[198,0,198,32],[199,0,199,18],[199,19,199,32],[196,0,196,4],[138,6,138,7],[138,8,138,18],[136,0,136,16],[119,0,119,32],[137,11,137,32],[133,26,133,32],[133,13,133,16],[135,0,135,32],[132,24,132,31],[132,0,132,2],[132,6,132,7],[132,8,132,18],[132,3,132,5],[132,19,132,23],[133,23,133,25],[131,11,131,32],[125,22,125,32],[128,0,128,32],[129,0,129,32],[120,0,120,32],[121,0,121,21],[123,0,123,21],[123,22,123,32],[126,0,126,21],[95,0,95,32],[117,25,117,32],[110,17,110,32],[113,0,113,6],[113,7,113,32],[110,0,110,16],[114,0,114,16],[115,0,115,1],[125,0,125,21],[103,7,103,32],[109,19,109,32],[99,0,99,32],[100,0,100,8],[100,9,100,32],[101,0,101,32],[117,15,117,22],[98,22,98,31],[96,0,96,32],[117,12,117,14],[103,0,103,6],[105,0,105,32],[106,0,106,32],[107,0,107,32],[111,0,111,8]]}
[]
[]
[]
[]
[]
[]
[]
[]
[null,null,null,null,null,null,null,null,null,null,"BILAN DE PHOSPHORE"]
[]
[null,null,null,null,null,null,null,null,null,null,null,null,null,"ANNÉE 20"]
[]
[]
["1.     DESCRIPTION DE L’EXPLOITATION AGRICOLE"]
["1.1   Identification de l’exploitant "]
["Selon le cas, remplir l’une des deux sections ci-dessous."]
["Particulier (individu)"]
["Nom :",null,null,null,null,null,null,null,null,null,null,null,null,null,null,null,"Prénom :"]
["Numéro de l’intervenant : "]
["Numéro de l’exploitation agricole enregistrée au MAPAQ (NIM) : "]
["Numéro de client de la Financière agricole du Québec:"]
["NEQ (si enregistré au REQ):"]
["Autre"]
["Nom de l’entreprise : "]
["Numéro de l’intervenant : "]
["Numéro de l’exploitation agricole enregistrée au MAPAQ (NIM) : "]
["Numéro de client de la Financière agricole du Québec:"]
["NEQ:"]
["Répondant ou personne à contacter"]
["Nom :",null,null,null,null,null,null,null,null,null,null,null,"Prénom :",null,null,null,null,null,null,null,null,null,null,"Titre :"]
["1.2   Adresse"]
["Numéro :",null,null,null,null,null,"Rue :",null,null,null,null,null,null,null,null,null,null,null,null,"Municipalité :",null,null,null,null,"",null,null,null,null,null,null,null,{"$f":"VLOOKUP(Y32,BD!$P$1:$Q$2000,2,0)","v":{"$error":"#N/A"}}]
["Code postal :",null,null,null,null,null,null,null,null,null,"Courriel :"]
["Téléphone :",null,null,null,null,null,null,null,null,null,"Poste :",null,null,null,null,null,"Autre numéro :",null,null,null,null,null,null,null,null,null,null,"Poste :"]
[]
["LIEU VISÉ PAR LE BILAN"]
[" Remplir la section 1.3 pour les lieux d’élevage ou la section 1.4 pour les lieux d’épandage."]
[]
["1.3   Description du lieu d’élevage (voir la définition dans le Guide du bilan de phosphore)"]
["Numéro de lieu :",null,null,null,null,null,null,null,null,null,null,null,null,null,null,null,null,"Municipalité :",null,null,null,null,"",null,null,null,null,null,null,null,null,null,{"$f":"VLOOKUP(W40,BD!$G$1:$H$2000,2,0)","v":{"$error":"#N/A"}}]
["1.3.1  Adresse du lieu (si elle est différente de l’adresse à la section 1.2)"]
["Numéro :",null,null,null,null,null,"Rue :"]
["Municipalité :",null,null,null,null,"",null,null,null,null,null,null,null,null,null,null,{"$f":"VLOOKUP(F43,BD!$G$1:$H$2000,2,0)","v":{"$error":"#N/A"}},"Code postal :"]
["1.3.2  Localisation cadastrale du lieu"]
["Cadastre rénové du Québec : "]
["Si non rénové :"]
["Lot : "]
["Rang ou concession :"]
["Cadastre :",null,null,null,"",null,null,null,null,null,null,null,null,null,null,null,null,null,null,null,null,null,null,null,null,null,null,null,null,null,null,null,{"$f":"VLOOKUP(E49,BD!$M$1:$N$2000,2,0)","v":{"$error":"#N/A"}}]
["1.3.3  Propriétaire du lieu"]
["Si l’exploitant est propriétaire du lieu, passer à la section 1.3.4."]
["Sinon, selon le cas, remplir l’une des deux sections ci-dessous."]
["Particulier (individu)"]
["Nom :",null,null,null,null,null,null,null,null,null,null,null,null,null,null,null,"Prénom :"]
["Numéro de l'intervenant du propriétaire du lieu :"]
["NEQ (si enregistré au REQ) : "]
["Autre"]
["Nom de l’entreprise : "]
["Numéro de l'intervenant du propriétaire du lieu :"]
["NEQ :"]
["Répondant ou personne à contacter"]
["Nom :",null,null,null,null,null,null,null,null,null,null,null,"Prénom :",null,null,null,null,null,null,null,null,null,null,"Titre :"]
["Courriel du propriétaire du lieu:"]
["1.3.4  Description du cheptel du lieu (utiliser les catégories d’animaux de l’annexe VII du REA)"]
["Catégorie d’animaux ",null,null,null,null,null,null,null,null,null,null,null,null,null,null,null,null,null,null,null,null,null,null,null,null,"Nombre\nd’animaux",null,null,"Type de gestion\n(solide ou liquide)"]
[]
["",null,null,null,null,null,null,null,null,null,null,null,null,null,null,null,null,null,null,null,null,null,null,null,{"$f":"VLOOKUP(A67,BD!$A$1:$B$300,2,0)","v":{"$error":"#N/A"}},null,null,null,"",null,null,null,{"$f":"VLOOKUP(AC67,BD!$D$1:$E$20,2,0)","v":{"$error":"#N/A"}}]
[]
["1.3.5  Propriétaire(s) des animaux"]
["Si l’exploitant est le propriétaire de tous les animaux du lieu d’élevage cocher la case suivante"]
["et passer à la section 2."]
["Si l’exploitant n’est pas le propriétaire de tous les animaux du lieu d’élevage :"]
["   -     Cocher la case si l’exploitant est propriétaire d’une partie des animaux : "]
["   -     Décrire les autres propriétaires ci-dessous."]
["Particulier (individu)"]
["Nom :",null,null,null,null,null,null,null,null,null,null,null,null,null,null,null,"Prénom :"]
["Numéro de client de la Financière agricole du Québec:"]
["Numéro de l’exploitation agricole enregistrée au MAPAQ (NIM) : "]
["Autre"]
["Nom de l’entreprise : "]
["Numéro de client de la Financière agricole du Québec:"]
["Numéro de l’exploitation agricole enregistrée au MAPAQ (NIM) : "]
["NEQ :"]
["Courriel du propriétaire des animaux:"]
["S’il y a un autre propriétaire des animaux, remplir l’une des deux sections ci-dessous."]
["Particulier (individu)"]
["Nom :",null,null,null,null,null,null,null,null,null,null,null,null,null,null,null,"Prénom :"]
["Numéro de client de la Financière agricole du Québec:"]
["Numéro de l’exploitation agricole enregistrée au MAPAQ (NIM) : "]
["Autre"]
["Nom de l’entreprise : "]
["Numéro de client de la Financière agricole du Québec:"]
["Numéro de l’exploitation agricole enregistrée au MAPAQ (NIM) : "]
["NEQ :"]
["Courriel du propriétaire des animaux:"]
[]
["1.4     Description du lieu d’épandage (lieu principal visé par ce bilan)"]
["          (voir la définition dans le Guide du bilan de phosphore)"]
["Numéro de lieu :",null,null,null,null,null,null,null,null,null,null,null,null,null,null,null,"Code de la MRC :",null,null,null,null,null,"",null,null,null,null,null,null,null,null,null,{"$f":"VLOOKUP(W99,BD!$J$1:$K$300,2,0)","v":{"$error":"#N/A"}}]
["1.4.1  Localisation cadastrale du lieu (décrire le lot principal)"]
["Cadastre rénové du Québec :"]
["         Si non rénové :"]
["Lot :"]
["Rang ou concession :"]
["Cadastre :",null,null,null,"",null,null,null,null,null,null,null,null,null,null,null,null,null,null,null,null,null,null,null,null,null,null,null,null,null,null,null,{"$f":"VLOOKUP(E105,BD!$M$1:$N$2000,2,0)","v":{"$error":"#N/A"}}]
["1.4.2  Propriétaire du lieu"]
["Si l’exploitant est propriétaire du lieu, passer à la section 2"]
["Sinon, selon le cas, remplir l’une des deux sections ci-dessous."]
["Particulier (individu)"]
["Nom :",null,null,null,null,null,null,null,null,null,null,null,null,null,null,null,"Prénom :"]
["Numéro de l'intervenant du propriétaire du lieu :"]
["NEQ (si enregistré au REQ) : "]
["Autre"]
["Nom de l’entreprise : "]
["Numéro de l'intervenant du propriétaire du lieu :"]
["NEQ :"]
["Répondant ou personne à contacter"]
["Nom :",null,null,null,null,null,null,null,null,null,null,null,"Prénom :",null,null,null,null,null,null,null,null,null,null,"Titre :"]
[]
["2        CHARGE DE PHOSPHORE PRODUITE ET IMPORTÉE PAR L’EXPLOITANT"]
["2.1     Charge de phosphore produite dans le lieu d’élevage sous forme de déjections animales"]
["Méthode utilisée pour déterminer la charge de phosphore produite",null,null,null,null,null,null,null,null,null,null,null,null,null,null,null,null,null,null,null,null,null,"Charge de phosphore produite"]
[null,null,null,null,null,null,null,null,null,null,null,null,null,null,null,null,null,null,null,null,null,null,"(kg P2O5 total)"]
[]
["Valeur moyenne CRAAQ "]
["Caractérisation"]
["Annexe VI du REA"]
["Total :",null,null,null,null,null,null,null,null,null,null,null,null,null,null,null,null,null,null,null,null,null,{"$f":"W127+W126+W125","v":0}]
[]
["2.2     Charge de phosphore importée sous forme de déjections animales "]
["Nom du fournisseur (personne physique ou morale) :"]
["Numéro de l'intervenant : "]
["Numéro :",null,null,null,null,null,"Rue :",null,null,null,null,null,null,null,null,null,null,null,null,"Municipalité :",null,null,null,null,"",null,null,null,null,null,null,null,{"$f":"VLOOKUP(Y133,BD!$P$1:$Q$2000,2,0)","v":{"$error":"#N/A"}}]
["Code postal :",null,null,null,null,null,null,null,null,null,null,null,null,"Téléphone :",null,null,null,null,null,null,null,null,null,"Poste :"]
["Charge de phosphore importée :",null,null,null,null,null,null,null,null,null,null,null,null,null,null,null,null,null,null,null,null,null,null,null,null,null,null,null,"kg P2O5 total"]
[]
["Nom du fournisseur (personne physique ou morale) :"]
["Numéro de l'intervenant : "]
["Numéro :",null,null,"",null,null,"Rue :",null,"",null,null,null,null,null,null,null,null,null,null,"Municipalité :",null,null,null,null,"",null,null,null,null,null,null,null,{"$f":"VLOOKUP(Y139,BD!$P$1:$Q$2000,2,0)","v":{"$error":"#N/A"}}]
["Code postal :",null,null,null,null,"",null,null,null,null,null,null,null,"Téléphone :",null,null,null,null,null,null,null,null,null,"Poste :"]
["Charge de phosphore importée :",null,null,null,null,null,null,null,null,null,null,null,null,null,null,null,null,null,null,null,null,null,null,null,null,null,null,null,"kg P2O5 total"]
[]
["Total des charges de phosphore importées :",null,null,null,null,null,null,null,null,null,null,null,null,null,null,null,null,null,null,null,null,null,null,{"$f":"SUM(X135:X142)","v":0},null,null,null,null,"kg P2O5 total"]
[]
["2.3     Charge de phosphore importée sous forme d’engrais minéraux"]
["Total :",null,null,null,null,null,null,null,null,null,null,null,null,null,null,null,null,null,null,null,null,null,null,null,null,null,null,null,"kg P2O5 total"]
[]
["2.4     Charge de phosphore importée sous forme de matières résiduelles fertilisantes (MRF)"]
["Total :",null,null,null,null,null,null,null,null,null,null,null,null,null,null,null,null,null,null,null,null,null,null,null,null,null,null,null,"kg P2O5 total"]
[]
["2.5     Charge de phosphore totale produite et importée dans le lieu (kg P2O5 total)"]
["Somme des totaux des sections 2.1, 2.2, 2.3 et 2.4",null,null,null,null,null,null,null,null,null,null,null,null,null,null,null,null,null,null,null,"Total :",null,null,{"$f":"X149+X146+X143+W128","v":0},null,null,null,null,"kg P2O5 total"]
[]
["3.       CAPACITÉ DU LIEU À DISPOSER DE LA CHARGE DE PHOSPHORE, "]
["          INSCRITE À LA SECTION 2.5"]
["3.1     Charge de phosphore dont l’exploitant peut disposer par épandage sur toutes les cultures, "]
["          incluant les pâturages"]
["3.1.1  En propriété (remplir les sections 3.1.1.1 ou 3.1.1.2)"]
["3.1.1.1 Lieu d’élevage",null,null,null,null,null,null,null,null,"Total pour l’ensemble des superficies ",null,null,null,null,null,null,null,null,null,null,null,null,null,null,null,null,null,null,"kg P2O5"]
["Ou"]
["3.1.1.2 Lieu d’épandage",null,null,null,null,null,null,null,null,"Total pour les superficies du lieu décrit à section 1.4",null,null,null,null,null,null,null,null,null,null,null,null,null,null,null,null,null,null,"kg P2O5"]
[]
["Autres lieux d’épandage de l’exploitant dans une autre MRC"]
["Numéro du lieu :",null,null,null,null,null,null,null,null,null,null,null,null,"MRC :",null,"",null,null,null,null,null,null,{"$f":"VLOOKUP(P164,BD!$J$1:$K$300,2,0)","v":{"$error":"#N/A"}},null,null,null,null,null,"kg P2O5 total"]
["Cadastre rénové du Québec :"]
["Si non rénové"]
["Lot :"]
["Rang ou concession :"]
["Cadastre :",null,null,null,null,null,null,null,null,null,null,null,null,null,null,null,null,null,null,null,null,null,null,null,null,null,null,null,null,null,null,null,{"$f":"VLOOKUP(E169,BD!$M$1:$N$2000,2,0)","v":{"$error":"#N/A"}}]
[]
["Numéro du lieu :",null,null,null,null,null,null,null,null,null,null,null,null,"MRC :",null,null,null,null,null,null,null,null,{"$f":"VLOOKUP(P171,BD!$J$1:$K$300,2,0)","v":{"$error":"#N/A"}},null,null,null,null,null,"kg P2O5 total"]
["Cadastre rénové du Québec :"]
["Si non rénové"]
["Lot :"]
["Rang ou concession :"]
["Cadastre :",null,null,null,null,null,null,null,null,null,null,null,null,null,null,null,null,null,null,null,null,null,null,null,null,null,null,null,null,null,null,null,{"$f":"VLOOKUP(E176,BD!$M$1:$N$2000,2,0)","v":{"$error":"#N/A"}}]
["Total pour l’ensemble des superficies en propriété :",null,null,null,null,null,null,null,null,null,null,null,null,null,null,null,null,null,null,null,null,null,null,{"$f":"X159+X161+X164+X171","v":0},null,null,null,null,"kg P2O5 Total"]
[]
["3.1.2  En location"]
["Total pour l’ensemble des superficies en location :",null,null,null,null,null,null,null,null,null,null,null,null,null,null,null,null,null,null,null,null,null,null,null,null,null,null,null,"kg P2O5 Total"]
["3.1.3  Nombre d’hectares exploités en propriété et en location"]
["Nombre d’hectares en culture, excluant les cultures maraîchères ou fruitières,"]
[" prairies et pâturages ",null,null,null,null,null,null,null,null,null,null,null,null,null,null,null,null,null,null,null,null,null,null,null,null,null,null,null,null,null,null," ha"]
["Nombre d’hectares en prairies et pâturages",null,null,null,null,null,null,null,null,null,null,null,null,null,null,null,null,null,null,null,null,null,null,null,null,null,null,null,null,null,null," ha"]
["Nombre d’hectares en culture maraîchère ou fruitière",null,null,null,null,null,null,null,null,null,null,null,null,null,null,null,null,null,null,null,null,null,null,null,null,null,null,null,null,null,null," ha"]
["3.1.4  Saturation des sols en phosphore des superficies exploitées en propriété et en location"]
["Saturation en phosphore (%)",null,null,null,null,null,null,null,null,null,null,null,null,null,null,null,null,null,null,null,null,null,null,null,null,"Superficie (ha)"]
["< 7,6 %"]
["7,6 % à < 13,1 %"]
["13,1 % à 20 %"]
["> 20 %"]
["3.1.5  En entente d’épandage"]
["Remplir un tableau par entente"]
["Nom du receveur-exploitant  (personne physique ou morale) :"]
["Numéro de l'intervenant : "]
["Numéro :",null,null,null,null,null,"Rue :",null,null,null,null,null,null,null,null,null,null,null,null,"Municipalité :",null,null,null,null,"",null,null,null,null,null,null,null,{"$f":"VLOOKUP(Y196,BD!$P$1:$Q$2000,2,0)","v":{"$error":"#N/A"}}]
["Code postal :",null,null,null,null,null,null,null,null,null,null,null,null,"Téléphone :",null,null,null,null,null,null,null,null,null,"Poste :"]
["Charge de phosphore exportée chez le receveur ",null,null,null,null,null,null,null,null,null,null,null,null,null,null,null,null,null,null,null,null,null,null,null,null,null,null,null,"kg P2O5 total"]
[]
["Nom du receveur-exploitant  (personne physique ou morale) :"]
["Numéro de l'intervenant : "]
["Numéro :",null,null,null,null,null,"Rue :",null,null,null,null,null,null,null,null,null,null,null,null,"Municipalité :",null,null,null,null,"",null,null,null,null,null,null,null,{"$f":"VLOOKUP(Y202,BD!$P$1:$Q$2000,2,0)","v":{"$error":"#N/A"}}]
["Code postal :",null,null,null,null,null,null,null,null,null,null,null,null,"Téléphone :",null,null,null,null,null,null,null,null,null,"Poste :"]
["Charge de phosphore exportée chez le receveur ",null,null,null,null,null,null,null,null,null,null,null,null,null,null,null,null,null,null,null,null,null,null,null,null,null,null,null,"kg P2O5 total"]
[]
["Total pour l’ensemble des superficies sous entente d’épandage :",null,null,null,null,null,null,null,null,null,null,null,null,null,null,null,null,null,null,null,null,null,null,{"$f":"SUM(X198:X205)","v":0},null,null,null,null,"kg P2O5 total"]
[]
["3.1.6  Charge totale de phosphore dont l’exploitant peut disposer par épandage (kg P2O5 total)"]
["Somme des totaux des sections 3.1.1.1 ou 3.1.1.2, 3.1.2 et 3.1.5   Total :",null,null,null,null,null,null,null,null,null,null,null,null,null,null,null,null,null,null,null,null,null,null,{"$f":"X177+X180+X206","v":0},null,null,null,null,"kg P2O5 total"]
["3.2     Charge de phosphore dont l’exploitant peut disposer par traitement et transformation en"]
["          produits utiles (ne s’applique qu’aux lieux d’élevage qui exportent une charge de phosphore vers un lieu de "]
["           transformation)"]
["Total :",null,null,null,null,null,null,null,null,null,null,null,null,null,null,null,null,null,null,null,null,null,null,null,null,null,null,null,"kg P2O5 total"]
["3.3     Charge de phosphore éliminée par destruction"]
["              (ne concerne que les lieux d’élevage qui exportent une charge de phosphore vers un lieu d’élimination)"]
["Total :",null,null,null,null,null,null,null,null,null,null,null,null,null,null,null,null,null,null,null,null,null,null,null,null,null,null,null,"kg P2O5 total"]
["3.4     Charge de phosphore totale dont l’exploitant peut disposer (kg P2O5 total)"]
["Somme des totaux des sections 3.1.6, 3.2 et 3.3",null,null,null,null,null,null,null,null,null,null,null,null,null,null,null,"Total :",null,null,null,null,null,null,{"$f":"X209+X213+X216","v":0},null,null,null,null,"kg P2O5 total"]
[]
["4        BILAN DE PHOSPHORE DE L’EXPLOITANT"]
["Charge totale de phosphore produite et importée (section 2.5) ",null,null,null,null,null,null,null,null,null,null,null,null,null,null,null,null,null,null,null,null,null,null,{"$f":"X152","v":0},null,null,null,null,"kg P2O5 total"]
["Charge totale de phosphore dont l’exploitant peut disposer "]
["(section 3.4)",null,null,null,null,null,null,null,null,null,null,null,null,null,null,null,null,null,null,"Moins (-)",null,null,null,{"$f":"X218","v":0},null,null,null,null,"kg P2O5 total"]
["BILAN DE PHOSPHORE DE L’EXPLOITANT:",null,null,null,null,null,null,null,null,null,null,null,null,null,null,null,null,null,null,"Égale (=)",null,null,null,{"$f":"X221-X223","v":0},null,null,null,null,"kg P2O5 total"]
[]
["La conformité à l’exigence réglementaire de produire et transmettre, au ministère de"]
[" l’Environnement, et Lutte contre les changements climatiques, de la Faune et des Parcs"]
["(MELCCFP), un bilan de phosphore démontrant la capacité de disposition de la totalité de"]
["la charge de phosphore, a été retenue par La Financière agricole du Québec et le ministère"]
["de l’Agriculture, des Pêcheries et de l’Alimentation (MAPAQ) comme étant une mesure "]
["d’écoconditionnalité à respecter pour être admissible à certains programmes."]
[]
["Ainsi, conformément aux dispositions applicables de la Loi sur l’accès aux documents des"]
["organismes publics et sur la protection des renseignements personnels, les renseignements"]
["nécessaires à l’application d’une loi au Québec, ou encore nécessaires à l’exercice des"]
["attributions ou à la mise en œuvre des programmes de ces organismes, peuvent leur être"]
["communiqués par le MELCCFP. Dans ce cas, certaines informations extraites du présent "]
["bilan de phosphore pourront être communiquées à ces organismes, sans autre avis."]
[]
["5        ATTESTATION ET SIGNATURE DE L’EXPLOITANT"]
["J’atteste que les données que j’ai fournies à l’agronome signataire, afin qu’il réalise le présent bilan "]
["de phosphore, sont exactes."]
["Nom et prénom de l’exploitant (en lettres moulées) :",null,null,null,null,null,null,null,null,null,null,null,null,null,null,null,null,null,"Signature de l’exploitant :"]
[]
["Date de signature (aaaa-mm-jj) :"]
[]
["6        DÉCLARATION ET SIGNATURE DE L’AGRONOME"]
["J’atteste que le présent bilan de phosphore pour l'année civile (du 1er janvier au 31 décembre)"]
[null,null,null," a été établi conformément à l’article 35 du Règlement sur les exploitations agricoles."]
["Nom agronome (lettres moulées) :",null,null,null,null,null,null,null,null,null,null,null,null,null,null,null,null,null,null,null,null,null,"Signature de l’agronome :"]
["Prénom agronome (lettres moulées) :"]
["Numéro de membre de l’Ordre des agronomes du Québec:",null,null,null,null,null,null,null,null,null,null,null,null,null,null,null,null,null,"Date (aaaa-mm-jj) : "]
[]
["ADRESSE AU TRAVAIL :"]
["Numéro :",null,null,null,null,null,"Rue :",null,null,null,null,null,null,null,null,null,null,null,null,"Municipalité :",null,null,null,null,"",null,null,null,null,null,null,null,{"$f":"VLOOKUP(Y255,BD!$G$1:$H$2000,2,0)","v":{"$error":"#N/A"}}]
["Code postal :",null,null,null,null,null,null,null,null,"Courriel :",null,null,null,null,null,null,null,null,null,null,null,null,null,null,"Télécopieur :"]
["Téléphone :",null,null,null,null,null,null,null,null,null,"Poste :",null,null,null,null,null,"Autre numéro :",null,null,null,null,null,null,null,null,null,null,"Poste :"]
[]
[]
[null,"Version ",null,null,"27-11-2023.0"]

{"sheet":"BD","index":1,"n_rows":1482,"n_cols":17,"rows_kept":1482,"cut":false,"hidden":true,"merged":[]}
["Agneau léger - mâle ou femelle (poids vif final ≤ 30 kg)",51,null,"Liquide",1,null,"Abercorn VL (46005)","46005",null,"Abitibi","880",null,"Aberdeen (070500)","070500",null,"Abercorn VL (46005)","46005"]
["Agneau lourd - mâle ou femelle (poids vif final ≤ 47 kg)",52,null,"Solide",2,null,"Acton Vale V  (48028)","48028",null,"Abitibi-Ouest","870",null,"Aberford (070520)","070520",null,"Acton Vale V  (48028)","48028"]
["Agnelle de remplacement (poids vif final ≤ 55 kg)",35,null,"Sans objet",3,null,"Adstock M  (31056)","31056",null,"Acton","480",null,"Acton Vale (041030)","041030",null,"Adstock M  (31056)","31056"]
["Aucun animal",82,null,null,null,null,"Aguanish M  (98030)","98030",null,"Administration régionale Kativik","992",null,"Adams (063540)","063540",null,"Aguanish M  (98030)","98030"]
["Autre animal - poids vif de l'animal à la fin de la période d'élevage < 1 kg",115,null,null,null,null,"Akulivik TI (99883)","99883",null,"Antoine-Labelle","790",null,"Addington (060520)","060520",null,"Akulivik TI (99883)","99883"]
["Autre animal - poids vif de l'animal à la fin de la période d'élevage ≥ 1 et < 5 kg",116,null,null,null,null,"Akulivik VN (99125)","99125",null,"Argenteuil","760",null,"Adstock (040230)","040230",null,"Akulivik VN (99125)","99125"]
["Autre animal - poids vif de l'animal à la fin de la période d'élevage ≥ 10 et < 20 kg",118,null,null,null,null,"Akwesasne R  (69802)","69802",null,"Arthabaska","390",null,"Agnès (040080)","040080",null,"Akwesasne R  (69802)","69802"]
["Autre animal - poids vif de l'animal à la fin de la période d'élevage ≥ 100 et < 500 kg",120,null,null,null,null,"Albanel M  (92030)","92030",null,"Avignon","060",null,"Aigremont (081430)","081430",null,"Albanel M  (92030)","92030"]
["Autre animal - poids vif de l'animal à la fin de la période d'élevage ≥ 20 et < 100 kg",119,null,null,null,null,"Albertville M  (07025)","07025",null,"Beauce-Sartigan","290",null,"Aiguebelle (071910)","071910",null,"Albertville M  (07025)","07025"]
["Autre animal - poids vif de l'animal à la fin de la période d'élevage ≥ 5 et < 10 kg",117,null,null,null,null,"Alleyn-et-Cawood M  (84050)","84050",null,"Beauharnois-Salaberry","700",null,"Ailleboust (081380)","081380",null,"Alleyn-et-Cawood M  (84050)","84050"]
["Autre animal - poids vif de l'animal à la fin de la période d'élevage ≥ 500 kg",121,null,null,null,null,"Alma V  (93042)","93042",null,"Bécancour","380",null,"Albanel (081200)","081200",null,"Alma V  (93042)","93042"]
["Autruche - mâle ou femelle",75,null,null,null,null,"Amherst CT (78070)","78070",null,"Bellechasse","190",null,"Albert (101180)","101180",null,"Amherst CT (78070)","78070"]
["Autruche d’engraissement - mâle ou femelle",76,null,null,null,null,"Amos V  (88055)","88055",null,"Bonaventure","050",null,"Aldfield (070200)","070200",null,"Amos V  (88055)","88055"]
["Bélier adulte",49,null,null,null,null,"Amqui V  (07047)","07047",null,"Brome-Missisquoi","460",null,"Alleyn (070420)","070420",null,"Amqui V  (07047)","07047"]
["Bison adulte - mâle ou femelle",44,null,null,null,null,"Ange-Gardien M  (55008)","55008",null,"Caniapiscau","972",null,"Amherst (051610)","051610",null,"Ange-Gardien M  (55008)","55008"]
["Bouc adulte",77,null,null,null,null,"Armagh M  (19037)","19037",null,"Charlevoix","160",null,"Amherst (060510)","060510",null,"Armagh M  (19037)","19037"]
["Bovin à l’engraissement (bovin semi-finition et finition)",94,null,null,null,null,"Arundel CT (78060)","78060",null,"Charlevoix-Est","150",null,"Amos (071980)","071980",null,"Arundel CT (78060)","78060"]
["Bovin de finition (> 400 kg)",25,null,null,null,null,"Asbestos V  (40043)","40043",null,"Coaticook","440",null,"Angers (021730)","021730",null,"Asbestos V  (40043)","40043"]
["Bovin de semi-finition (de 268 à 400 kg)",47,null,null,null,null,"Ascot Corner M  (41055)","41055",null,"D'Autray","520",null,"Angoulême (062560)","062560",null,"Ascot Corner M  (41055)","41055"]
["Brebis et ses agneaux de lait",34,null,null,null,null,"Aston-Jonction M  (50013)","50013",null,"Deux-Montagnes","720",null,"Anticosti (100630)","100630",null,"Aston-Jonction M  (50013)","50013"]
["Caille (chair) - mâle ou femelle",32,null,null,null,null,"Auclair M  (13045)","13045",null,"Drummond","490",null,"Antoine (081310)","081310",null,"Auclair M  (13045)","13045"]
["Canard - mâle ou femelle",33,null,null,null,null,"Audet M  (30055)","30055",null,"Eeyou Istchee","993",null,"Arago (030640)","030640",null,"Audet M  (30055)","30055"]
["Canard de Pékin - mâle ou femelle",93,null,null,null,null,"Aumond CT (83090)","83090",null,"Jamésie (terr. conventionné)","991",null,"Archambault (051470)","051470",null,"Aumond CT (83090)","83090"]
["Cerf de Virginie - mâle ou femelle",56,null,null,null,null,"Aupaluk TI (99891)","99891",null,"Joliette","610",null,"Archipel-de-Blanc-Sablon (100120)","100120",null,"Aupaluk TI (99891)","99891"]
["Cerf rouge - mâle ou femelle",55,null,null,null,null,"Aupaluk VN (99105)","99105",null,"Kamouraska","140",null,"Archipel-de-Kécarpoui (100100)","100100",null,"Aupaluk VN (99105)","99105"]
["Chèvre angora (≥ 1 an)",37,null,null,null,null,"Austin M  (45085)","45085",null,"La Côte-de-Beaupré","210",null,"Archipel-de-Ouapitagone (100020)","100020",null,"Austin M  (45085)","45085"]
["Chèvre de boucherie",53,null,null,null,null,"Authier M  (87050)","87050",null,"La Côte-de-Gaspé","030",null,"Archipel-de-Saint-Augustin (100110)","100110",null,"Authier M  (87050)","87050"]
["Chèvre laitière (≥ 1 an)",36,null,null,null,null,"Authier-Nord M  (87100)","87100",null,"La Haute-Côte-Nord","950",null,"Archipel-de-Sainte-Marie (100040)","100040",null,"Authier-Nord M  (87100)","87100"]
["Chevrette ou chevreau (de 3 jours à 364 jours)",113,null,null,null,null,"Ayer's Cliff VL (45035)","45035",null,"La Haute-Gaspésie","040",null,"Archipel-de-Washicoutai (100010)","100010",null,"Ayer's Cliff VL (45035)","45035"]
["Chinchilla femelle et sa progéniture non sevrée",41,null,null,null,null,"Baie-Atibenne NO (62920)","62920",null,"La Haute-Yamaska","470",null,"Archipel-du-Gros-Mécatina (100080)","100080",null,"Baie-Atibenne NO (62920)","62920"]
["Cochette",19,null,null,null,null,"Baie-Comeau V  (96020)","96020",null,"La Jacques-Cartier","220",null,"Archipel-du-Petit-Mécatina (100060)","100060",null,"Baie-Comeau V  (96020)","96020"]
["Coq - œufs d'incubation",101,null,null,null,null,"Baie-de-la-Bouteille NO (62906)","62906",null,"La Matanie","080",null,"Archipel-du-Vieux-Fort (100190)","100190",null,"Baie-de-la-Bouteille NO (62906)","62906"]
["Daim - mâle ou femelle",78,null,null,null,null,"Baie-des-Chaloupes NO (79920)","79920",null,"La Matapédia","070",null,"Argenson (081350)","081350",null,"Baie-des-Chaloupes NO (79920)","79920"]
["Dindon à griller - mâle ou femelle (≤ 9,9 kg)",28,null,null,null,null,"Baie-des-Sables M  (08080)","08080",null,"La Mitis","090",null,"Armagh (030850)","030850",null,"Baie-des-Sables M  (08080)","08080"]
["Dindon lourd - mâle ou femelle (> 9,9 kg)",21,null,null,null,null,"Baie-d'Hudson NO (99904)","99904",null,"La Nouvelle-Beauce","260",null,"Armand (030070)","030070",null,"Baie-d'Hudson NO (99904)","99904"]
["Émeu - mâle ou femelle",60,null,null,null,null,"Baie-du-Febvre M  (50100)","50100",null,"La Rivière-du-Nord","750",null,"Arnaud (100800)","100800",null,"Baie-du-Febvre M  (50100)","50100"]
["Émeu d’engraissement - mâle ou femelle",74,null,null,null,null,"Baie-D'Urfé V  (66112)","66112",null,"La Tuque","900",null,"Arthabaskaville (041930)","041930",null,"Baie-D'Urfé V  (66112)","66112"]
["Étalon",38,null,null,null,null,"Baie-Johan-Beetz M  (98035)","98035",null,"La Vallée-de-la-Gatineau","830",null,"Artois (070330)","070330",null,"Baie-Johan-Beetz M  (98035)","98035"]
["Faisan - mâle ou femelle",30,null,null,null,null,"Baie-Obaoca NO (62918)","62918",null,"La Vallée-de-l'Or","890",null,"Arundel (060220)","060220",null,"Baie-Obaoca NO (62918)","62918"]
["Génisse de boucherie (de 8 mois à 15 mois)",10,null,null,null,null,"Baie-Sainte-Catherine M  (15065)","15065",null,"La Vallée-du-Richelieu","570",null,"Arvida (080260)","080260",null,"Baie-Sainte-Catherine M  (15065)","15065"]
["Génisse laitière d’une race autre que Canadienne ou Jersey (de 12 jours à 15 mois)",83,null,null,null,null,"Baie-Saint-Paul V  (16013)","16013",null,"Lac-Saint-Jean-Est","930",null,"Asbestos (041430)","041430",null,"Baie-Saint-Paul V  (16013)","16013"]
["Génisse laitière de race Canadienne (de 12 jours à 15 mois)",112,null,null,null,null,"Baie-Trinité VL (96005)","96005",null,"L'Assomption","600",null,"Ascot (041300)","041300",null,"Baie-Trinité VL (96005)","96005"]
["Génisse laitière de race Jersey (de 12 jours à 15 mois)",109,null,null,null,null,"Barkmere V  (78050)","78050",null,"Le Domaine-du-Roy","910",null,"Ashburton (030860)","030860",null,"Barkmere V  (78050)","78050"]
["Hongre",40,null,null,null,null,"Barnston-Ouest M  (44045)","44045",null,"Le Fjord-du-Saguenay","942",null,"Ashford (030750)","030750",null,"Barnston-Ouest M  (44045)","44045"]
["Jument et sa progéniture non sevrée",39,null,null,null,null,"Barraute M  (88022)","88022",null,"Le Golfe-du-Saint-Laurent","982",null,"Ashuapmouchouan (080940)","080940",null,"Barraute M  (88022)","88022"]
["Lama - mâle ou femelle",79,null,null,null,null,"Batiscan M  (37210)","37210",null,"Le Granit","300",null,"Asselin (021710)","021710",null,"Batiscan M  (37210)","37210"]
["Lapine et sa progéniture jusqu’à l’abattage",45,null,null,null,null,"Beaconsfield V  (66107)","66107",null,"Le Haut-Richelieu","560",null,"Assemetquagan (021010)","021010",null,"Beaconsfield V  (66107)","66107"]
["Nandou - mâle ou femelle",86,null,null,null,null,"Béarn M  (85020)","85020",null,"Le Haut-Saint-François","410",null,"Atwater (072950)","072950",null,"Béarn M  (85020)","85020"]
["Oie - mâle ou femelle",58,null,null,null,null,"Beauceville V  (27028)","27028",null,"Le Haut-Saint-Laurent","690",null,"Auckland (040260)","040260",null,"Beauceville V  (27028)","27028"]
["Paon - mâle ou femelle",87,null,null,null,null,"Beauharnois V  (70022)","70022",null,"Le Rocher-Percé","020",null,"Auclair (030140)","030140",null,"Beauharnois V  (70022)","70022"]
["Pintade - mâle ou femelle",31,null,null,null,null,"Beaulac-Garthby M  (31008)","31008",null,"Le Val-Saint-François","420",null,"Aulneau (080520)","080520",null,"Beaulac-Garthby M  (31008)","31008"]
["Porc à l'engraissement - mâle ou femelle (> 25 kg jusqu’à l’abattage)",3,null,null,null,null,"Beaumont M  (19105)","19105",null,"L'Érable","320",null,"Aumond (060920)","060920",null,"Beaumont M  (19105)","19105"]
["Porcelet sevré (≤ 25 kg)",1,null,null,null,null,"Beaupré V  (21025)","21025",null,"Les Appalaches","310",null,"Awantjish (021260)","021260",null,"Beaupré V  (21025)","21025"]
["Poulain ou pouliche",48,null,null,null,null,"Bécancour V  (38010)","38010",null,"Les Basques","110",null,"Awantjish (021280)","021280",null,"Bécancour V  (38010)","38010"]
["Poule pondeuse - œufs de consommation",5,null,null,null,null,"Bedford CT (46040)","46040",null,"Les Chenaux","372",null,"Aylmer (040140)","040140",null,"Bedford CT (46040)","46040"]
["Poule pondeuse - œufs d'incubation",105,null,null,null,null,"Bedford V  (46035)","46035",null,"Les Collines-de-l'Outaouais","820",null,"Aylmer (060620)","060620",null,"Bedford V  (46035)","46035"]
["Poulet à griller - femelle (≤ 3,0 kg)",103,null,null,null,null,"Bégin M  (94250)","94250",null,"Les Etchemins","280",null,"Aylwin (060720)","060720",null,"Bégin M  (94250)","94250"]
["Poulet à griller - mâle (≤ 3,0 kg)",102,null,null,null,null,"Belcourt M  (89050)","89050",null,"Les Jardins-de-Napierville","680",null,"Babel (100860)","100860",null,"Belcourt M  (89050)","89050"]
["Poulet à rôtir - mâle ou femelle (> 3,0 kg)",27,null,null,null,null,"Belle-Rivière NO (93908)","93908",null,"Les Laurentides","780",null,"Baby (070900)","070900",null,"Belle-Rivière NO (93908)","93908"]
["Poulette - œufs de consommation",22,null,null,null,null,"Belleterre V  (85065)","85065",null,"Les Maskoutains","540",null,"Bagot (080180)","080180",null,"Belleterre V  (85065)","85065"]
["Poulette - œufs d'incubation",104,null,null,null,null,"Beloeil V  (57040)","57040",null,"Les Moulins","640",null,"Bagotville (080160)","080160",null,"Beloeil V  (57040)","57040"]
["Sanglier adulte - mâle ou femelle",46,null,null,null,null,"Berry M  (88070)","88070",null,"Les Pays-d'en-Haut","770",null,"Baie-Comeau (101520)","101520",null,"Berry M  (88070)","88070"]
["Taure de boucherie (> 15 mois jusqu’à la première mise bas)",17,null,null,null,null,"Berthier-sur-Mer M  (18065)","18065",null,"Les Sources","400",null,"Baie-de-Gaspé-Nord (020240)","020240",null,"Berthier-sur-Mer M  (18065)","18065"]
["Taure laitière d’une race autre que Canadienne ou Jersey (> 15 mois jusqu’à la première lactation)",9,null,null,null,null,"Berthierville V  (52035)","52035",null,"L'Île-d'Orléans","200",null,"Baie-de-Gaspé-Sud (020210)","020210",null,"Berthierville V  (52035)","52035"]
["Taure laitière de race Canadienne (> 15 mois jusqu’à la première lactation)",111,null,null,null,null,"Béthanie M  (48005)","48005",null,"L'Islet","170",null,"Baie-Saint-Paul (090220)","090220",null,"Béthanie M  (48005)","48005"]
["Taure laitière de race Jersey (> 15 mois jusqu’à la première lactation)",108,null,null,null,null,"Biencourt M  (13055)","13055",null,"Lotbinière","330",null,"Baillargeon (021720)","021720",null,"Biencourt M  (13055)","13055"]
["Taureau de boucherie (> 12 mois)",96,null,null,null,null,"Blainville V  (73015)","73015",null,"Manicouagan","960",null,"Bardy (063630)","063630",null,"Blainville V  (73015)","73015"]
["Taureau de boucherie (≤ 12 mois)",95,null,null,null,null,"Blanc-Sablon M  (98005)","98005",null,"Marguerite-D'Youville","590",null,"Barford (040350)","040350",null,"Blanc-Sablon M  (98005)","98005"]
["Taureau laitier",18,null,null,null,null,"Blue Sea M  (83045)","83045",null,"Maria-Chapdelaine","920",null,"Barnston (040380)","040380",null,"Blue Sea M  (83045)","83045"]
["Truie et porcelets non sevrés",20,null,null,null,null,"Boileau M  (80115)","80115",null,"Maskinongé","510",null,"Barraute (072010)","072010",null,"Boileau M  (80115)","80115"]
["Vache de boucherie et son veau",15,null,null,null,null,"Boisbriand V  (73005)","73005",null,"Matawinie","620",null,"Bartouille (072500)","072500",null,"Boisbriand V  (73005)","73005"]
["Vache laitière d’une race autre que Canadienne ou Jersey et son veau de 11 jours",7,null,null,null,null,"Boischatel M  (21045)","21045",null,"Mékinac","350",null,"Baskatong (060980)","060980",null,"Boischatel M  (21045)","21045"]
["Vache laitière de race Canadienne et son veau de 11 jours",110,null,null,null,null,"Bois-des-Filion V  (73030)","73030",null,"Memphrémagog","450",null,"Basserode (073090)","073090",null,"Bois-des-Filion V  (73030)","73030"]
["Vache laitière de race Jersey et son veau de 11 jours",107,null,null,null,null,"Bois-Franc M  (83085)","83085",null,"Minganie","981",null,"Basset (101410)","101410",null,"Bois-Franc M  (83085)","83085"]
["Veau de grain (pouponnière et finition)",14,null,null,null,null,"Bolton-Est M  (45095)","45095",null,"Mirabel","740",null,"Bassin-de-Chambly (050470)","050470",null,"Bolton-Est M  (45095)","45095"]
["Veau de grain de finition (> 95 à 286 kg)",98,null,null,null,null,"Bolton-Ouest M  (46065)","46065",null,"Montcalm","630",null,"Batiscan (063110)","063110",null,"Bolton-Ouest M  (46065)","46065"]
["Veau de grain pouponnière (de 64 à 95 kg)",97,null,null,null,null,"Bonaventure V  (05045)","05045",null,"Montmagny","180",null,"Baudin (073140)","073140",null,"Bonaventure V  (05045)","05045"]
["Veau de lait",13,null,null,null,null,"Bonne-Espérance M  (98010)","98010",null,"Municipalité Îles-de-la-Madeleine","010",null,"Baune (100400)","100400",null,"Bonne-Espérance M  (98010)","98010"]
["Verrat",26,null,null,null,null,"Bonsecours M  (42040)","42040",null,"Nicolet-Yamaska","500",null,"Bauneville (070980)","070980",null,"Bonsecours M  (42040)","42040"]
["Vison adulte - mâle",114,null,null,null,null,"Boucherville V  (58033)","58033",null,"Papineau","800",null,"Bazin (073290)","073290",null,"Boucherville V  (58033)","58033"]
["Vison femelle et sa progéniture jusqu'à l'abattage",42,null,null,null,null,"Bouchette M  (83050)","83050",null,"Pierre-De Saurel","530",null,"Béarn (072420)","072420",null,"Bouchette M  (83050)","83050"]
["Wapiti - mâle ou femelle",54,null,null,null,null,"Bowman M  (80145)","80145",null,"Pontiac","840",null,"Beaubien (030650)","030650",null,"Bowman M  (80145)","80145"]
[null,null,null,null,null,null,"Brébeuf P  (78075)","78075",null,"Portneuf","340",null,"Beauchastel (071220)","071220",null,"Brébeuf P  (78075)","78075"]
[null,null,null,null,null,null,"Brigham M  (46090)","46090",null,"Rimouski-Neigette","100",null,"Beaudet (081300)","081300",null,"Brigham M  (46090)","46090"]
[null,null,null,null,null,null,"Bristol M  (84005)","84005",null,"Rivière-du-Loup","120",null,"Beauharnois (050310)","050310",null,"Bristol M  (84005)","84005"]
[null,null,null,null,null,null,"Brome VL (46070)","46070",null,"Robert-Cliche","270",null,"Beaulac (041590)","041590",null,"Brome VL (46070)","46070"]
[null,null,null,null,null,null,"Bromont V  (46078)","46078",null,"Roussillon","670",null,"Beaumesnil (071060)","071060",null,"Bromont V  (46078)","46078"]
[null,null,null,null,null,null,"Brossard V  (58007)","58007",null,"Rouville","550",null,"Beauport (090740)","090740",null,"Brossard V  (58007)","58007"]
[null,null,null,null,null,null,"Brownsburg-Chatham V  (76043)","76043",null,"Sept-Rivières","971",null,"Beaussier (100680)","100680",null,"Brownsburg-Chatham V  (76043)","76043"]
[null,null,null,null,null,null,"Bryson M  (84025)","84025",null,"Témiscamingue","850",null,"Bédard (020800)","020800",null,"Bryson M  (84025)","84025"]
[null,null,null,null,null,null,"Bury M  (41070)","41070",null,"Témiscouata","130",null,"Bedout (101490)","101490",null,"Bury M  (41070)","41070"]
[null,null,null,null,null,null,"Cacouna M  (12057)","12057",null,"Thérèse-De Blainville","730",null,"Beebe Plain (040400)","040400",null,"Cacouna M  (12057)","12057"]
[null,null,null,null,null,null,"Cacouna R  (12804)","12804",null,"Vaudreuil-Soulanges","710",null,"Bégin (080480)","080480",null,"Cacouna R  (12804)","12804"]
[null,null,null,null,null,null,"Calixa-Lavallée M  (59030)","59030",null,"Ville de Gatineau","810",null,"Bégon (030270)","030270",null,"Calixa-Lavallée M  (59030)","59030"]
[null,null,null,null,null,null,"Campbell's Bay M  (84030)","84030",null,"Ville de Laval","650",null,"Béland (081500)","081500",null,"Campbell's Bay M  (84030)","84030"]
[null,null,null,null,null,null,"Candiac V  (67020)","67020",null,"Ville de Lévis","251",null,"Belleau (063080)","063080",null,"Candiac V  (67020)","67020"]
[null,null,null,null,null,null,"Caniapiscau NO (97908)","97908",null,"Ville de Longueuil","580",null,"Bellechasse (030950)","030950",null,"Caniapiscau NO (97908)","97908"]
[null,null,null,null,null,null,"Cantley M  (82020)","82020",null,"Ville de Montréal","660",null,"Bellecombe (071160)","071160",null,"Cantley M  (82020)","82020"]
[null,null,null,null,null,null,"Cap-Chat V  (04047)","04047",null,"Ville de Québec","230",null,"Bellecourt (100380)","100380",null,"Cap-Chat V  (04047)","04047"]
[null,null,null,null,null,null,"Caplan M  (05060)","05060",null,"Ville de Rouyn-Noranda","860",null,"Bergeron (101280)","101280",null,"Caplan M  (05060)","05060"]
[null,null,null,null,null,null,"Cap-Saint-Ignace M  (18045)","18045",null,"Ville de Saguenay","941",null,"Bergeronnes (101140)","101140",null,"Cap-Saint-Ignace M  (18045)","18045"]
[null,null,null,null,null,null,"Cap-Santé V  (34030)","34030",null,"Ville de Shawinigan","360",null,"Bernetz (072530)","072530",null,"Cap-Santé V  (34030)","34030"]
[null,null,null,null,null,null,"Carignan V  (57010)","57010",null,"Ville de Sherbrooke","430",null,"Berry (072410)","072410",null,"Carignan V  (57010)","57010"]
[null,null,null,null,null,null,"Carleton-sur-Mer V  (06013)","06013",null,"Ville de Trois-Rivières","371",null,"Berthier (030920)","030920",null,"Carleton-sur-Mer V  (06013)","06013"]
[null,null,null,null,null,null,"Cascades-Malignes NO (83904)","83904",null,"Ville de Saguenay","941",null,"Berthier (062120)","062120",null,"Cascades-Malignes NO (83904)","83904"]
[null,null,null,null,null,null,"Cascapédia--Saint-Jules M  (05077)","05077",null,"Ville de Shawinigan","360",null,"Berthier (062140)","062140",null,"Cascapédia--Saint-Jules M  (05077)","05077"]
[null,null,null,null,null,null,"Causapscal V  (07018)","07018",null,"Ville de Sherbrooke","430",null,"Betsiamites (101040)","101040",null,"Causapscal V  (07018)","07018"]
[null,null,null,null,null,null,"Cayamant M  (83040)","83040",null,"Ville de Trois-Rivières","371",null,"Biard (063520)","063520",null,"Cayamant M  (83040)","83040"]
[null,null,null,null,null,null,"Chambly V  (57005)","57005",null,null,null,null,"Bickerdike (063460)","063460",null,"Chambly V  (57005)","57005"]
[null,null,null,null,null,null,"Chambord M  (91020)","91020",null,null,null,null,"Biencourt (020600)","020600",null,"Chambord M  (91020)","91020"]
[null,null,null,null,null,null,"Champlain M  (37220)","37220",null,null,null,null,"Bienville (031340)","031340",null,"Champlain M  (37220)","37220"]
[null,null,null,null,null,null,"Champneuf M  (88005)","88005",null,null,null,null,"Bigelow (061000)","061000",null,"Champneuf M  (88005)","88005"]
[null,null,null,null,null,null,"Chandler V  (02028)","02028",null,null,null,null,"Bissot (100510)","100510",null,"Chandler V  (02028)","02028"]
[null,null,null,null,null,null,"Chapais V  (99020)","99020",null,null,null,null,"Blais (021210)","021210",null,"Chapais V  (99020)","99020"]
[null,null,null,null,null,null,"Charette M  (51080)","51080",null,null,null,null,"Blake (060760)","060760",null,"Charette M  (51080)","51080"]
[null,null,null,null,null,null,"Charlemagne V  (60005)","60005",null,null,null,null,"Blandford (042030)","042030",null,"Charlemagne V  (60005)","60005"]
[null,null,null,null,null,null,"Chartierville M  (41020)","41020",null,null,null,null,"Bochart (081550)","081550",null,"Chartierville M  (41020)","41020"]
[null,null,null,null,null,null,"Châteauguay V  (67050)","67050",null,null,null,null,"Boilleau (080010)","080010",null,"Châteauguay V  (67050)","67050"]
[null,null,null,null,null,null,"Château-Richer V  (21035)","21035",null,null,null,null,"Bois (091140)","091140",null,"Château-Richer V  (21035)","21035"]
[null,null,null,null,null,null,"Chazel M  (87095)","87095",null,null,null,null,"Boisbuisson (021610)","021610",null,"Chazel M  (87095)","87095"]
[null,null,null,null,null,null,"Chelsea M  (82025)","82025",null,null,null,null,"Boisclerc (070640)","070640",null,"Chelsea M  (82025)","82025"]
[null,null,null,null,null,null,"Chénéville M  (80103)","80103",null,null,null,null,"Boishébert (100320)","100320",null,"Chénéville M  (80103)","80103"]
[null,null,null,null,null,null,"Chertsey M  (62047)","62047",null,null,null,null,"Boisseau (071700)","071700",null,"Chertsey M  (62047)","62047"]
[null,null,null,null,null,null,"Chesterville M  (39030)","39030",null,null,null,null,"Boivin (072710)","072710",null,"Chesterville M  (39030)","39030"]
[null,null,null,null,null,null,"Chibougamau V  (99025)","99025",null,null,null,null,"Bolton (040480)","040480",null,"Chibougamau V  (99025)","99025"]
[null,null,null,null,null,null,"Chichester CT (84090)","84090",null,null,null,null,"Bonin (063440)","063440",null,"Chichester CT (84090)","84090"]
[null,null,null,null,null,null,"Chisasibi TC (99814)","99814",null,null,null,null,"Bonnécamp (021650)","021650",null,"Chisasibi TC (99814)","99814"]
[null,null,null,null,null,null,"Chisasibi VC (99055)","99055",null,null,null,null,"Bonne-Espérance (100180)","100180",null,"Chisasibi VC (99055)","99055"]
[null,null,null,null,null,null,"Chute-aux-Outardes VL (96035)","96035",null,null,null,null,"Booth (070530)","070530",null,"Chute-aux-Outardes VL (96035)","96035"]
[null,null,null,null,null,null,"Chute-Saint-Philippe M  (79065)","79065",null,null,null,null,"Borgia (063710)","063710",null,"Chute-Saint-Philippe M  (79065)","79065"]
[null,null,null,null,null,null,"Clarendon M  (84015)","84015",null,null,null,null,"Bossé (072870)","072870",null,"Clarendon M  (84015)","84015"]
[null,null,null,null,null,null,"Clermont CT (87110)","87110",null,null,null,null,"Botsford (030010)","030010",null,"Clermont CT (87110)","87110"]
[null,null,null,null,null,null,"Clermont V  (15035)","15035",null,null,null,null,"Boucher (063140)","063140",null,"Clermont V  (15035)","15035"]
[null,null,null,null,null,null,"Clerval M  (87075)","87075",null,null,null,null,"Boucherville (050530)","050530",null,"Clerval M  (87075)","87075"]
[null,null,null,null,null,null,"Cleveland CT (42110)","42110",null,null,null,null,"Bouchette (060820)","060820",null,"Cleveland CT (42110)","42110"]
[null,null,null,null,null,null,"Cloridorme CT (03010)","03010",null,null,null,null,"Bougainville (100260)","100260",null,"Cloridorme CT (03010)","03010"]
[null,null,null,null,null,null,"Coaticook V  (44037)","44037",null,null,null,null,"Bourbon (081340)","081340",null,"Coaticook V  (44037)","44037"]
[null,null,null,null,null,null,"Collines-du-Basque NO (03904)","03904",null,null,null,null,"Bourdages (030720)","030720",null,"Collines-du-Basque NO (03904)","03904"]
[null,null,null,null,null,null,"Colombier M  (95050)","95050",null,null,null,null,"Bourdon (100980)","100980",null,"Colombier M  (95050)","95050"]
[null,null,null,null,null,null,"Compton M  (44071)","44071",null,null,null,null,"Bourgeoys (063280)","063280",null,"Compton M  (44071)","44071"]
[null,null,null,null,null,null,"Contrecoeur V  (59035)","59035",null,null,null,null,"Bourget (080340)","080340",null,"Contrecoeur V  (59035)","59035"]
[null,null,null,null,null,null,"Cookshire-Eaton V  (41038)","41038",null,null,null,null,"Bourgmont (073330)","073330",null,"Cookshire-Eaton V  (41038)","41038"]
[null,null,null,null,null,null,"Coteau-du-Lac V  (71040)","71040",null,null,null,null,"Bourlamaque (071520)","071520",null,"Coteau-du-Lac V  (71040)","71040"]
[null,null,null,null,null,null,"Côte-Nord-du-Golfe-du-Saint-Laurent M  (98015)","98015",null,null,null,null,"Bousquet (071320)","071320",null,"Côte-Nord-du-Golfe-du-Saint-Laurent M  (98015)","98015"]
[null,null,null,null,null,null,"Côte-Saint-Luc V  (66058)","66058",null,null,null,null,"Bouthillier (061200)","061200",null,"Côte-Saint-Luc V  (66058)","66058"]
[null,null,null,null,null,null,"Coucoucache R  (90801)","90801",null,null,null,null,"Bowman (060420)","060420",null,"Coucoucache R  (90801)","90801"]
[null,null,null,null,null,null,"Coulée-des-Adolphe NO (04904)","04904",null,null,null,null,"Boyer (061360)","061360",null,"Coulée-des-Adolphe NO (04904)","04904"]
[null,null,null,null,null,null,"Courcelles M  (30090)","30090",null,null,null,null,"Boyvinet (072930)","072930",null,"Courcelles M  (30090)","30090"]
[null,null,null,null,null,null,"Cowansville V  (46080)","46080",null,null,null,null,"Brassard (062340)","062340",null,"Cowansville V  (46080)","46080"]
[null,null,null,null,null,null,"Crabtree M  (61013)","61013",null,null,null,null,"Brassier (072060)","072060",null,"Crabtree M  (61013)","61013"]
[null,null,null,null,null,null,"Danville V  (40047)","40047",null,null,null,null,"Brest (100140)","100140",null,"Danville V  (40047)","40047"]
[null,null,null,null,null,null,"Daveluyville V  (39152)","39152",null,null,null,null,"Briand (063670)","063670",null,"Daveluyville V  (39152)","39152"]
[null,null,null,null,null,null,"Dégelis V  (13005)","13005",null,null,null,null,"Brien (101500)","101500",null,"Dégelis V  (13005)","13005"]
[null,null,null,null,null,null,"Déléage M  (83070)","83070",null,null,null,null,"Bristol (070040)","070040",null,"Déléage M  (83070)","83070"]
[null,null,null,null,null,null,"Delson V  (67025)","67025",null,null,null,null,"Brochu (021750)","021750",null,"Delson V  (67025)","67025"]
[null,null,null,null,null,null,"Denholm M  (83005)","83005",null,null,null,null,"Brodeur (070860)","070860",null,"Denholm M  (83005)","83005"]
[null,null,null,null,null,null,"Dépôt-Échouani NO (83912)","83912",null,null,null,null,"Brome (040490)","040490",null,"Dépôt-Échouani NO (83912)","83912"]
[null,null,null,null,null,null,"Desbiens V  (93005)","93005",null,null,null,null,"Bromont (042710)","042710",null,"Desbiens V  (93005)","93005"]
[null,null,null,null,null,null,"Deschaillons-sur-Saint-Laurent M  (38070)","38070",null,null,null,null,"Brompton (041350)","041350",null,"Deschaillons-sur-Saint-Laurent M  (38070)","38070"]
[null,null,null,null,null,null,"Deschambault-Grondines M  (34058)","34058",null,null,null,null,"Brouague (100240)","100240",null,"Deschambault-Grondines M  (34058)","34058"]
[null,null,null,null,null,null,"Deux-Montagnes V  (72010)","72010",null,null,null,null,"Broughton (041730)","041730",null,"Deux-Montagnes V  (72010)","72010"]
[null,null,null,null,null,null,"Disraeli P  (31020)","31020",null,null,null,null,"Brouillan (072920)","072920",null,"Disraeli P  (31020)","31020"]
[null,null,null,null,null,null,"Disraeli V  (31015)","31015",null,null,null,null,"Bruchési (070770)","070770",null,"Disraeli V  (31015)","31015"]
[null,null,null,null,null,null,"Dixville M  (44023)","44023",null,null,null,null,"Brunet (063620)","063620",null,"Dixville M  (44023)","44023"]
[null,null,null,null,null,null,"Dolbeau-Mistassini V  (92022)","92022",null,null,null,null,"Bryson (070110)","070110",null,"Dolbeau-Mistassini V  (92022)","92022"]
[null,null,null,null,null,null,"Dollard-Des Ormeaux V  (66142)","66142",null,null,null,null,"Bryson (070360)","070360",null,"Dollard-Des Ormeaux V  (66142)","66142"]
[null,null,null,null,null,null,"Doncaster R  (78802)","78802",null,null,null,null,"Buckingham (060240)","060240",null,"Doncaster R  (78802)","78802"]
[null,null,null,null,null,null,"Donnacona V  (34025)","34025",null,null,null,null,"Buckingham (060260)","060260",null,"Donnacona V  (34025)","34025"]
[null,null,null,null,null,null,"Dorval V  (66087)","66087",null,null,null,null,"Buckland (031000)","031000",null,"Dorval V  (66087)","66087"]
[null,null,null,null,null,null,"Dosquet M  (33040)","33040",null,null,null,null,"Buies (073050)","073050",null,"Dosquet M  (33040)","33040"]
[null,null,null,null,null,null,"Drummondville V  (49058)","49058",null,null,null,null,"Bulstrode (042000)","042000",null,"Drummondville V  (49058)","49058"]
[null,null,null,null,null,null,"Dudswell M  (41117)","41117",null,null,null,null,"Bulstrode (042680)","042680",null,"Dudswell M  (41117)","41117"]
[null,null,null,null,null,null,"Duhamel M  (80135)","80135",null,null,null,null,"Bungay (030490)","030490",null,"Duhamel M  (80135)","80135"]
[null,null,null,null,null,null,"Duhamel-Ouest M  (85030)","85030",null,null,null,null,"Bureau (063660)","063660",null,"Duhamel-Ouest M  (85030)","85030"]
[null,null,null,null,null,null,"Dundee CT (69075)","69075",null,null,null,null,"Bury (040320)","040320",null,"Dundee CT (69075)","69075"]
[null,null,null,null,null,null,"Dunham V  (46050)","46050",null,null,null,null,"By (060970)","060970",null,"Dunham V  (46050)","46050"]
[null,null,null,null,null,null,"Duparquet V  (87005)","87005",null,null,null,null,"Cabanac (101330)","101330",null,"Duparquet V  (87005)","87005"]
[null,null,null,null,null,null,"Dupuy M  (87085)","87085",null,null,null,null,"Cabano (030040)","030040",null,"Dupuy M  (87085)","87085"]
[null,null,null,null,null,null,"Durham-Sud M  (49015)","49015",null,null,null,null,"Cabot (021360)","021360",null,"Durham-Sud M  (49015)","49015"]
[null,null,null,null,null,null,"East Angus V  (41060)","41060",null,null,null,null,"Cacouna (030340)","030340",null,"East Angus V  (41060)","41060"]
[null,null,null,null,null,null,"East Broughton M  (31122)","31122",null,null,null,null,"Cacouna (030350)","030350",null,"East Broughton M  (31122)","31122"]
[null,null,null,null,null,null,"East Farnham M  (46085)","46085",null,null,null,null,"Cadieux (063370)","063370",null,"East Farnham M  (46085)","46085"]
[null,null,null,null,null,null,"East Hereford M  (44010)","44010",null,null,null,null,"Cadillac (071580)","071580",null,"East Hereford M  (44010)","44010"]
[null,null,null,null,null,null,"Eastmain TC (99810)","99810",null,null,null,null,"Caire (071120)","071120",null,"Eastmain TC (99810)","99810"]
[null,null,null,null,null,null,"Eastmain VC (99045)","99045",null,null,null,null,"Callières (090140)","090140",null,"Eastmain VC (99045)","99045"]
[null,null,null,null,null,null,"Eastman M  (45093)","45093",null,null,null,null,"Cameron (060840)","060840",null,"Eastman M  (45093)","45093"]
[null,null,null,null,null,null,"Egan-Sud M  (83075)","83075",null,null,null,null,"Campbell (061380)","061380",null,"Egan-Sud M  (83075)","83075"]
[null,null,null,null,null,null,"Elgin M  (69050)","69050",null,null,null,null,"Campbell's Bay (070120)","070120",null,"Elgin M  (69050)","69050"]
[null,null,null,null,null,null,"Entrelacs M  (62053)","62053",null,null,null,null,"Campeau (070660)","070660",null,"Entrelacs M  (62053)","62053"]
[null,null,null,null,null,null,"Escuminac M  (06025)","06025",null,null,null,null,"Cannon (100910)","100910",null,"Escuminac M  (06025)","06025"]
[null,null,null,null,null,null,"Esprit-Saint M  (10005)","10005",null,null,null,null,"Canrobert (040730)","040730",null,"Esprit-Saint M  (10005)","10005"]
[null,null,null,null,null,null,"Essipit R  (95802)","95802",null,null,null,null,"Canton-de-Chambly (050460)","050460",null,"Essipit R  (95802)","95802"]
[null,null,null,null,null,null,"Estérel V  (77011)","77011",null,null,null,null,"Cap-Chat (021540)","021540",null,"Estérel V  (77011)","77011"]
[null,null,null,null,null,null,"Farnham V  (46112)","46112",null,null,null,null,"Cap-de-la-Madeleine (062700)","062700",null,"État-Unis (EU000)","EU000"]
[null,null,null,null,null,null,"Fassett M  (80005)","80005",null,null,null,null,"Cap-de-la-Madeleine (063580)","063580",null,"Farnham V  (46112)","46112"]
[null,null,null,null,null,null,"Ferland-et-Boilleau M  (94220)","94220",null,null,null,null,"Cap-des-Rosiers (020260)","020260",null,"Fassett M  (80005)","80005"]
[null,null,null,null,null,null,"Ferme-Neuve M  (79097)","79097",null,null,null,null,"Cap-Saint-Ignace (030870)","030870",null,"Ferland-et-Boilleau M  (94220)","94220"]
[null,null,null,null,null,null,"Fermont V  (97035)","97035",null,null,null,null,"Cap-Santé (090910)","090910",null,"Ferme-Neuve M  (79097)","79097"]
[null,null,null,null,null,null,"Forestville V  (95045)","95045",null,null,null,null,"Carignan (063200)","063200",null,"Fermont V  (97035)","97035"]
[null,null,null,null,null,null,"Fort-Coulonge VL (84060)","84060",null,null,null,null,"Carleton (020480)","020480",null,"Forestville V  (95045)","95045"]
[null,null,null,null,null,null,"Fortierville M  (38047)","38047",null,null,null,null,"Caron (080640)","080640",null,"Fort-Coulonge VL (84060)","84060"]
[null,null,null,null,null,null,"Fossambault-sur-le-Lac V  (22010)","22010",null,null,null,null,"Carpentier (072020)","072020",null,"Fortierville M  (38047)","38047"]
[null,null,null,null,null,null,"Frampton M  (26005)","26005",null,null,null,null,"Cartier (062040)","062040",null,"Fossambault-sur-le-Lac V  (22010)","22010"]
[null,null,null,null,null,null,"Franklin M  (69010)","69010",null,null,null,null,"Casa-Berardi (073110)","073110",null,"Frampton M  (26005)","26005"]
[null,null,null,null,null,null,"Franquelin M  (96015)","96015",null,null,null,null,"Casault (021110)","021110",null,"Franklin M  (69010)","69010"]
[null,null,null,null,null,null,"Frelighsburg M  (46010)","46010",null,null,null,null,"Casgrain (030630)","030630",null,"Franquelin M  (96015)","96015"]
[null,null,null,null,null,null,"Frontenac M  (30025)","30025",null,null,null,null,"Castagnier (072440)","072440",null,"Frelighsburg M  (46010)","46010"]
[null,null,null,null,null,null,"Fugèreville M  (85055)","85055",null,null,null,null,"Casupscull (021080)","021080",null,"Frontenac M  (30025)","30025"]
[null,null,null,null,null,null,"Gallichan M  (87020)","87020",null,null,null,null,"Cathcart (062020)","062020",null,"Fugèreville M  (85055)","85055"]
[null,null,null,null,null,null,"Gaspé V  (03005)","03005",null,null,null,null,"Cauchon (090330)","090330",null,"Gallichan M  (87020)","87020"]
[null,null,null,null,null,null,"Gatineau V  (81017)","81017",null,null,null,null,"Cawood (070210)","070210",null,"Gaspé V  (03005)","03005"]
[null,null,null,null,null,null,"Gesgapegiag R  (06802)","06802",null,null,null,null,"Céry (100340)","100340",null,"Gatineau V  (81017)","81017"]
[null,null,null,null,null,null,"Girardville M  (92055)","92055",null,null,null,null,"Chabanel (081700)","081700",null,"Gesgapegiag R  (06802)","06802"]
[null,null,null,null,null,null,"Godbout VL (96010)","96010",null,null,null,null,"Chabot (030470)","030470",null,"Girardville M  (92055)","92055"]
[null,null,null,null,null,null,"Godmanchester CT (69060)","69060",null,null,null,null,"Champou (021770)","021770",null,"Godbout VL (96010)","96010"]
[null,null,null,null,null,null,"Gore CT (76025)","76025",null,null,null,null,"Chapais (030390)","030390",null,"Godmanchester CT (69060)","69060"]
[null,null,null,null,null,null,"Gouvernement régional d'Eeyou Istchee Baie-James M  (99060)","99060",null,null,null,null,"Chapeau (070310)","070310",null,"Gore CT (76025)","76025"]
[null,null,null,null,null,null,"Gracefield V  (83032)","83032",null,null,null,null,"Chapleau (062540)","062540",null,"Gouvernement régional d'Eeyou Istchee Baie-James M  (99060)","99060"]
[null,null,null,null,null,null,"Granby V  (47017)","47017",null,null,null,null,"Chardon (080430)","080430",null,"Gracefield V  (83032)","83032"]
[null,null,null,null,null,null,"Grande-Rivière V  (02015)","02015",null,null,null,null,"Charest (063430)","063430",null,"Granby V  (47017)","47017"]
[null,null,null,null,null,null,"Grandes-Piles VL (35040)","35040",null,null,null,null,"Charlesbourg (090720)","090720",null,"Grande-Rivière V  (02015)","02015"]
[null,null,null,null,null,null,"Grande-Vallée M  (03020)","03020",null,null,null,null,"Charlevoix (080840)","080840",null,"Grandes-Piles VL (35040)","35040"]
[null,null,null,null,null,null,"Grand-Métis M  (09060)","09060",null,null,null,null,"Charnay (100410)","100410",null,"Grande-Vallée M  (03020)","03020"]
[null,null,null,null,null,null,"Grand-Remous M  (83095)","83095",null,null,null,null,"Charron (081510)","081510",null,"Grand-Métis M  (09060)","09060"]
[null,null,null,null,null,null,"Grand-Saint-Esprit M  (50065)","50065",null,null,null,null,"Chassaigne (073340)","073340",null,"Grand-Remous M  (83095)","83095"]
[null,null,null,null,null,null,"Grenville VL (76055)","76055",null,null,null,null,"Chasseur (063530)","063530",null,"Grand-Saint-Esprit M  (50065)","50065"]
[null,null,null,null,null,null,"Grenville-sur-la-Rouge M  (76052)","76052",null,null,null,null,"Chaste (072740)","072740",null,"Grenville VL (76055)","76055"]
[null,null,null,null,null,null,"Gros-Mécatina M  (98014)","98014",null,null,null,null,"Château-Richer (090340)","090340",null,"Grenville-sur-la-Rouge M  (76052)","76052"]
[null,null,null,null,null,null,"Grosse-Île M  (01042)","01042",null,null,null,null,"Chatham (060040)","060040",null,"Gros-Mécatina M  (98014)","98014"]
[null,null,null,null,null,null,"Grosses-Roches M  (08015)","08015",null,null,null,null,"Chauveau (090100)","090100",null,"Grosse-Île M  (01042)","01042"]
[null,null,null,null,null,null,"Guérin CT (85095)","85095",null,null,null,null,"Chazel (072600)","072600",null,"Grosses-Roches M  (08015)","08015"]
[null,null,null,null,null,null,"Ham-Nord CT (39010)","39010",null,null,null,null,"Chénier (020780)","020780",null,"Guérin CT (85095)","85095"]
[null,null,null,null,null,null,"Hampden CT (41075)","41075",null,null,null,null,"Cherbourg (021500)","021500",null,"Ham-Nord CT (39010)","39010"]
[null,null,null,null,null,null,"Hampstead V  (66062)","66062",null,null,null,null,"Chertsey (061740)","061740",null,"Hampden CT (41075)","41075"]
[null,null,null,null,null,null,"Ham-Sud M  (40005)","40005",null,null,null,null,"Chesham (040020)","040020",null,"Hampstead V  (66062)","66062"]
[null,null,null,null,null,null,"Harrington CT (76065)","76065",null,null,null,null,"Chevalier (100200)","100200",null,"Ham-Sud M  (40005)","40005"]
[null,null,null,null,null,null,"Hatley CT (45055)","45055",null,null,null,null,"Chiasson (101260)","101260",null,"Harrington CT (76065)","76065"]
[null,null,null,null,null,null,"Hatley M  (45043)","45043",null,null,null,null,"Chichester (070320)","070320",null,"Hatley CT (45055)","45055"]
[null,null,null,null,null,null,"Havelock CT (69005)","69005",null,null,null,null,"Chicoutimi (080210)","080210",null,"Hatley M  (45043)","45043"]
[null,null,null,null,null,null,"Havre-Saint-Pierre M  (98040)","98040",null,null,null,null,"Chicoutimi (080220)","080220",null,"Havelock CT (69005)","69005"]
[null,null,null,null,null,null,"Hébertville M  (93020)","93020",null,null,null,null,"Chicoutimi (080240)","080240",null,"Havre-Saint-Pierre M  (98040)","98040"]
[null,null,null,null,null,null,"Hébertville-Station VL (93025)","93025",null,null,null,null,"Chilton (061760)","061760",null,"Hébertville M  (93020)","93020"]
[null,null,null,null,null,null,"Hemmingford CT (68015)","68015",null,null,null,null,"Choquette (072990)","072990",null,"Hébertville-Station VL (93025)","93025"]
[null,null,null,null,null,null,"Hemmingford VL (68010)","68010",null,null,null,null,"Christie (021600)","021600",null,"Hemmingford CT (68015)","68015"]
[null,null,null,null,null,null,"Henryville M  (56042)","56042",null,null,null,null,"Church (070460)","070460",null,"Hemmingford VL (68010)","68010"]
[null,null,null,null,null,null,"Hérouxville P  (35035)","35035",null,null,null,null,"Clapham (070410)","070410",null,"Henryville M  (56042)","56042"]
[null,null,null,null,null,null,"Hinchinbrooke M  (69045)","69045",null,null,null,null,"Clarendon (070060)","070060",null,"Hérouxville P  (35035)","35035"]
[null,null,null,null,null,null,"Honfleur M  (19070)","19070",null,null,null,null,"Cléricy (071360)","071360",null,"Hinchinbrooke M  (69045)","69045"]
[null,null,null,null,null,null,"Hope CT (05025)","05025",null,null,null,null,"Clérion (071030)","071030",null,"Honfleur M  (19070)","19070"]
[null,null,null,null,null,null,"Hope Town M  (05020)","05020",null,null,null,null,"Clermont (072610)","072610",null,"Hope CT (05025)","05025"]
[null,null,null,null,null,null,"Howick M  (69025)","69025",null,null,null,null,"Cleveland (041450)","041450",null,"Hope Town M  (05020)","05020"]
[null,null,null,null,null,null,"Huberdeau M  (78065)","78065",null,null,null,null,"Clifton (040270)","040270",null,"Howick M  (69025)","69025"]
[null,null,null,null,null,null,"Hudson V  (71100)","71100",null,null,null,null,"Clinton (040030)","040030",null,"Huberdeau M  (78065)","78065"]
[null,null,null,null,null,null,"Hunter's Point EI (85803)","85803",null,null,null,null,"Cloridorme (020310)","020310",null,"Hudson V  (71100)","71100"]
[null,null,null,null,null,null,"Huntingdon V  (69055)","69055",null,null,null,null,"Cloutier (063390)","063390",null,"Hunter's Point EI (85803)","85803"]
[null,null,null,null,null,null,"Inukjuak TI (99879)","99879",null,null,null,null,"Clyde (061080)","061080",null,"Huntingdon V  (69055)","69055"]
[null,null,null,null,null,null,"Inukjuak VN (99085)","99085",null,null,null,null,"Coaticook (040370)","040370",null,"Inukjuak TI (99879)","99879"]
[null,null,null,null,null,null,"Inverness M  (32058)","32058",null,null,null,null,"Coaticook (042700)","042700",null,"Inukjuak VN (99085)","99085"]
[null,null,null,null,null,null,"Irlande M  (31040)","31040",null,null,null,null,"Colbert (091120)","091120",null,"Inverness M  (32058)","32058"]
[null,null,null,null,null,null,"Ivry-sur-le-Lac M  (78042)","78042",null,null,null,null,"Coleraine (041620)","041620",null,"Irlande M  (31040)","31040"]
[null,null,null,null,null,null,"Ivujivik TI (99885)","99885",null,null,null,null,"Como (050930)","050930",null,"Ivry-sur-le-Lac M  (78042)","78042"]
[null,null,null,null,null,null,"Ivujivik VN (99140)","99140",null,null,null,null,"Compton (041270)","041270",null,"Ivujivik TI (99885)","99885"]
[null,null,null,null,null,null,"Joliette V  (61025)","61025",null,null,null,null,"Compton (041280)","041280",null,"Ivujivik VN (99140)","99140"]
[null,null,null,null,null,null,"Kahnawake R  (67802)","67802",null,null,null,null,"Comtois (072790)","072790",null,"Joliette V  (61025)","61025"]
[null,null,null,null,null,null,"Kamouraska M  (14050)","14050",null,null,null,null,"Conan (101240)","101240",null,"Kahnawake R  (67802)","67802"]
[null,null,null,null,null,null,"Kanesatake EI (72802)","72802",null,null,null,null,"Condé (081390)","081390",null,"Kamouraska M  (14050)","14050"]
[null,null,null,null,null,null,"Kangiqsualujjuaq TI (99894)","99894",null,null,null,null,"Constantin (081080)","081080",null,"Kanesatake EI (72802)","72802"]
[null,null,null,null,null,null,"Kangiqsualujjuaq VN (99090)","99090",null,null,null,null,"Contrecoeur (050610)","050610",null,"Kangiqsualujjuaq TI (99894)","99894"]
[null,null,null,null,null,null,"Kangiqsujuaq TI (99888)","99888",null,null,null,null,"Cook (100300)","100300",null,"Kangiqsualujjuaq VN (99090)","99090"]
[null,null,null,null,null,null,"Kangiqsujuaq VN (99130)","99130",null,null,null,null,"Costebelle (101510)","101510",null,"Kangiqsujuaq TI (99888)","99888"]
[null,null,null,null,null,null,"Kangirsuk TI (99890)","99890",null,null,null,null,"Coteau-Landing (050850)","050850",null,"Kangiqsujuaq VN (99130)","99130"]
[null,null,null,null,null,null,"Kangirsuk VN (99110)","99110",null,null,null,null,"Côte-de-Beaupré (090440)","090440",null,"Kangirsuk TI (99890)","99890"]
[null,null,null,null,null,null,"Kawawachikamach TK (97806)","97806",null,null,null,null,"Côte-de-la-Visitation (050660)","050660",null,"Kangirsuk VN (99110)","99110"]
[null,null,null,null,null,null,"Kawawachikamach VK (99065)","99065",null,null,null,null,"Côte-des-Neiges (050720)","050720",null,"Kawawachikamach TK (97806)","97806"]
[null,null,null,null,null,null,"Kazabazua M  (83015)","83015",null,null,null,null,"Côte-Saint-Louis (050680)","050680",null,"Kawawachikamach VK (99065)","99065"]
[null,null,null,null,null,null,"Kebaowek R  (85802)","85802",null,null,null,null,"Courcelles (062310)","062310",null,"Kazabazua M  (83015)","83015"]
[null,null,null,null,null,null,"Kiamika M  (79025)","79025",null,null,null,null,"Courtemanche (100660)","100660",null,"Kebaowek R  (85802)","85802"]
[null,null,null,null,null,null,"Kingsbury VL (42070)","42070",null,null,null,null,"Courville (071760)","071760",null,"Kiamika M  (79025)","79025"]
[null,null,null,null,null,null,"Kingsey Falls V  (39097)","39097",null,null,null,null,"Couturier (073270)","073270",null,"Kingsbury VL (42070)","42070"]
[null,null,null,null,null,null,"Kinnear's Mills M  (31105)","31105",null,null,null,null,"Cowansville (040630)","040630",null,"Kingsey Falls V  (39097)","39097"]
[null,null,null,null,null,null,"Kipawa M  (85010)","85010",null,null,null,null,"Cox (020380)","020380",null,"Kinnear's Mills M  (31105)","31105"]
[null,null,null,null,null,null,"Kirkland V  (66102)","66102",null,null,null,null,"Cranbourne (031150)","031150",null,"Kipawa M  (85010)","85010"]
[null,null,null,null,null,null,"Kitcisakik EI (89802)","89802",null,null,null,null,"Créquy (063640)","063640",null,"Kirkland V  (66102)","66102"]
[null,null,null,null,null,null,"Kitigan Zibi R  (83802)","83802",null,null,null,null,"Crespieul (080760)","080760",null,"Kitcisakik EI (89802)","89802"]
[null,null,null,null,null,null,"Kuujjuaq TI (99893)","99893",null,null,null,null,"Crusson (073320)","073320",null,"Kitigan Zibi R  (83802)","83802"]
[null,null,null,null,null,null,"Kuujjuaq VN (99095)","99095",null,null,null,null,"Currie (072850)","072850",null,"Kuujjuaq TI (99893)","99893"]
[null,null,null,null,null,null,"Kuujjuarapik TI (99877)","99877",null,null,null,null,"Daaquam (030940)","030940",null,"Kuujjuaq VN (99095)","99095"]
[null,null,null,null,null,null,"Kuujjuarapik VN (99075)","99075",null,null,null,null,"Dablon (080810)","080810",null,"Kuujjuarapik TI (99877)","99877"]
[null,null,null,null,null,null,"La Bostonnais M  (90017)","90017",null,null,null,null,"D'Aillon (062070)","062070",null,"Kuujjuarapik VN (99075)","99075"]
[null,null,null,null,null,null,"La Conception M  (78115)","78115",null,null,null,null,"Dalibaire (021510)","021510",null,"La Bostonnais M  (90017)","90017"]
[null,null,null,null,null,null,"La Corne M  (88030)","88030",null,null,null,null,"Dalmas (081020)","081020",null,"La Conception M  (78115)","78115"]
[null,null,null,null,null,null,"La Doré P  (91050)","91050",null,null,null,null,"Dalquier (072140)","072140",null,"La Corne M  (88030)","88030"]
[null,null,null,null,null,null,"La Durantaye P  (19090)","19090",null,null,null,null,"Dandurand (063360)","063360",null,"La Doré P  (91050)","91050"]
[null,null,null,null,null,null,"La Guadeloupe VL (29030)","29030",null,null,null,null,"Daniel (072900)","072900",null,"La Durantaye P  (19090)","19090"]
[null,null,null,null,null,null,"La Macaza M  (79047)","79047",null,null,null,null,"Dansereau (063330)","063330",null,"La Guadeloupe VL (29030)","29030"]
[null,null,null,null,null,null,"La Malbaie V  (15013)","15013",null,null,null,null,"Danville (041440)","041440",null,"La Macaza M  (79047)","79047"]
[null,null,null,null,null,null,"La Martre M  (04030)","04030",null,null,null,null,"Dasserat (071210)","071210",null,"La Malbaie V  (15013)","15013"]
[null,null,null,null,null,null,"La Minerve M  (78130)","78130",null,null,null,null,"Daubrée (081400)","081400",null,"La Martre M  (04030)","04030"]
[null,null,null,null,null,null,"La Morandière M  (88015)","88015",null,null,null,null,"D'Audhebourg (100310)","100310",null,"La Minerve M  (78130)","78130"]
[null,null,null,null,null,null,"La Motte M  (88045)","88045",null,null,null,null,"De Calonne (062520)","062520",null,"La Morandière M  (88015)","88015"]
[null,null,null,null,null,null,"La Patrie M  (41027)","41027",null,null,null,null,"De Lamarre (081590)","081590",null,"La Motte M  (88045)","88045"]
[null,null,null,null,null,null,"La Pêche M  (82035)","82035",null,null,null,null,"De l'Île (080710)","080710",null,"La Patrie M  (41027)","41027"]
[null,null,null,null,null,null,"La Pocatière V  (14085)","14085",null,null,null,null,"De Monts (100940)","100940",null,"La Pêche M  (82035)","82035"]
[null,null,null,null,null,null,"La Prairie V  (67015)","67015",null,null,null,null,"De Salaberry (051490)","051490",null,"La Pocatière V  (14085)","14085"]
[null,null,null,null,null,null,"La Présentation M  (54035)","54035",null,null,null,null,"De Sales (090080)","090080",null,"La Prairie V  (67015)","67015"]
[null,null,null,null,null,null,"La Rédemption P  (09005)","09005",null,null,null,null,"Décarie (061540)","061540",null,"La Présentation M  (54035)","54035"]
[null,null,null,null,null,null,"La Reine M  (87080)","87080",null,null,null,null,"Déchêne (080910)","080910",null,"La Rédemption P  (09005)","09005"]
[null,null,null,null,null,null,"La Romaine R  (98804)","98804",null,null,null,null,"Demers (030210)","030210",null,"La Reine M  (87080)","87080"]
[null,null,null,null,null,null,"La Sarre V  (87090)","87090",null,null,null,null,"Demeulles (080960)","080960",null,"La Romaine R  (98804)","98804"]
[null,null,null,null,null,null,"La Trinité-des-Monts P  (10010)","10010",null,null,null,null,"Denholm (060700)","060700",null,"La Sarre V  (87090)","87090"]
[null,null,null,null,null,null,"La Tuque V  (90012)","90012",null,null,null,null,"Denonville (030260)","030260",null,"La Trinité-des-Monts P  (10010)","10010"]
[null,null,null,null,null,null,"La Visitation-de-l'Île-Dupas M  (52050)","52050",null,null,null,null,"Denoue (021680)","021680",null,"La Tuque V  (90012)","90012"]
[null,null,null,null,null,null,"La Visitation-de-Yamaska M  (50085)","50085",null,null,null,null,"Dequen (080800)","080800",null,"La Visitation-de-l'Île-Dupas M  (52050)","52050"]
[null,null,null,null,null,null,"Labelle M  (78120)","78120",null,null,null,null,"Dequen (080820)","080820",null,"La Visitation-de-Yamaska M  (50085)","50085"]
[null,null,null,null,null,null,"Labrecque M  (93055)","93055",null,null,null,null,"Derry (060400)","060400",null,"Labelle M  (78120)","78120"]
[null,null,null,null,null,null,"Lac-Achouakan NO (93906)","93906",null,null,null,null,"Des Herbiers (100640)","100640",null,"Labrecque M  (93055)","93055"]
[null,null,null,null,null,null,"Lac-Akonapwehikan NO (79904)","79904",null,null,null,null,"Desandrouins (071110)","071110",null,"Lac-Achouakan NO (93906)","93906"]
[null,null,null,null,null,null,"Lac-à-la-Croix NO (09904)","09904",null,null,null,null,"Desaulniers (063100)","063100",null,"Lac-Akonapwehikan NO (79904)","79904"]
[null,null,null,null,null,null,"Lac-Alfred NO (07912)","07912",null,null,null,null,"Desboues (072560)","072560",null,"Lac-à-la-Croix NO (09904)","09904"]
[null,null,null,null,null,null,"Lac-Ashuapmushuan NO (91902)","91902",null,null,null,null,"Deschambault (091000)","091000",null,"Lac-Alfred NO (07912)","07912"]
[null,null,null,null,null,null,"Lac-au-Brochet NO (95902)","95902",null,null,null,null,"D'Esglis (081520)","081520",null,"Lac-Ashuapmushuan NO (91902)","91902"]
[null,null,null,null,null,null,"Lac-au-Saumon M  (07057)","07057",null,null,null,null,"Desméloizes (072620)","072620",null,"Lac-au-Brochet NO (95902)","95902"]
[null,null,null,null,null,null,"Lac-aux-Sables P  (35010)","35010",null,null,null,null,"Despinassy (072480)","072480",null,"Lac-au-Saumon M  (07057)","07057"]
[null,null,null,null,null,null,"Lac-Bazinet NO (79910)","79910",null,null,null,null,"Desroberts (071040)","071040",null,"Lac-aux-Sables P  (35010)","35010"]
[null,null,null,null,null,null,"Lac-Beauport M  (22040)","22040",null,null,null,null,"Dessane (063340)","063340",null,"Lac-Bazinet NO (79910)","79910"]
[null,null,null,null,null,null,"Lac-Blanc NO (34902)","34902",null,null,null,null,"Destor (071900)","071900",null,"Lac-Beauport M  (22040)","22040"]
[null,null,null,null,null,null,"Lac-Boisbouscache NO (11902)","11902",null,null,null,null,"Devlin (070840)","070840",null,"Lac-Blanc NO (34902)","34902"]
[null,null,null,null,null,null,"Lac-Bouchette M  (91005)","91005",null,null,null,null,"Dionne (030670)","030670",null,"Lac-Boisbouscache NO (11902)","11902"]
[null,null,null,null,null,null,"Lac-Boulé NO (35908)","35908",null,null,null,null,"Disson (072580)","072580",null,"Lac-Bouchette M  (91005)","91005"]
[null,null,null,null,null,null,"Lac-Brome V  (46075)","46075",null,null,null,null,"Ditchfield (040050)","040050",null,"Lac-Boulé NO (35908)","35908"]
[null,null,null,null,null,null,"Lac-Cabasta NO (62919)","62919",null,null,null,null,"Ditton (040300)","040300",null,"Lac-Brome V  (46075)","46075"]
[null,null,null,null,null,null,"Lac-Casault NO (07908)","07908",null,null,null,null,"Dixville (040360)","040360",null,"Lac-Cabasta NO (62919)","62919"]
[null,null,null,null,null,null,"Lac-Chicobi NO (88904)","88904",null,null,null,null,"Dolbeau (081010)","081010",null,"Lac-Casault NO (07908)","07908"]
[null,null,null,null,null,null,"Lac-Croche NO (22902)","22902",null,null,null,null,"Dollard (071710)","071710",null,"Lac-Chicobi NO (88904)","88904"]
[null,null,null,null,null,null,"Lac-De La Bidière NO (79912)","79912",null,null,null,null,"Doncaster (051460)","051460",null,"Lac-Croche NO (22902)","22902"]
[null,null,null,null,null,null,"Lac-Delage V  (22030)","22030",null,null,null,null,"Dorion (070440)","070440",null,"Lac-De La Bidière NO (79912)","79912"]
[null,null,null,null,null,null,"Lac-de-la-Maison-de-Pierre NO (79916)","79916",null,null,null,null,"Dorset (040180)","040180",null,"Lac-Delage V  (22030)","22030"]
[null,null,null,null,null,null,"Lac-de-la-Pomme NO (79902)","79902",null,null,null,null,"Douay (072840)","072840",null,"Lac-de-la-Maison-de-Pierre NO (79916)","79916"]
[null,null,null,null,null,null,"Lac-des-Aigles M  (13060)","13060",null,null,null,null,"Doucet (071680)","071680",null,"Lac-de-la-Pomme NO (79902)","79902"]
[null,null,null,null,null,null,"Lac-des-Dix-Milles NO (62914)","62914",null,null,null,null,"Douglas (020160)","020160",null,"Lac-des-Aigles M  (13060)","13060"]
[null,null,null,null,null,null,"Lac-des-Eaux-Mortes NO (09902)","09902",null,null,null,null,"Drapeau (081600)","081600",null,"Lac-des-Dix-Milles NO (62914)","62914"]
[null,null,null,null,null,null,"Lac-des-Écorces M  (79078)","79078",null,null,null,null,"Drummondville  (quartier est) (042640)","042640",null,"Lac-des-Eaux-Mortes NO (09902)","09902"]
[null,null,null,null,null,null,"Lac-Despinassy NO (88902)","88902",null,null,null,null,"Drummondville  (quartier nord) (042660)","042660",null,"Lac-des-Écorces M  (79078)","79078"]
[null,null,null,null,null,null,"Lac-des-Plages M  (80130)","80130",null,null,null,null,"Drummondville  (quartier sud) (042650)","042650",null,"Lac-Despinassy NO (88902)","88902"]
[null,null,null,null,null,null,"Lac-des-Seize-Îles M  (77055)","77055",null,null,null,null,"Drummondville (quartier ouest) (042630)","042630",null,"Lac-des-Plages M  (80130)","80130"]
[null,null,null,null,null,null,"Lac-Devenyns NO (62904)","62904",null,null,null,null,"Du Creux (081720)","081720",null,"Lac-des-Seize-Îles M  (77055)","77055"]
[null,null,null,null,null,null,"Lac-Douaire NO (79922)","79922",null,null,null,null,"Du Thet (101550)","101550",null,"Lac-Devenyns NO (62904)","62904"]
[null,null,null,null,null,null,"Lac-Drolet M  (30080)","30080",null,null,null,null,"Dubuisson (071540)","071540",null,"Lac-Douaire NO (79922)","79922"]
[null,null,null,null,null,null,"Lac-du-Cerf M  (79015)","79015",null,null,null,null,"Ducharme (081490)","081490",null,"Lac-Drolet M  (30080)","30080"]
[null,null,null,null,null,null,"Lac-Duparquet NO (87902)","87902",null,null,null,null,"Duchesnay (021620)","021620",null,"Lac-du-Cerf M  (79015)","79015"]
[null,null,null,null,null,null,"Lac-du-Taureau NO (62922)","62922",null,null,null,null,"Ducros (072080)","072080",null,"Lac-Duparquet NO (87902)","87902"]
[null,null,null,null,null,null,"Lac-Édouard M  (90027)","90027",null,null,null,null,"Dudley (061160)","061160",null,"Lac-du-Taureau NO (62922)","62922"]
[null,null,null,null,null,null,"Lac-Ernest NO (79924)","79924",null,null,null,null,"Dudswell (041490)","041490",null,"Lac-Édouard M  (90027)","90027"]
[null,null,null,null,null,null,"Lac-Etchemin M  (28053)","28053",null,null,null,null,"Dufay (071200)","071200",null,"Lac-Ernest NO (79924)","79924"]
[null,null,null,null,null,null,"Lac-Frontière M  (18010)","18010",null,null,null,null,"Dufferin (081240)","081240",null,"Lac-Etchemin M  (28053)","28053"]
[null,null,null,null,null,null,"Lac-Granet NO (89912)","89912",null,null,null,null,"Dufresnoy (071380)","071380",null,"Lac-Frontière M  (18010)","18010"]
[null,null,null,null,null,null,"Lac-Huron NO (10902)","10902",null,null,null,null,"Dugal (020510)","020510",null,"Lac-Granet NO (89912)","89912"]
[null,null,null,null,null,null,"Lachute V  (76020)","76020",null,null,null,null,"Duhamel (070760)","070760",null,"Lac-Huron NO (10902)","10902"]
[null,null,null,null,null,null,"Lac-Jacques-Cartier NO (21904)","21904",null,null,null,null,"Dumais (081260)","081260",null,"Lachute V  (76020)","76020"]
[null,null,null,null,null,null,"Lac-Jérôme NO (98904)","98904",null,null,null,null,"Dumas (080040)","080040",null,"Lac-Jacques-Cartier NO (21904)","21904"]
[null,null,null,null,null,null,"Lac-John R  (97810)","97810",null,null,null,null,"Dumoulin (063310)","063310",null,"Lac-Jérôme NO (98904)","98904"]
[null,null,null,null,null,null,"Lac-Juillet NO (97912)","97912",null,null,null,null,"Dundee (050220)","050220",null,"Lac-John R  (97810)","97810"]
[null,null,null,null,null,null,"Lac-Lapeyrère NO (34906)","34906",null,null,null,null,"Dunham (040600)","040600",null,"Lac-Juillet NO (97912)","97912"]
[null,null,null,null,null,null,"Lac-Legendre NO (62910)","62910",null,null,null,null,"Dunham (040610)","040610",null,"Lac-Lapeyrère NO (34906)","34906"]
[null,null,null,null,null,null,"Lac-Lenôtre NO (83906)","83906",null,null,null,null,"Duparquet (071860)","071860",null,"Lac-Legendre NO (62910)","62910"]
[null,null,null,null,null,null,"Lac-Marguerite NO (79926)","79926",null,null,null,null,"Duparquet (071880)","071880",null,"Lac-Lenôtre NO (83906)","83906"]
[null,null,null,null,null,null,"Lac-Masketsi NO (35902)","35902",null,null,null,null,"Duplessis (072800)","072800",null,"Lac-Marguerite NO (79926)","79926"]
[null,null,null,null,null,null,"Lac-Matapédia NO (07914)","07914",null,null,null,null,"Dupont (062330)","062330",null,"Lac-Masketsi NO (35902)","35902"]
[null,null,null,null,null,null,"Lac-Matawin NO (62908)","62908",null,null,null,null,"Duprat (071400)","071400",null,"Lac-Matapédia NO (07914)","07914"]
[null,null,null,null,null,null,"Lac-Mégantic V  (30030)","30030",null,null,null,null,"Dupuy (072300)","072300",null,"Lac-Matawin NO (62908)","62908"]
[null,null,null,null,null,null,"Lac-Metei NO (89908)","89908",null,null,null,null,"Duquesne (020760)","020760",null,"Lac-Mégantic V  (30030)","30030"]
[null,null,null,null,null,null,"Lac-Minaki NO (62902)","62902",null,null,null,null,"Durham (041480)","041480",null,"Lac-Metei NO (89908)","89908"]
[null,null,null,null,null,null,"Lac-Ministuk NO (94928)","94928",null,null,null,null,"Durocher (080440)","080440",null,"Lac-Minaki NO (62902)","62902"]
[null,null,null,null,null,null,"Lac-Moncouche NO (93904)","93904",null,null,null,null,"Duval (100560)","100560",null,"Lac-Ministuk NO (94928)","94928"]
[null,null,null,null,null,null,"Lac-Montanier NO (86906)","86906",null,null,null,null,"Duverny (072120)","072120",null,"Lac-Moncouche NO (93904)","93904"]
[null,null,null,null,null,null,"Lac-Moselle NO (83908)","83908",null,null,null,null,"Eardley (060640)","060640",null,"Lac-Montanier NO (86906)","86906"]
[null,null,null,null,null,null,"Lac-Nilgaut NO (84902)","84902",null,null,null,null,"Eaton (040280)","040280",null,"Lac-Moselle NO (83908)","83908"]
[null,null,null,null,null,null,"Lac-Normand NO (35904)","35904",null,null,null,null,"Éboulements (090240)","090240",null,"Lac-Nilgaut NO (84902)","84902"]
[null,null,null,null,null,null,"Lacolle M  (56023)","56023",null,null,null,null,"Écureuils (090900)","090900",null,"Lac-Normand NO (35904)","35904"]
[null,null,null,null,null,null,"Lac-Oscar NO (79914)","79914",null,null,null,null,"Eddy (070610)","070610",null,"Lacolle M  (56023)","56023"]
[null,null,null,null,null,null,"Lac-Pikauba NO (16902)","16902",null,null,null,null,"Edwards (070620)","070620",null,"Lac-Oscar NO (79914)","79914"]
[null,null,null,null,null,null,"Lac-Poulin VL (29095)","29095",null,null,null,null,"Egan (060910)","060910",null,"Lac-Pikauba NO (16902)","16902"]
[null,null,null,null,null,null,"Lac-Pythonga NO (83902)","83902",null,null,null,null,"Elgin (050190)","050190",null,"Lac-Poulin VL (29095)","29095"]
[null,null,null,null,null,null,"Lac-Rapide R  (83804)","83804",null,null,null,null,"Ely (041260)","041260",null,"Lac-Pythonga NO (83902)","83902"]
[null,null,null,null,null,null,"Lac-Saguay VL (79060)","79060",null,null,null,null,"Émard (073040)","073040",null,"Lac-Rapide R  (83804)","83804"]
[null,null,null,null,null,null,"Lac-Sainte-Marie M  (83020)","83020",null,null,null,null,"Emberton (040250)","040250",null,"Lac-Saguay VL (79060)","79060"]
[null,null,null,null,null,null,"Lac-Saint-Joseph V  (22015)","22015",null,null,null,null,"Escoumins (101120)","101120",null,"Lac-Sainte-Marie M  (83020)","83020"]
[null,null,null,null,null,null,"Lac-Saint-Paul M  (79105)","79105",null,null,null,null,"Esher (073160)","073160",null,"Lac-Saint-Joseph V  (22015)","22015"]
[null,null,null,null,null,null,"Lac-Santé NO (62916)","62916",null,null,null,null,"Estcourt (030050)","030050",null,"Lac-Saint-Paul M  (79105)","79105"]
[null,null,null,null,null,null,"Lac-Sergent V  (34120)","34120",null,null,null,null,"Estrades (073190)","073190",null,"Lac-Santé NO (62916)","62916"]
[null,null,null,null,null,null,"Lac-Simon M  (80095)","80095",null,null,null,null,"Estrées (073170)","073170",null,"Lac-Sergent V  (34120)","34120"]
[null,null,null,null,null,null,"Lac-Simon R  (89804)","89804",null,null,null,null,"Eudes (101030)","101030",null,"Lac-Simon M  (80095)","80095"]
[null,null,null,null,null,null,"Lac-Supérieur M  (78095)","78095",null,null,null,null,"Fabre (070720)","070720",null,"Lac-Simon R  (89804)","89804"]
[null,null,null,null,null,null,"Lac-Surimau NO (86904)","86904",null,null,null,null,"Fagundez (101210)","101210",null,"Lac-Supérieur M  (78095)","78095"]
[null,null,null,null,null,null,"Lac-Tremblant-Nord M  (78127)","78127",null,null,null,null,"Faillon (071730)","071730",null,"Lac-Surimau NO (86904)","86904"]
[null,null,null,null,null,null,"Lac-Vacher NO (97914)","97914",null,null,null,null,"Falardeau (080460)","080460",null,"Lac-Tremblant-Nord M  (78127)","78127"]
[null,null,null,null,null,null,"Lac-Wagwabika NO (79906)","79906",null,null,null,null,"Faribault (021390)","021390",null,"Lac-Vacher NO (97914)","97914"]
[null,null,null,null,null,null,"Lac-Walker NO (97904)","97904",null,null,null,null,"Farnham (040500)","040500",null,"Lac-Wagwabika NO (79906)","79906"]
[null,null,null,null,null,null,"Laforce M  (85070)","85070",null,null,null,null,"Farnham (040650)","040650",null,"Lac-Walker NO (97904)","97904"]
[null,null,null,null,null,null,"Lalemant NO (94926)","94926",null,null,null,null,"Faucher (071440)","071440",null,"Laforce M  (85070)","85070"]
[null,null,null,null,null,null,"Lamarche M  (93060)","93060",null,null,null,null,"Ferland (080110)","080110",null,"Lalemant NO (94926)","94926"]
[null,null,null,null,null,null,"Lambton M  (30095)","30095",null,null,null,null,"Ferme-Neuve (061480)","061480",null,"Lamarche M  (93060)","93060"]
[null,null,null,null,null,null,"L'Ancienne-Lorette V  (23057)","23057",null,null,null,null,"Fermont (062740)","062740",null,"Lambton M  (30095)","30095"]
[null,null,null,null,null,null,"Landrienne CT (88035)","88035",null,null,null,null,"Fiedmont (071780)","071780",null,"L'Ancienne-Lorette V  (23057)","23057"]
[null,null,null,null,null,null,"L'Ange-Gardien M  (21040)","21040",null,null,null,null,"Figuery (071960)","071960",null,"Landrienne CT (88035)","88035"]
[null,null,null,null,null,null,"L'Ange-Gardien M  (82005)","82005",null,null,null,null,"Fitzpatrick (100900)","100900",null,"L'Ange-Gardien M  (21040)","21040"]
[null,null,null,null,null,null,"Laniel NO (85905)","85905",null,null,null,null,"Flahault (021780)","021780",null,"L'Ange-Gardien M  (82005)","82005"]
[null,null,null,null,null,null,"Lanoraie M  (52017)","52017",null,null,null,null,"Fléché (100850)","100850",null,"Laniel NO (85905)","85905"]
[null,null,null,null,null,null,"L'Anse-Saint-Jean M  (94210)","94210",null,null,null,null,"Fleuriau (020710)","020710",null,"Lanoraie M  (52017)","52017"]
[null,null,null,null,null,null,"Lantier M  (78015)","78015",null,null,null,null,"Flynn (020640)","020640",null,"L'Anse-Saint-Jean M  (94210)","94210"]
[null,null,null,null,null,null,"Larouche M  (94265)","94265",null,null,null,null,"Fontbrune (061530)","061530",null,"Lantier M  (78015)","78015"]
[null,null,null,null,null,null,"L'Ascension M  (79050)","79050",null,null,null,null,"Forgues (101370)","101370",null,"Larouche M  (94265)","94265"]
[null,null,null,null,null,null,"L'Ascension-de-Notre-Seigneur P  (93065)","93065",null,null,null,null,"Forsyth (040200)","040200",null,"L'Ascension M  (79050)","79050"]
[null,null,null,null,null,null,"L'Ascension-de-Patapédia M  (06060)","06060",null,null,null,null,"Fort-Coulonge (070260)","070260",null,"L'Ascension-de-Notre-Seigneur P  (93065)","93065"]
[null,null,null,null,null,null,"L'Assomption V  (60028)","60028",null,null,null,null,"Fournier (030690)","030690",null,"L'Ascension-de-Patapédia M  (06060)","06060"]
[null,null,null,null,null,null,"Latulipe-et-Gaboury CU (85060)","85060",null,null,null,null,"Fournière (071560)","071560",null,"L'Assomption V  (60028)","60028"]
[null,null,null,null,null,null,"Launay CT (88080)","88080",null,null,null,null,"Fox (020280)","020280",null,"Latulipe-et-Gaboury CU (85060)","85060"]
[null,null,null,null,null,null,"Laurier-Station VL (33060)","33060",null,null,null,null,"Franklin (050170)","050170",null,"Launay CT (88080)","88080"]
[null,null,null,null,null,null,"Laurierville M  (32072)","32072",null,null,null,null,"Franquelin (100960)","100960",null,"Laurier-Station VL (33060)","33060"]
[null,null,null,null,null,null,"Laval V  (65005)","65005",null,null,null,null,"Franquet (072830)","072830",null,"Laurierville M  (32072)","32072"]
[null,null,null,null,null,null,"Lavaltrie V  (52007)","52007",null,null,null,null,"Fraserville (030370)","030370",null,"Laval V  (65005)","65005"]
[null,null,null,null,null,null,"L'Avenir M  (49025)","49025",null,null,null,null,"Frelighsburg (040520)","040520",null,"Lavaltrie V  (52007)","52007"]
[null,null,null,null,null,null,"Laverlochère-Angliers M  (85052)","85052",null,null,null,null,"Gaboury (070810)","070810",null,"L'Avenir M  (49025)","49025"]
[null,null,null,null,null,null,"Lawrenceville VL (42045)","42045",null,null,null,null,"Gagné (080470)","080470",null,"Laverlochère-Angliers M  (85052)","85052"]
[null,null,null,null,null,null,"Lebel-sur-Quévillon V  (99005)","99005",null,null,null,null,"Gagnon (061040)","061040",null,"Lawrenceville VL (42045)","42045"]
[null,null,null,null,null,null,"Leclercville M  (33123)","33123",null,null,null,null,"Galinée (072880)","072880",null,"Lebel-sur-Quévillon V  (99005)","99005"]
[null,null,null,null,null,null,"Lefebvre M  (49020)","49020",null,null,null,null,"Galt (020230)","020230",null,"Leclercville M  (33123)","33123"]
[null,null,null,null,null,null,"Lejeune M  (13050)","13050",null,null,null,null,"Gamelin (062050)","062050",null,"Lefebvre M  (49020)","49020"]
[null,null,null,null,null,null,"Lemieux M  (38020)","38020",null,null,null,null,"Gand (072940)","072940",null,"Lejeune M  (13050)","13050"]
[null,null,null,null,null,null,"L'Épiphanie V  (60037)","60037",null,null,null,null,"Garin (020400)","020400",null,"Lemieux M  (38020)","38020"]
[null,null,null,null,null,null,"Léry V  (67055)","67055",null,null,null,null,"Garneau (030660)","030660",null,"L'Épiphanie V  (60037)","60037"]
[null,null,null,null,null,null,"Les Bergeronnes M  (95018)","95018",null,null,null,null,"Garnier (080740)","080740",null,"Léry V  (67055)","67055"]
[null,null,null,null,null,null,"Les Cèdres M  (71050)","71050",null,null,null,null,"Garreau (081650)","081650",null,"Les Bergeronnes M  (95018)","95018"]
[null,null,null,null,null,null,"Les Coteaux M  (71033)","71033",null,null,null,null,"Garthby (041600)","041600",null,"Les Cèdres M  (71050)","71050"]
[null,null,null,null,null,null,"Les Éboulements M  (16048)","16048",null,null,null,null,"Gaspé (020200)","020200",null,"Les Coteaux M  (71033)","71033"]
[null,null,null,null,null,null,"Les Escoumins M  (95025)","95025",null,null,null,null,"Gauthier (062300)","062300",null,"Les Éboulements M  (16048)","16048"]
[null,null,null,null,null,null,"Les Hauteurs M  (09015)","09015",null,null,null,null,"Gauvin (081540)","081540",null,"Les Escoumins M  (95025)","95025"]
[null,null,null,null,null,null,"Les Îles-de-la-Madeleine M  (01023)","01023",null,null,null,null,"Gayhurst (040150)","040150",null,"Les Hauteurs M  (09015)","09015"]
[null,null,null,null,null,null,"Les Lacs-du-Témiscamingue NO (85907)","85907",null,null,null,null,"Gendreau (070680)","070680",null,"Les Îles-de-la-Madeleine M  (01023)","01023"]
[null,null,null,null,null,null,"Les Méchins M  (08005)","08005",null,null,null,null,"Gendron (063470)","063470",null,"Les Lacs-du-Témiscamingue NO (85907)","85907"]
[null,null,null,null,null,null,"Lévis V  (25213)","25213",null,null,null,null,"Girard (081280)","081280",null,"Les Méchins M  (08005)","08005"]
[null,null,null,null,null,null,"L'Île-Cadieux V  (71095)","71095",null,null,null,null,"Glandelet (073100)","073100",null,"Lévis V  (25213)","25213"]
[null,null,null,null,null,null,"L'Île-d'Anticosti M  (98020)","98020",null,null,null,null,"Godbout (101630)","101630",null,"L'Île-Cadieux V  (71095)","71095"]
[null,null,null,null,null,null,"L'Île-Dorval V  (66092)","66092",null,null,null,null,"Godefroy (101220)","101220",null,"L'Île-d'Anticosti M  (98020)","98020"]
[null,null,null,null,null,null,"L'Île-du-Grand-Calumet M  (84035)","84035",null,null,null,null,"Godmanchester (050210)","050210",null,"L'Île-Dorval V  (66092)","66092"]
[null,null,null,null,null,null,"L'Île-Perrot V  (71060)","71060",null,null,null,null,"Gore (060140)","060140",null,"L'Île-du-Grand-Calumet M  (84035)","84035"]
[null,null,null,null,null,null,"Lingwick CT (41085)","41085",null,null,null,null,"Gosselin (073000)","073000",null,"L'Île-Perrot V  (71060)","71060"]
[null,null,null,null,null,null,"Linton NO (34904)","34904",null,null,null,null,"Gouin (062080)","062080",null,"Lingwick CT (41085)","41085"]
[null,null,null,null,null,null,"L'Isle-aux-Allumettes M  (84082)","84082",null,null,null,null,"Goynish (100600)","100600",null,"Linton NO (34904)","34904"]
[null,null,null,null,null,null,"L'Isle-aux-Coudres M  (16023)","16023",null,null,null,null,"Gracefield (060810)","060810",null,"L'Isle-aux-Allumettes M  (84082)","84082"]
[null,null,null,null,null,null,"L'Islet M  (17078)","17078",null,null,null,null,"Granby (041170)","041170",null,"L'Isle-aux-Coudres M  (16023)","16023"]
[null,null,null,null,null,null,"L'Isle-Verte M  (12043)","12043",null,null,null,null,"Granby (041180)","041180",null,"L'Islet M  (17078)","17078"]
[null,null,null,null,null,null,"Listuguj R  (06804)","06804",null,null,null,null,"Grand-Calumet (070140)","070140",null,"L'Isle-Verte M  (12043)","12043"]
[null,null,null,null,null,null,"Litchfield M  (84040)","84040",null,null,null,null,"Grande-Baie (080140)","080140",null,"Listuguj R  (06804)","06804"]
[null,null,null,null,null,null,"Lochaber CT (80055)","80055",null,null,null,null,"Grande-Rivière (020040)","020040",null,"Litchfield M  (84040)","84040"]
[null,null,null,null,null,null,"Lochaber-Partie-Ouest CT (80060)","80060",null,null,null,null,"Grande-Vallée-des-Monts-Notre-Dame (020320)","020320",null,"Lochaber CT (80055)","80055"]
[null,null,null,null,null,null,"Longue-Pointe-de-Mingan M  (98045)","98045",null,null,null,null,"Grandison (051500)","051500",null,"Lochaber-Partie-Ouest CT (80060)","80060"]
[null,null,null,null,null,null,"Longue-Rive M  (95032)","95032",null,null,null,null,"Grantham (041070)","041070",null,"Longue-Pointe-de-Mingan M  (98045)","98045"]
[null,null,null,null,null,null,"Longueuil V  (58227)","58227",null,null,null,null,"Gravel (061560)","061560",null,"Longue-Rive M  (95032)","95032"]
[null,null,null,null,null,null,"Lorraine V  (73025)","73025",null,null,null,null,"Grenier (100880)","100880",null,"Longueuil V  (58227)","58227"]
[null,null,null,null,null,null,"Lorrainville M  (85037)","85037",null,null,null,null,"Grenville (060060)","060060",null,"Lorraine V  (73025)","73025"]
[null,null,null,null,null,null,"Lotbinière M  (33115)","33115",null,null,null,null,"Grenville (060080)","060080",null,"Lorrainville M  (85037)","85037"]
[null,null,null,null,null,null,"Louiseville V  (51015)","51015",null,null,null,null,"Grenville (060100)","060100",null,"Lotbinière M  (33115)","33115"]
[null,null,null,null,null,null,"Low CT (83010)","83010",null,null,null,null,"Grevet (073220)","073220",null,"Louiseville V  (51015)","51015"]
[null,null,null,null,null,null,"Lyster M  (32065)","32065",null,null,null,null,"Grondines (091010)","091010",null,"Low CT (83010)","83010"]
[null,null,null,null,null,null,"Macamic V  (87058)","87058",null,null,null,null,"Grosse-Île (010050)","010050",null,"Lyster M  (32065)","32065"]
[null,null,null,null,null,null,"Maddington Falls M  (39165)","39165",null,null,null,null,"Guay (073280)","073280",null,"Macamic V  (87058)","87058"]
[null,null,null,null,null,null,"Magog V  (45072)","45072",null,null,null,null,"Guérin (070940)","070940",null,"Maddington Falls M  (39165)","39165"]
[null,null,null,null,null,null,"Malartic V  (89015)","89015",null,null,null,null,"Gueslis (101340)","101340",null,"Magog V  (45072)","45072"]
[null,null,null,null,null,null,"Maliotenam R  (97804)","97804",null,null,null,null,"Guigues (070910)","070910",null,"Malartic V  (89015)","89015"]
[null,null,null,null,null,null,"Manawan R  (62802)","62802",null,null,null,null,"Guillet (070820)","070820",null,"Maliotenam R  (97804)","97804"]
[null,null,null,null,null,null,"Mandeville M  (52095)","52095",null,null,null,null,"Guyenne (072400)","072400",null,"Manawan R  (62802)","62802"]
[null,null,null,null,null,null,"Maniwaki V  (83065)","83065",null,null,null,null,"Hackett (063180)","063180",null,"Mandeville M  (52095)","52095"]
[null,null,null,null,null,null,"Manseau M  (38028)","38028",null,null,null,null,"Halifax (041800)","041800",null,"Maniwaki V  (83065)","83065"]
[null,null,null,null,null,null,"Mansfield-et-Pontefract M  (84065)","84065",null,null,null,null,"Ham (041530)","041530",null,"Manseau M  (38028)","38028"]
[null,null,null,null,null,null,"Maria M  (06005)","06005",null,null,null,null,"Hamel (063700)","063700",null,"Mansfield-et-Pontefract M  (84065)","84065"]
[null,null,null,null,null,null,"Maricourt M  (42065)","42065",null,null,null,null,"Hamilton (020410)","020410",null,"Maria M  (06005)","06005"]
[null,null,null,null,null,null,"Marieville V  (55048)","55048",null,null,null,null,"Hamon (070560)","070560",null,"Maricourt M  (42065)","42065"]
[null,null,null,null,null,null,"Marsoui VL (04025)","04025",null,null,null,null,"Hampden (040110)","040110",null,"Marieville V  (55048)","55048"]
[null,null,null,null,null,null,"Marston CT (30035)","30035",null,null,null,null,"Ham-Sud (041540)","041540",null,"Marsoui VL (04025)","04025"]
[null,null,null,null,null,null,"Martinville M  (44060)","44060",null,null,null,null,"Harrington (060110)","060110",null,"Marston CT (30035)","30035"]
[null,null,null,null,null,null,"Mascouche V  (64015)","64015",null,null,null,null,"Hartwell (060460)","060460",null,"Martinville M  (44060)","44060"]
[null,null,null,null,null,null,"Mashteuiatsh R  (91802)","91802",null,null,null,null,"Harvey (080410)","080410",null,"Mascouche V  (64015)","64015"]
[null,null,null,null,null,null,"Maskinongé M  (51008)","51008",null,null,null,null,"Hatley (040430)","040430",null,"Mashteuiatsh R  (91802)","91802"]
[null,null,null,null,null,null,"Massueville VL (53010)","53010",null,null,null,null,"Havelock (050160)","050160",null,"Maskinongé M  (51008)","51008"]
[null,null,null,null,null,null,"Matagami V  (99015)","99015",null,null,null,null,"Havre-Saint-Pierre (100700)","100700",null,"Massueville VL (53010)","53010"]
[null,null,null,null,null,null,"Matane V  (08053)","08053",null,null,null,null,"Hébécourt (071840)","071840",null,"Matagami V  (99015)","99015"]
[null,null,null,null,null,null,"Matapédia M  (06045)","06045",null,null,null,null,"Hébert (080080)","080080",null,"Matane V  (08053)","08053"]
[null,null,null,null,null,null,"Matchi-Manitou NO (89902)","89902",null,null,null,null,"Hébertville (080620)","080620",null,"Matapédia M  (06045)","06045"]
[null,null,null,null,null,null,"Matimekosh R  (97808)","97808",null,null,null,null,"Hemmingford (050140)","050140",null,"Matchi-Manitou NO (89902)","89902"]
[null,null,null,null,null,null,"Mayo M  (80065)","80065",null,null,null,null,"Hemmingford (050150)","050150",null,"Matimekosh R  (97808)","97808"]
[null,null,null,null,null,null,"McMasterville M  (57025)","57025",null,null,null,null,"Hémon (081320)","081320",null,"Mayo M  (80065)","80065"]
[null,null,null,null,null,null,"Melbourne CT (42075)","42075",null,null,null,null,"Hereford (040340)","040340",null,"McMasterville M  (57025)","57025"]
[null,null,null,null,null,null,"Mercier V  (67045)","67045",null,null,null,null,"Hesry (101190)","101190",null,"Melbourne CT (42075)","42075"]
[null,null,null,null,null,null,"Messines M  (83060)","83060",null,null,null,null,"Hinchinbrook (050180)","050180",null,"Mercier V  (67045)","67045"]
[null,null,null,null,null,null,"Métabetchouan--Lac-à-la-Croix V  (93012)","93012",null,null,null,null,"Hincks (060740)","060740",null,"Messines M  (83060)","83060"]
[null,null,null,null,null,null,"Métis-sur-Mer V  (09048)","09048",null,null,null,null,"Hind (101320)","101320",null,"Métabetchouan--Lac-à-la-Croix V  (93012)","93012"]
[null,null,null,null,null,null,"Milan M  (30040)","30040",null,null,null,null,"Hochelaga (050650)","050650",null,"Métis-sur-Mer V  (09048)","09048"]
[null,null,null,null,null,null,"Mille-Isles M  (76030)","76030",null,null,null,null,"Hocquart (030200)","030200",null,"Milan M  (30040)","30040"]
[null,null,null,null,null,null,"Mingan R  (98808)","98808",null,null,null,null,"Holland (021700)","021700",null,"Mille-Isles M  (76030)","76030"]
[null,null,null,null,null,null,"Mirabel V  (74005)","74005",null,null,null,null,"Hope (020360)","020360",null,"Mingan R  (98808)","98808"]
[null,null,null,null,null,null,"Mistissini TC (99804)","99804",null,null,null,null,"Horton (041970)","041970",null,"Mirabel V  (74005)","74005"]
[null,null,null,null,null,null,"Mistissini VC (99030)","99030",null,null,null,null,"Houde (062550)","062550",null,"Mistissini TC (99804)","99804"]
[null,null,null,null,null,null,"Moffet M  (85075)","85075",null,null,null,null,"Howard (060200)","060200",null,"Mistissini VC (99030)","99030"]
[null,null,null,null,null,null,"Mont-Albert NO (04902)","04902",null,null,null,null,"Huddersfield (070400)","070400",null,"Moffet M  (85075)","85075"]
[null,null,null,null,null,null,"Mont-Alexandre NO (02902)","02902",null,null,null,null,"Hudon (081140)","081140",null,"Mont-Albert NO (04902)","04902"]
[null,null,null,null,null,null,"Mont-Apica NO (93902)","93902",null,null,null,null,"Hull (060560)","060560",null,"Mont-Alexandre NO (02902)","02902"]
[null,null,null,null,null,null,"Montcalm M  (78055)","78055",null,null,null,null,"Hull (060580)","060580",null,"Mont-Apica NO (93902)","93902"]
[null,null,null,null,null,null,"Mont-Carmel M  (14005)","14005",null,null,null,null,"Humqui (021140)","021140",null,"Montcalm M  (78055)","78055"]
[null,null,null,null,null,null,"Montcerf-Lytton M  (83088)","83088",null,null,null,null,"Hunterstown (062510)","062510",null,"Mont-Carmel M  (14005)","14005"]
[null,null,null,null,null,null,"Montebello M  (80010)","80010",null,null,null,null,"Huntingdon (050200)","050200",null,"Montcerf-Lytton M  (83088)","83088"]
[null,null,null,null,null,null,"Mont-Élie NO (15902)","15902",null,null,null,null,"Iberville (051660)","051660",null,"Montebello M  (80010)","80010"]
[null,null,null,null,null,null,"Mont-Joli V  (09077)","09077",null,null,null,null,"Iberville (101110)","101110",null,"Mont-Élie NO (15902)","15902"]
[null,null,null,null,null,null,"Mont-Laurier V  (79088)","79088",null,null,null,null,"Île-au-Loup (010080)","010080",null,"Mont-Joli V  (09077)","09077"]
[null,null,null,null,null,null,"Montmagny V  (18050)","18050",null,null,null,null,"Île-aux-Lièvres (030610)","030610",null,"Mont-Laurier V  (79088)","79088"]
[null,null,null,null,null,null,"Montpellier M  (80090)","80090",null,null,null,null,"Île-Bizard (050810)","050810",null,"Montmagny V  (18050)","18050"]
[null,null,null,null,null,null,"Montréal V  (66023)","66023",null,null,null,null,"Île-Bonaventure (020010)","020010",null,"Montpellier M  (80090)","80090"]
[null,null,null,null,null,null,"Montréal-Est V  (66007)","66007",null,null,null,null,"Île-Brion (010060)","010060",null,"Montréal V  (66023)","66023"]
[null,null,null,null,null,null,"Montréal-Ouest V  (66047)","66047",null,null,null,null,"Île-Coffin (010070)","010070",null,"Montréal-Est V  (66007)","66007"]
[null,null,null,null,null,null,"Mont-Royal V  (66072)","66072",null,null,null,null,"Île-d'Entrée (010020)","010020",null,"Montréal-Ouest V  (66047)","66047"]
[null,null,null,null,null,null,"Mont-Saint-Grégoire M  (56097)","56097",null,null,null,null,"Île-des-Allumettes (070300)","070300",null,"Mont-Royal V  (66072)","66072"]
[null,null,null,null,null,null,"Mont-Saint-Hilaire V  (57035)","57035",null,null,null,null,"Île-du-Cap-aux-Meules (010030)","010030",null,"Mont-Saint-Grégoire M  (56097)","56097"]
[null,null,null,null,null,null,"Mont-Saint-Michel M  (79110)","79110",null,null,null,null,"Île-du-Corps-Mort (010090)","010090",null,"Mont-Saint-Hilaire V  (57035)","57035"]
[null,null,null,null,null,null,"Mont-Saint-Pierre VL (04015)","04015",null,null,null,null,"Île-du-Havre-Aubert (010010)","010010",null,"Mont-Saint-Michel M  (79110)","79110"]
[null,null,null,null,null,null,"Mont-Tremblant V  (78102)","78102",null,null,null,null,"Île-du-Havre-aux-Maisons (010040)","010040",null,"Mont-Saint-Pierre VL (04015)","04015"]
[null,null,null,null,null,null,"Mont-Valin NO (94930)","94930",null,null,null,null,"Inverness (041810)","041810",null,"Mont-Tremblant V  (78102)","78102"]
[null,null,null,null,null,null,"Morin-Heights M  (77050)","77050",null,null,null,null,"Ireland (041630)","041630",null,"Mont-Valin NO (94930)","94930"]
[null,null,null,null,null,null,"Mulgrave-et-Derry M  (80085)","80085",null,null,null,null,"Isle-Dieu (072860)","072860",null,"Morin-Heights M  (77050)","77050"]
[null,null,null,null,null,null,"Murdochville V  (03025)","03025",null,null,null,null,"Ixworth (030410)","030410",null,"Mulgrave-et-Derry M  (80085)","80085"]
[null,null,null,null,null,null,"Namur M  (80110)","80110",null,null,null,null,"Janssoone (101350)","101350",null,"Murdochville V  (03025)","03025"]
[null,null,null,null,null,null,"Nantes M  (30045)","30045",null,null,null,null,"Jersey (041700)","041700",null,"Namur M  (80110)","80110"]
[null,null,null,null,null,null,"Napierville M  (68030)","68030",null,null,null,null,"Jetté (021040)","021040",null,"Nantes M  (30045)","30045"]
[null,null,null,null,null,null,"Natashquan M  (98025)","98025",null,null,null,null,"Joannès (071310)","071310",null,"Napierville M  (68030)","68030"]
[null,null,null,null,null,null,"Natashquan R  (98806)","98806",null,null,null,null,"Jogues (081040)","081040",null,"Natashquan M  (98025)","98025"]
[null,null,null,null,null,null,"Nédélec CT (85100)","85100",null,null,null,null,"Johan-Beetz (100620)","100620",null,"Natashquan R  (98806)","98806"]
[null,null,null,null,null,null,"Nemaska TC (99808)","99808",null,null,null,null,"Joliette (061840)","061840",null,"Nédélec CT (85100)","85100"]
[null,null,null,null,null,null,"Nemaska VC (99040)","99040",null,null,null,null,"Joliette (062010)","062010",null,"Nemaska TC (99808)","99808"]
[null,null,null,null,null,null,"Neuville V  (34007)","34007",null,null,null,null,"Joly (061100)","061100",null,"Nemaska VC (99040)","99040"]
[null,null,null,null,null,null,"New Carlisle M  (05040)","05040",null,null,null,null,"Jonquière (080280)","080280",null,"Neuville V  (34007)","34007"]
[null,null,null,null,null,null,"New Richmond V  (05070)","05070",null,null,null,null,"Jourdan (073070)","073070",null,"New Carlisle M  (05040)","05040"]
[null,null,null,null,null,null,"Newport M  (41037)","41037",null,null,null,null,"Joutel (072820)","072820",null,"New Richmond V  (05070)","05070"]
[null,null,null,null,null,null,"Nicolet V  (50072)","50072",null,null,null,null,"Jurie (073130)","073130",null,"Newport M  (41037)","41037"]
[null,null,null,null,null,null,"Nominingue M  (79030)","79030",null,null,null,null,"Kégashka (100540)","100540",null,"Nicolet V  (50072)","50072"]
[null,null,null,null,null,null,"Normandin V  (92040)","92040",null,null,null,null,"Kénogami (080300)","080300",null,"Nominingue M  (79030)","79030"]
[null,null,null,null,null,null,"Normétal M  (87115)","87115",null,null,null,null,"Kensington (060860)","060860",null,"Normandin V  (92040)","92040"]
[null,null,null,null,null,null,"North Hatley VL (45050)","45050",null,null,null,null,"Kiamika (061210)","061210",null,"Normétal M  (87115)","87115"]
[null,null,null,null,null,null,"Notre-Dame-Auxiliatrice-de-Buckland P  (19010)","19010",null,null,null,null,"Kilkenny (061700)","061700",null,"North Hatley VL (45050)","45050"]
[null,null,null,null,null,null,"Notre-Dame-de-Bonsecours M  (80015)","80015",null,null,null,null,"Kingsbury (041370)","041370",null,"Notre-Dame-Auxiliatrice-de-Buckland P  (19010)","19010"]
[null,null,null,null,null,null,"Notre-Dame-de-Ham M  (39015)","39015",null,null,null,null,"Kingsey (041950)","041950",null,"Notre-Dame-de-Bonsecours M  (80015)","80015"]
[null,null,null,null,null,null,"Notre-Dame-de-la-Merci M  (62055)","62055",null,null,null,null,"Kingsville (041640)","041640",null,"Notre-Dame-de-Ham M  (39015)","39015"]
[null,null,null,null,null,null,"Notre-Dame-de-la-Paix M  (80020)","80020",null,null,null,null,"La Baie (081690)","081690",null,"Notre-Dame-de-la-Merci M  (62055)","62055"]
[null,null,null,null,null,null,"Notre-Dame-de-la-Salette M  (82010)","82010",null,null,null,null,"La Dauversière (081740)","081740",null,"Notre-Dame-de-la-Paix M  (80020)","80020"]
[null,null,null,null,null,null,"Notre-Dame-de-l'Île-Perrot V  (71065)","71065",null,null,null,null,"La Gorgendière (100480)","100480",null,"Notre-Dame-de-la-Salette M  (82010)","82010"]
[null,null,null,null,null,null,"Notre-Dame-de-Lorette M  (92060)","92060",null,null,null,null,"La Malbaie (090020)","090020",null,"Notre-Dame-de-l'Île-Perrot V  (71065)","71065"]
[null,null,null,null,null,null,"Notre-Dame-de-Lourdes M  (61045)","61045",null,null,null,null,"La Minerve (061120)","061120",null,"Notre-Dame-de-Lorette M  (92060)","92060"]
[null,null,null,null,null,null,"Notre-Dame-de-Lourdes P  (32080)","32080",null,null,null,null,"La Morandière (072110)","072110",null,"Notre-Dame-de-Lourdes M  (61045)","61045"]
[null,null,null,null,null,null,"Notre-Dame-de-Montauban M  (35005)","35005",null,null,null,null,"La Motte (071810)","071810",null,"Notre-Dame-de-Lourdes P  (32080)","32080"]
[null,null,null,null,null,null,"Notre-Dame-de-Pontmain M  (79010)","79010",null,null,null,null,"La Pause (071340)","071340",null,"Notre-Dame-de-Montauban M  (35005)","35005"]
[null,null,null,null,null,null,"Notre-Dame-des-Anges P  (23015)","23015",null,null,null,null,"La Potardière (021530)","021530",null,"Notre-Dame-de-Pontmain M  (79010)","79010"]
[null,null,null,null,null,null,"Notre-Dame-des-Bois M  (30010)","30010",null,null,null,null,"La Présentation (040880)","040880",null,"Notre-Dame-des-Anges P  (23015)","23015"]
[null,null,null,null,null,null,"Notre-Dame-des-Monts M  (15025)","15025",null,null,null,null,"La Reine (072280)","072280",null,"Notre-Dame-des-Bois M  (30010)","30010"]
[null,null,null,null,null,null,"Notre-Dame-des-Neiges M  (11045)","11045",null,null,null,null,"La Reine (072640)","072640",null,"Notre-Dame-des-Monts M  (15025)","15025"]
[null,null,null,null,null,null,"Notre-Dame-des-Pins P  (29120)","29120",null,null,null,null,"La Ribourde (072770)","072770",null,"Notre-Dame-des-Neiges M  (11045)","11045"]
[null,null,null,null,null,null,"Notre-Dame-des-Prairies V  (61030)","61030",null,null,null,null,"La Richardière (100610)","100610",null,"Notre-Dame-des-Pins P  (29120)","29120"]
[null,null,null,null,null,null,"Notre-Dame-des-Sept-Douleurs P  (12045)","12045",null,null,null,null,"La Rivière (021630)","021630",null,"Notre-Dame-des-Prairies V  (61030)","61030"]
[null,null,null,null,null,null,"Notre-Dame-de-Stanbridge M  (46100)","46100",null,null,null,null,"La Salle (091160)","091160",null,"Notre-Dame-des-Sept-Douleurs P  (12045)","12045"]
[null,null,null,null,null,null,"Notre-Dame-du-Bon-Conseil P  (49080)","49080",null,null,null,null,"La Sarre (072310)","072310",null,"Notre-Dame-de-Stanbridge M  (46100)","46100"]
[null,null,null,null,null,null,"Notre-Dame-du-Bon-Conseil VL (49075)","49075",null,null,null,null,"La Sarre (072320)","072320",null,"Notre-Dame-du-Bon-Conseil P  (49080)","49080"]
[null,null,null,null,null,null,"Notre-Dame-du-Laus M  (79005)","79005",null,null,null,null,"La Trappe (081160)","081160",null,"Notre-Dame-du-Bon-Conseil VL (49075)","49075"]
[null,null,null,null,null,null,"Notre-Dame-du-Mont-Carmel P  (37235)","37235",null,null,null,null,"La Vérendrye (021100)","021100",null,"Notre-Dame-du-Laus M  (79005)","79005"]
[null,null,null,null,null,null,"Notre-Dame-du-Nord M  (85090)","85090",null,null,null,null,"La Visitation (Île-Dupas) (062160)","062160",null,"Notre-Dame-du-Mont-Carmel P  (37235)","37235"]
[null,null,null,null,null,null,"Notre-Dame-du-Portage M  (12080)","12080",null,null,null,null,"La Visitation-de-Champlain (062710)","062710",null,"Notre-Dame-du-Nord M  (85090)","85090"]
[null,null,null,null,null,null,"Notre-Dame-du-Rosaire M  (18040)","18040",null,null,null,null,"La Visitation-de-la-Pointe-du-Lac (062640)","062640",null,"Notre-Dame-du-Portage M  (12080)","12080"]
[null,null,null,null,null,null,"Notre-Dame-du-Sacré-Coeur-d'Issoudun P  (33085)","33085",null,null,null,null,"Laas (072520)","072520",null,"Notre-Dame-du-Rosaire M  (18040)","18040"]
[null,null,null,null,null,null,"Nouvelle M  (06020)","06020",null,null,null,null,"Labarre (080310)","080310",null,"Notre-Dame-du-Sacré-Coeur-d'Issoudun P  (33085)","33085"]
[null,null,null,null,null,null,"Noyan M  (56015)","56015",null,null,null,null,"Labelle (061060)","061060",null,"Nouveau-Brunswick (NB000)","NB000"]
[null,null,null,null,null,null,"Obedjiwan R  (90804)","90804",null,null,null,null,"Labelle (061110)","061110",null,"Nouvelle M  (06020)","06020"]
[null,null,null,null,null,null,"Odanak R  (50802)","50802",null,null,null,null,"Laberge (072970)","072970",null,"Noyan M  (56015)","56015"]
[null,null,null,null,null,null,"Ogden M  (45020)","45020",null,null,null,null,"Labrecque (080500)","080500",null,"Obedjiwan R  (90804)","90804"]
[null,null,null,null,null,null,"Oka M  (72032)","72032",null,null,null,null,"Labrosse (080050)","080050",null,"Odanak R  (50802)","50802"]
[null,null,null,null,null,null,"Orford CT (45115)","45115",null,null,null,null,"Lachenaie (051270)","051270",null,"Ogden M  (45020)","45020"]
[null,null,null,null,null,null,"Ormstown M  (69037)","69037",null,null,null,null,"Lachine (050730)","050730",null,"Oka M  (72032)","72032"]
[null,null,null,null,null,null,"Otter Lake M  (84055)","84055",null,null,null,null,"Lachine (050740)","050740",null,"Ontario (ON000)","ON000"]
[null,null,null,null,null,null,"Otterburn Park V  (57030)","57030",null,null,null,null,"Lac-Kénogami (090230)","090230",null,"Orford CT (45115)","45115"]
[null,null,null,null,null,null,"Oujé-Bougoumou TC (99818)","99818",null,null,null,null,"Laclède (101450)","101450",null,"Ormstown M  (69037)","69037"]
[null,null,null,null,null,null,"Packington P  (13015)","13015",null,null,null,null,"Lacolle (050010)","050010",null,"Otter Lake M  (84055)","84055"]
[null,null,null,null,null,null,"Padoue M  (09040)","09040",null,null,null,null,"Lacorne (071800)","071800",null,"Otterburn Park V  (57030)","57030"]
[null,null,null,null,null,null,"Pakuashipi EI (98802)","98802",null,null,null,null,"Lac-Weedon (041570)","041570",null,"Oujé-Bougoumou TC (99818)","99818"]
[null,null,null,null,null,null,"Palmarolle M  (87025)","87025",null,null,null,null,"Lafitau (063600)","063600",null,"Packington P  (13015)","13015"]
[null,null,null,null,null,null,"Papineauville M  (80037)","80037",null,null,null,null,"Laflamme (081610)","081610",null,"Padoue M  (09040)","09040"]
[null,null,null,null,null,null,"Parisville P  (38055)","38055",null,null,null,null,"Laflèche (101000)","101000",null,"Pakuashipi EI (98802)","98802"]
[null,null,null,null,null,null,"Paspébiac V  (05032)","05032",null,null,null,null,"Lafontaine (030680)","030680",null,"Palmarolle M  (87025)","87025"]
[null,null,null,null,null,null,"Passes-Dangereuses NO (92902)","92902",null,null,null,null,"Lajoie (070580)","070580",null,"Papineauville M  (80037)","80037"]
[null,null,null,null,null,null,"Percé V  (02005)","02005",null,null,null,null,"Lalande (100500)","100500",null,"Parisville P  (38055)","38055"]
[null,null,null,null,null,null,"Péribonka M  (92010)","92010",null,null,null,null,"Laliberté (063150)","063150",null,"Paspébiac V  (05032)","05032"]
[null,null,null,null,null,null,"Pessamit R  (96802)","96802",null,null,null,null,"Lambton (040210)","040210",null,"Passes-Dangereuses NO (92902)","92902"]
[null,null,null,null,null,null,"Petite-Rivière-Saint-François M  (16005)","16005",null,null,null,null,"Lamy (063380)","063380",null,"Percé V  (02005)","02005"]
[null,null,null,null,null,null,"Petite-Vallée M  (03015)","03015",null,null,null,null,"L'Ancienne-Lorette (090700)","090700",null,"Péribonka M  (92010)","92010"]
[null,null,null,null,null,null,"Petit-Lac-Sainte-Anne NO (14904)","14904",null,null,null,null,"Landanet (071130)","071130",null,"Pessamit R  (96802)","96802"]
[null,null,null,null,null,null,"Petit-Mécatina NO (98912)","98912",null,null,null,null,"Landrienne (072000)","072000",null,"Petite-Rivière-Saint-François M  (16005)","16005"]
[null,null,null,null,null,null,"Petit-Saguenay M  (94205)","94205",null,null,null,null,"Landry (071420)","071420",null,"Petite-Vallée M  (03015)","03015"]
[null,null,null,null,null,null,"Picard NO (14902)","14902",null,null,null,null,"L'Ange-Gardien (040720)","040720",null,"Petit-Lac-Sainte-Anne NO (14904)","14904"]
[null,null,null,null,null,null,"Piedmont M  (77030)","77030",null,null,null,null,"L'Ange-Gardien (090300)","090300",null,"Petit-Mécatina NO (98912)","98912"]
[null,null,null,null,null,null,"Pierreville M  (50113)","50113",null,null,null,null,"Langelier (063300)","063300",null,"Petit-Saguenay M  (94205)","94205"]
[null,null,null,null,null,null,"Pike River M  (46025)","46025",null,null,null,null,"Langevin (030960)","030960",null,"Picard NO (14902)","14902"]
[null,null,null,null,null,null,"Pikogan R  (88802)","88802",null,null,null,null,"Langis (021220)","021220",null,"Piedmont M  (77030)","77030"]
[null,null,null,null,null,null,"Pincourt V  (71070)","71070",null,null,null,null,"Languedoc (072380)","072380",null,"Pierreville M  (50113)","50113"]
[null,null,null,null,null,null,"Piopolis M  (30020)","30020",null,null,null,null,"L'Annonciation (061300)","061300",null,"Pike River M  (46025)","46025"]
[null,null,null,null,null,null,"Plaisance M  (80045)","80045",null,null,null,null,"L'Annonciation-du-Lac-des-Deux-Montagnes (051050)","051050",null,"Pikogan R  (88802)","88802"]
[null,null,null,null,null,null,"Plessisville P  (32045)","32045",null,null,null,null,"Laperrière (070740)","070740",null,"Pincourt V  (71070)","71070"]
[null,null,null,null,null,null,"Plessisville V  (32040)","32040",null,null,null,null,"Laprairie de La Madeleine (050430)","050430",null,"Piopolis M  (30020)","30020"]
[null,null,null,null,null,null,"Pohénégamook V  (13095)","13095",null,null,null,null,"Laprairie (050440)","050440",null,"Plaisance M  (80045)","80045"]
[null,null,null,null,null,null,"Pointe-à-la-Croix M  (06030)","06030",null,null,null,null,"Laroche (020610)","020610",null,"Plessisville P  (32045)","32045"]
[null,null,null,null,null,null,"Pointe-aux-Outardes VL (96030)","96030",null,null,null,null,"Larochelle (042380)","042380",null,"Plessisville V  (32040)","32040"]
[null,null,null,null,null,null,"Pointe-Calumet M  (72020)","72020",null,null,null,null,"Larocque (020220)","020220",null,"Pohénégamook V  (13095)","13095"]
[null,null,null,null,null,null,"Pointe-Claire V  (66097)","66097",null,null,null,null,"Lartigue (081630)","081630",null,"Pointe-à-la-Croix M  (06030)","06030"]
[null,null,null,null,null,null,"Pointe-des-Cascades VL (71055)","71055",null,null,null,null,"L'Assomption (051230)","051230",null,"Pointe-aux-Outardes VL (96030)","96030"]
[null,null,null,null,null,null,"Pointe-Fortune VL (71140)","71140",null,null,null,null,"L'Assomption (051240)","051240",null,"Pointe-Calumet M  (72020)","72020"]
[null,null,null,null,null,null,"Pointe-Lebel VL (96025)","96025",null,null,null,null,"L'Assomption (051620)","051620",null,"Pointe-Claire V  (66097)","66097"]
[null,null,null,null,null,null,"Pontiac M  (82030)","82030",null,null,null,null,"Laterrière (080200)","080200",null,"Pointe-des-Cascades VL (71055)","71055"]
[null,null,null,null,null,null,"Pont-Rouge V  (34017)","34017",null,null,null,null,"Latour (101060)","101060",null,"Pointe-Fortune VL (71140)","71140"]
[null,null,null,null,null,null,"Portage-du-Fort VL (84020)","84020",null,null,null,null,"Latulipe (070880)","070880",null,"Pointe-Lebel VL (96025)","96025"]
[null,null,null,null,null,null,"Port-Cartier V  (97022)","97022",null,null,null,null,"Laubanie (071020)","071020",null,"Pontiac M  (82030)","82030"]
[null,null,null,null,null,null,"Port-Daniel--Gascons M  (02047)","02047",null,null,null,null,"Launay (072180)","072180",null,"Pont-Rouge V  (34017)","34017"]
[null,null,null,null,null,null,"Portneuf V  (34048)","34048",null,null,null,null,"Laure (063480)","063480",null,"Portage-du-Fort VL (84020)","84020"]
[null,null,null,null,null,null,"Portneuf-sur-Mer M  (95040)","95040",null,null,null,null,"Laurier (063260)","063260",null,"Port-Cartier V  (97022)","97022"]
[null,null,null,null,null,null,"Potton CT (45030)","45030",null,null,null,null,"Laussedat (101430)","101430",null,"Port-Daniel--Gascons M  (02047)","02047"]
[null,null,null,null,null,null,"Poularies M  (87035)","87035",null,null,null,null,"Lauzon (partie est) (031370)","031370",null,"Portneuf V  (34048)","34048"]
[null,null,null,null,null,null,"Povungnituk EI (98887)","98887",null,null,null,null,"Lauzon (031350)","031350",null,"Portneuf-sur-Mer M  (95040)","95040"]
[null,null,null,null,null,null,"Preissac M  (88090)","88090",null,null,null,null,"Laval (101080)","101080",null,"Potton CT (45030)","45030"]
[null,null,null,null,null,null,"Prévost V  (75040)","75040",null,null,null,null,"Lavallée (063320)","063320",null,"Poularies M  (87035)","87035"]
[null,null,null,null,null,null,"Price VL (09065)","09065",null,null,null,null,"Lavergne (072700)","072700",null,"Povungnituk EI (98887)","98887"]
[null,null,null,null,null,null,"Princeville V  (32033)","32033",null,null,null,null,"Laverlochère (070800)","070800",null,"Preissac M  (88090)","88090"]
[null,null,null,null,null,null,"Puvirnituq VN (99120)","99120",null,null,null,null,"Lavigne (063680)","063680",null,"Prévost V  (75040)","75040"]
[null,null,null,null,null,null,"Quaqtaq TI (99889)","99889",null,null,null,null,"Laviolette (062600)","062600",null,"Price VL (09065)","09065"]
[null,null,null,null,null,null,"Quaqtaq VN (99115)","99115",null,null,null,null,"Le Breton (073360)","073360",null,"Princeville V  (32033)","32033"]
[null,null,null,null,null,null,"Québec V  (23027)","23027",null,null,null,null,"Le Caron (073200)","073200",null,"Puvirnituq VN (99120)","99120"]
[null,null,null,null,null,null,"Racine M  (42032)","42032",null,null,null,null,"Le Courtois (101360)","101360",null,"Quaqtaq TI (99889)","99889"]
[null,null,null,null,null,null,"Ragueneau P  (96040)","96040",null,null,null,null,"Le Gardeur (100440)","100440",null,"Quaqtaq VN (99115)","99115"]
[null,null,null,null,null,null,"Rapide-Danseur M  (87010)","87010",null,null,null,null,"Le Neuf (100840)","100840",null,"Québec V  (23027)","23027"]
[null,null,null,null,null,null,"Rapides-des-Cèdres NO (86902)","86902",null,null,null,null,"Leau (073350)","073350",null,"Racine M  (42032)","42032"]
[null,null,null,null,null,null,"Rapides-des-Joachims M  (84100)","84100",null,null,null,null,"Leclercville (042540)","042540",null,"Ragueneau P  (96040)","96040"]
[null,null,null,null,null,null,"Rawdon M  (62037)","62037",null,null,null,null,"Leeds (041660)","041660",null,"Rapide-Danseur M  (87010)","87010"]
[null,null,null,null,null,null,"Rémigny M  (85105)","85105",null,null,null,null,"Légaré (062530)","062530",null,"Rapides-des-Cèdres NO (86902)","86902"]
[null,null,null,null,null,null,"Repentigny V  (60013)","60013",null,null,null,null,"Lejeune (063060)","063060",null,"Rapides-des-Joachims M  (84100)","84100"]
[null,null,null,null,null,null,"Réservoir-Dozois NO (89910)","89910",null,null,null,null,"Lemieux (021740)","021740",null,"Rawdon M  (62037)","62037"]
[null,null,null,null,null,null,"Richelieu V  (55057)","55057",null,null,null,null,"Lennoxville (041310)","041310",null,"Rémigny M  (85105)","85105"]
[null,null,null,null,null,null,"Richmond V  (42098)","42098",null,null,null,null,"Lepage (021120)","021120",null,"Repentigny V  (60013)","60013"]
[null,null,null,null,null,null,"Rigaud V  (71133)","71133",null,null,null,null,"L'Épiphanie (051320)","051320",null,"Réservoir-Dozois NO (89910)","89910"]
[null,null,null,null,null,null,"Rimouski V  (10043)","10043",null,null,null,null,"Lesage (061140)","061140",null,"Richelieu V  (55057)","55057"]
[null,null,null,null,null,null,"Ripon M  (80078)","80078",null,null,null,null,"Lescarbot (063490)","063490",null,"Richmond V  (42098)","42098"]
[null,null,null,null,null,null,"Ristigouche-Partie-Sud-Est CT (06035)","06035",null,null,null,null,"Leslie (070220)","070220",null,"Rigaud V  (71133)","71133"]
[null,null,null,null,null,null,"Rivière-à-Claude M  (04020)","04020",null,null,null,null,"Lessard (030700)","030700",null,"Rimouski V  (10043)","10043"]
[null,null,null,null,null,null,"Rivière-à-Pierre M  (34135)","34135",null,null,null,null,"Lesseps (021760)","021760",null,"Ripon M  (80078)","80078"]
[null,null,null,null,null,null,"Rivière-au-Tonnerre M  (98055)","98055",null,null,null,null,"Lesueur (072810)","072810",null,"Ristigouche-Partie-Sud-Est CT (06035)","06035"]
[null,null,null,null,null,null,"Rivière-aux-Outardes NO (96902)","96902",null,null,null,null,"Letellier (100780)","100780",null,"Rivière-à-Claude M  (04020)","04020"]
[null,null,null,null,null,null,"Rivière-Beaudette M  (71005)","71005",null,null,null,null,"Letondal (063550)","063550",null,"Rivière-à-Pierre M  (34135)","34135"]
[null,null,null,null,null,null,"Rivière-Bleue M  (13025)","13025",null,null,null,null,"Leverrier (030620)","030620",null,"Rivière-au-Tonnerre M  (98055)","98055"]
[null,null,null,null,null,null,"Rivière-Bonaventure NO (05902)","05902",null,null,null,null,"Lévis (quartier Lauzon) (031330)","031330",null,"Rivière-aux-Outardes NO (96902)","96902"]
[null,null,null,null,null,null,"Rivière-Bonjour NO (08902)","08902",null,null,null,null,"Lévis (quartier Notre-Dame) (031380)","031380",null,"Rivière-Beaudette M  (71005)","71005"]
[null,null,null,null,null,null,"Rivière-de-la-Savane NO (35906)","35906",null,null,null,null,"Lévis (quartier Saint-Laurent) (031390)","031390",null,"Rivière-Bleue M  (13025)","13025"]
[null,null,null,null,null,null,"Rivière-du-Loup V  (12072)","12072",null,null,null,null,"Lévy (081410)","081410",null,"Rivière-Bonaventure NO (05902)","05902"]
[null,null,null,null,null,null,"Rivière-Éternité M  (94215)","94215",null,null,null,null,"Lidice (080580)","080580",null,"Rivière-Bonjour NO (08902)","08902"]
[null,null,null,null,null,null,"Rivière-Héva M  (89010)","89010",null,null,null,null,"Liénard (100420)","100420",null,"Rivière-de-la-Savane NO (35906)","35906"]
[null,null,null,null,null,null,"Rivière-Koksoak NO (99902)","99902",null,null,null,null,"Lingwick (040120)","040120",null,"Rivière-du-Loup V  (12072)","12072"]
[null,null,null,null,null,null,"Rivière-Mistassini NO (92904)","92904",null,null,null,null,"Linière (041680)","041680",null,"Rivière-Éternité M  (94215)","94215"]
[null,null,null,null,null,null,"Rivière-Mouchalagane NO (97906)","97906",null,null,null,null,"L'Islet (030790)","030790",null,"Rivière-Héva M  (89010)","89010"]
[null,null,null,null,null,null,"Rivière-Nipissis NO (97902)","97902",null,null,null,null,"Lislois (101230)","101230",null,"Rivière-Koksoak NO (99902)","99902"]
[null,null,null,null,null,null,"Rivière-Nouvelle NO (06902)","06902",null,null,null,null,"Litchfield (070160)","070160",null,"Rivière-Mistassini NO (92904)","92904"]
[null,null,null,null,null,null,"Rivière-Ojima NO (87904)","87904",null,null,null,null,"Livaudière (072910)","072910",null,"Rivière-Mouchalagane NO (97906)","97906"]
[null,null,null,null,null,null,"Rivière-Ouelle M  (14065)","14065",null,null,null,null,"Lochaber (060280)","060280",null,"Rivière-Nipissis NO (97902)","97902"]
[null,null,null,null,null,null,"Rivière-Patapédia-Est NO (07906)","07906",null,null,null,null,"Longue-Pointe (050640)","050640",null,"Rivière-Nouvelle NO (06902)","06902"]
[null,null,null,null,null,null,"Rivière-Rouge V  (79037)","79037",null,null,null,null,"Longueuil (050510)","050510",null,"Rivière-Ojima NO (87904)","87904"]
[null,null,null,null,null,null,"Rivière-Saint-Jean M  (98050)","98050",null,null,null,null,"Loranger (061240)","061240",null,"Rivière-Ouelle M  (14065)","14065"]
[null,null,null,null,null,null,"Rivière-Saint-Jean NO (03902)","03902",null,null,null,null,"Lorne (081530)","081530",null,"Rivière-Patapédia-Est NO (07906)","07906"]
[null,null,null,null,null,null,"Rivière-Vaseuse NO (07904)","07904",null,null,null,null,"Louise (040040)","040040",null,"Rivière-Rouge V  (79037)","79037"]
[null,null,null,null,null,null,"Roberval V  (91025)","91025",null,null,null,null,"Louiseville (062400)","062400",null,"Rivière-Saint-Jean M  (98050)","98050"]
[null,null,null,null,null,null,"Rochebaucourt M  (88010)","88010",null,null,null,null,"Louvicourt (071510)","071510",null,"Rivière-Saint-Jean NO (03902)","03902"]
[null,null,null,null,null,null,"Roquemaure M  (87015)","87015",null,null,null,null,"Low (060710)","060710",null,"Rivière-Vaseuse NO (07904)","07904"]
[null,null,null,null,null,null,"Rosemère V  (73020)","73020",null,null,null,null,"Lozeau (073060)","073060",null,"Roberval V  (91025)","91025"]
[null,null,null,null,null,null,"Rougemont M  (55037)","55037",null,null,null,null,"Lucière (081580)","081580",null,"Rochebaucourt M  (88010)","88010"]
[null,null,null,null,null,null,"Routhierville NO (07902)","07902",null,null,null,null,"Lussier (061780)","061780",null,"Roquemaure M  (87015)","87015"]
[null,null,null,null,null,null,"Rouyn-Noranda V  (86042)","86042",null,null,null,null,"Lynch (061310)","061310",null,"Rosemère V  (73020)","73020"]
[null,null,null,null,null,null,"Roxton CT (48015)","48015",null,null,null,null,"Lytton (060960)","060960",null,"Rougemont M  (55037)","55037"]
[null,null,null,null,null,null,"Roxton Falls VL (48010)","48010",null,null,null,null,"Macamic (072360)","072360",null,"Routhierville NO (07902)","07902"]
[null,null,null,null,null,null,"Roxton Pond M  (47047)","47047",null,null,null,null,"MacNider (021320)","021320",null,"Rouyn-Noranda V  (86042)","86042"]
[null,null,null,null,null,null,"Ruisseau-des-Mineurs NO (07910)","07910",null,null,null,null,"MacNider (021340)","021340",null,"Roxton CT (48015)","48015"]
[null,null,null,null,null,null,"Ruisseau-Ferguson NO (06904)","06904",null,null,null,null,"Macpès (020740)","020740",null,"Roxton Falls VL (48010)","48010"]
[null,null,null,null,null,null,"Sacré-Coeur M  (95010)","95010",null,null,null,null,"Madawaska (030090)","030090",null,"Roxton Pond M  (47047)","47047"]
[null,null,null,null,null,null,"Sacré-Coeur-de-Jésus P  (31130)","31130",null,null,null,null,"Maddington (042050)","042050",null,"Ruisseau-des-Mineurs NO (07910)","07910"]
[null,null,null,null,null,null,"Sagard NO (15904)","15904",null,null,null,null,"Magog (040440)","040440",null,"Ruisseau-Ferguson NO (06904)","06904"]
[null,null,null,null,null,null,"Saguenay V  (94068)","94068",null,null,null,null,"Magog (040450)","040450",null,"Sacré-Coeur M  (95010)","95010"]
[null,null,null,null,null,null,"Saint-Adalbert M  (17015)","17015",null,null,null,null,"Mailloux (030990)","030990",null,"Sacré-Coeur-de-Jésus P  (31130)","31130"]
[null,null,null,null,null,null,"Saint-Adelme P  (08030)","08030",null,null,null,null,"Maizerets (072760)","072760",null,"Sagard NO (15904)","15904"]
[null,null,null,null,null,null,"Saint-Adelphe P  (35015)","35015",null,null,null,null,"Major (061580)","061580",null,"Saguenay V  (94068)","94068"]
[null,null,null,null,null,null,"Saint-Adolphe-d'Howard M  (77065)","77065",null,null,null,null,"Malakoff (073260)","073260",null,"Saint-Adalbert M  (17015)","17015"]
[null,null,null,null,null,null,"Saint-Adrien M  (40010)","40010",null,null,null,null,"Malartic (071600)","071600",null,"Saint-Adelme P  (08030)","08030"]
[null,null,null,null,null,null,"Saint-Adrien-d'Irlande M  (31095)","31095",null,null,null,null,"Malbaie (020140)","020140",null,"Saint-Adelphe P  (35015)","35015"]
[null,null,null,null,null,null,"Saint-Agapit M  (33045)","33045",null,null,null,null,"Malherbe (080780)","080780",null,"Saint-Adolphe-d'Howard M  (77065)","77065"]
[null,null,null,null,null,null,"Saint-Aimé M  (53015)","53015",null,null,null,null,"Malhiot (063240)","063240",null,"Saint-Adrien M  (40010)","40010"]
[null,null,null,null,null,null,"Saint-Aimé-des-Lacs M  (15030)","15030",null,null,null,null,"Maltais (081060)","081060",null,"Saint-Adrien-d'Irlande M  (31095)","31095"]
[null,null,null,null,null,null,"Saint-Aimé-du-Lac-des-Îles M  (79022)","79022",null,null,null,null,"Manicouagan (101010)","101010",null,"Saint-Agapit M  (33045)","33045"]
[null,null,null,null,null,null,"Saint-Alban M  (34097)","34097",null,null,null,null,"Maniwaki (060880)","060880",null,"Saint-Aimé M  (53015)","53015"]
[null,null,null,null,null,null,"Saint-Albert M  (39085)","39085",null,null,null,null,"Mann (020520)","020520",null,"Saint-Aimé-des-Lacs M  (15030)","15030"]
[null,null,null,null,null,null,"Saint-Alexandre M  (56055)","56055",null,null,null,null,"Manneville (071920)","071920",null,"Saint-Aimé-du-Lac-des-Îles M  (79022)","79022"]
[null,null,null,null,null,null,"Saint-Alexandre-de-Kamouraska M  (14035)","14035",null,null,null,null,"Mansfield (070240)","070240",null,"Saint-Alban M  (34097)","34097"]
[null,null,null,null,null,null,"Saint-Alexandre-des-Lacs P  (07065)","07065",null,null,null,null,"Marbleton (041500)","041500",null,"Saint-Albert M  (39085)","39085"]
[null,null,null,null,null,null,"Saint-Alexis M  (63023)","63023",null,null,null,null,"Marchand (061280)","061280",null,"Saint-Alexandre M  (56055)","56055"]
[null,null,null,null,null,null,"Saint-Alexis-de-Matapédia M  (06050)","06050",null,null,null,null,"Marcil (020430)","020430",null,"Saint-Alexandre-de-Kamouraska M  (14035)","14035"]
[null,null,null,null,null,null,"Saint-Alexis-des-Monts P  (51065)","51065",null,null,null,null,"Maria (020460)","020460",null,"Saint-Alexandre-des-Lacs P  (07065)","07065"]
[null,null,null,null,null,null,"Saint-Alfred M  (27015)","27015",null,null,null,null,"Marieville (040800)","040800",null,"Saint-Alexis M  (63023)","63023"]
[null,null,null,null,null,null,"Saint-Alphonse M  (05065)","05065",null,null,null,null,"Marlow (040170)","040170",null,"Saint-Alexis-de-Matapédia M  (06050)","06050"]
[null,null,null,null,null,null,"Saint-Alphonse-de-Granby M  (47010)","47010",null,null,null,null,"Marmier (091270)","091270",null,"Saint-Alexis-des-Monts P  (51065)","51065"]
[null,null,null,null,null,null,"Saint-Alphonse-Rodriguez M  (62025)","62025",null,null,null,null,"Marrias (071000)","071000",null,"Saint-Alfred M  (27015)","27015"]
[null,null,null,null,null,null,"Saint-Amable V  (59015)","59015",null,null,null,null,"Marsal (100220)","100220",null,"Saint-Alphonse M  (05065)","05065"]
[null,null,null,null,null,null,"Saint-Ambroise M  (94255)","94255",null,null,null,null,"Marston (040060)","040060",null,"Saint-Alphonse-de-Granby M  (47010)","47010"]
[null,null,null,null,null,null,"Saint-Ambroise-de-Kildare M  (61040)","61040",null,null,null,null,"Masham (060660)","060660",null,"Saint-Alphonse-Rodriguez M  (62025)","62025"]
[null,null,null,null,null,null,"Saint-Anaclet-de-Lessard P  (10030)","10030",null,null,null,null,"Massé (020680)","020680",null,"Saint-Amable V  (59015)","59015"]
[null,null,null,null,null,null,"Saint-André M  (14040)","14040",null,null,null,null,"Masson (062580)","062580",null,"Saint-Ambroise M  (94255)","94255"]
[null,null,null,null,null,null,"Saint-André-Avellin M  (80027)","80027",null,null,null,null,"Matalik (021060)","021060",null,"Saint-Ambroise-de-Kildare M  (61040)","61040"]
[null,null,null,null,null,null,"Saint-André-d'Argenteuil M  (76008)","76008",null,null,null,null,"Matane (021310)","021310",null,"Saint-Anaclet-de-Lessard P  (10030)","10030"]
[null,null,null,null,null,null,"Saint-André-de-Restigouche M  (06040)","06040",null,null,null,null,"Matapédia (020560)","020560",null,"Saint-André M  (14040)","14040"]
[null,null,null,null,null,null,"Saint-André-du-Lac-Saint-Jean VL (91010)","91010",null,null,null,null,"Mazenod (070710)","070710",null,"Saint-André-Avellin M  (80027)","80027"]
[null,null,null,null,null,null,"Saint-Anicet M  (69070)","69070",null,null,null,null,"Mazérac (073080)","073080",null,"Saint-André-d'Argenteuil M  (76008)","76008"]
[null,null,null,null,null,null,"Saint-Anselme M  (19062)","19062",null,null,null,null,"McGill (061020)","061020",null,"Saint-André-de-Restigouche M  (06040)","06040"]
[null,null,null,null,null,null,"Saint-Antoine-de-l'Isle-aux-Grues P  (18070)","18070",null,null,null,null,"McKenzie (081440)","081440",null,"Saint-André-du-Lac-Saint-Jean VL (91010)","91010"]
[null,null,null,null,null,null,"Saint-Antoine-de-Tilly M  (33095)","33095",null,null,null,null,"McLachlin (072980)","072980",null,"Saint-Anicet M  (69070)","69070"]
[null,null,null,null,null,null,"Saint-Antoine-sur-Richelieu M  (57075)","57075",null,null,null,null,"McOuat (081370)","081370",null,"Saint-Anselme M  (19062)","19062"]
[null,null,null,null,null,null,"Saint-Antonin M  (12015)","12015",null,null,null,null,"Mégantic (040070)","040070",null,"Saint-Antoine-de-l'Isle-aux-Grues P  (18070)","18070"]
[null,null,null,null,null,null,"Saint-Apollinaire M  (33090)","33090",null,null,null,null,"Mékinac (063120)","063120",null,"Saint-Antoine-de-Tilly M  (33095)","33095"]
[null,null,null,null,null,null,"Saint-Armand M  (46017)","46017",null,null,null,null,"Melbourne (041360)","041360",null,"Saint-Antoine-sur-Richelieu M  (57075)","57075"]
[null,null,null,null,null,null,"Saint-Arsène P  (12065)","12065",null,null,null,null,"Melbourne (041470)","041470",null,"Saint-Antonin M  (12015)","12015"]
[null,null,null,null,null,null,"Saint-Athanase M  (13100)","13100",null,null,null,null,"Membré (070600)","070600",null,"Saint-Apollinaire M  (33090)","33090"]
[null,null,null,null,null,null,"Saint-Aubert M  (17055)","17055",null,null,null,null,"Mercier (070750)","070750",null,"Saint-Armand M  (46017)","46017"]
[null,null,null,null,null,null,"Saint-Augustin M  (98012)","98012",null,null,null,null,"Mercier (071300)","071300",null,"Saint-Arsène P  (12065)","12065"]
[null,null,null,null,null,null,"Saint-Augustin P  (92005)","92005",null,null,null,null,"Mésy (080610)","080610",null,"Saint-Athanase M  (13100)","13100"]
[null,null,null,null,null,null,"Saint-Augustin-de-Desmaures V  (23072)","23072",null,null,null,null,"Métabetchouan (080660)","080660",null,"Saint-Aubert M  (17055)","17055"]
[null,null,null,null,null,null,"Saint-Augustin-de-Woburn P  (30005)","30005",null,null,null,null,"Metgermette-Nord (031130)","031130",null,"Saint-Augustin M  (98012)","98012"]
[null,null,null,null,null,null,"Saint-Barnabé P  (51025)","51025",null,null,null,null,"Metgermette-Sud (042720)","042720",null,"Saint-Augustin P  (92005)","92005"]
[null,null,null,null,null,null,"Saint-Barnabé-Sud M  (54105)","54105",null,null,null,null,"Mille-Isles (060160)","060160",null,"Saint-Augustin-de-Desmaures V  (23072)","23072"]
[null,null,null,null,null,null,"Saint-Barthélemy P  (52055)","52055",null,null,null,null,"Mille-Vaches (101100)","101100",null,"Saint-Augustin-de-Woburn P  (30005)","30005"]
[null,null,null,null,null,null,"Saint-Basile V  (34038)","34038",null,null,null,null,"Milnikek (021020)","021020",null,"Saint-Barnabé P  (51025)","51025"]
[null,null,null,null,null,null,"Saint-Basile-le-Grand V  (57020)","57020",null,null,null,null,"Milot (081110)","081110",null,"Saint-Barnabé-Sud M  (54105)","54105"]
[null,null,null,null,null,null,"Saint-Benjamin M  (28025)","28025",null,null,null,null,"Miniac (072540)","072540",null,"Saint-Barthélemy P  (52055)","52055"]
[null,null,null,null,null,null,"Saint-Benoît-du-Lac M  (45080)","45080",null,null,null,null,"Mirabel (051600)","051600",null,"Saint-Basile V  (34038)","34038"]
[null,null,null,null,null,null,"Saint-Benoît-Labre M  (29100)","29100",null,null,null,null,"Mitchell (060990)","060990",null,"Saint-Basile-le-Grand V  (57020)","57020"]
[null,null,null,null,null,null,"Saint-Bernard M  (26055)","26055",null,null,null,null,"Moisie (100760)","100760",null,"Saint-Benjamin M  (28025)","28025"]
[null,null,null,null,null,null,"Saint-Bernard-de-Lacolle M  (68005)","68005",null,null,null,null,"Montauban (091250)","091250",null,"Saint-Benoît-du-Lac M  (45080)","45080"]
[null,null,null,null,null,null,"Saint-Bernard-de-Michaudville M  (54115)","54115",null,null,null,null,"Montbeillard (071180)","071180",null,"Saint-Benoît-Labre M  (29100)","29100"]
[null,null,null,null,null,null,"Saint-Blaise-sur-Richelieu M  (56065)","56065",null,null,null,null,"Montbray (071410)","071410",null,"Saint-Bernard M  (26055)","26055"]
[null,null,null,null,null,null,"Saint-Bonaventure M  (49125)","49125",null,null,null,null,"Montcalm (060210)","060210",null,"Saint-Bernard-de-Lacolle M  (68005)","68005"]
[null,null,null,null,null,null,"Saint-Boniface M  (51085)","51085",null,null,null,null,"Montgay (072040)","072040",null,"Saint-Bernard-de-Michaudville M  (54115)","54115"]
[null,null,null,null,null,null,"Saint-Bruno M  (93030)","93030",null,null,null,null,"Montigny (061220)","061220",null,"Saint-Blaise-sur-Richelieu M  (56065)","56065"]
[null,null,null,null,null,null,"Saint-Bruno-de-Guigues M  (85045)","85045",null,null,null,null,"Mont-Laurier (061410)","061410",null,"Saint-Bonaventure M  (49125)","49125"]
[null,null,null,null,null,null,"Saint-Bruno-de-Kamouraska M  (14010)","14010",null,null,null,null,"Mont-Laurier (063590)","063590",null,"Saint-Boniface M  (51085)","51085"]
[null,null,null,null,null,null,"Saint-Bruno-de-Montarville V  (58037)","58037",null,null,null,null,"Montmagny (030890)","030890",null,"Saint-Bruno M  (93030)","93030"]
[null,null,null,null,null,null,"Saint-Calixte M  (63055)","63055",null,null,null,null,"Montminy (030840)","030840",null,"Saint-Bruno-de-Guigues M  (85045)","85045"]
[null,null,null,null,null,null,"Saint-Camille CT (40025)","40025",null,null,null,null,"Montpetit (073120)","073120",null,"Saint-Bruno-de-Kamouraska M  (14010)","14010"]
[null,null,null,null,null,null,"Saint-Camille-de-Lellis P  (28070)","28070",null,null,null,null,"Montréal (quartier Centre) (051580)","051580",null,"Saint-Bruno-de-Montarville V  (58037)","58037"]
[null,null,null,null,null,null,"Saint-Casimir M  (34078)","34078",null,null,null,null,"Montréal (quartier Est) (051570)","051570",null,"Saint-Calixte M  (63055)","63055"]
[null,null,null,null,null,null,"Saint-Célestin M  (50035)","50035",null,null,null,null,"Montréal (quartier Ouest) (051590)","051590",null,"Saint-Camille CT (40025)","40025"]
[null,null,null,null,null,null,"Saint-Célestin VL (50030)","50030",null,null,null,null,"Montréal (quartier Saint-Antoine) (051550)","051550",null,"Saint-Camille-de-Lellis P  (28070)","28070"]
[null,null,null,null,null,null,"Saint-Césaire V  (55023)","55023",null,null,null,null,"Montréal (quartier Sainte-Anne) (051560)","051560",null,"Saint-Casimir M  (34078)","34078"]
[null,null,null,null,null,null,"Saint-Charles-Borromée V  (61035)","61035",null,null,null,null,"Montréal (quartier Sainte-Marie) (050700)","050700",null,"Saint-Célestin M  (50035)","50035"]
[null,null,null,null,null,null,"Saint-Charles-de-Bellechasse M  (19097)","19097",null,null,null,null,"Montréal (quartier Saint-Jacques) (051520)","051520",null,"Saint-Célestin VL (50030)","50030"]
[null,null,null,null,null,null,"Saint-Charles-de-Bourget M  (94260)","94260",null,null,null,null,"Montréal (quartier Saint-Laurent) (051540)","051540",null,"Saint-Césaire V  (55023)","55023"]
[null,null,null,null,null,null,"Saint-Charles-Garnier P  (09010)","09010",null,null,null,null,"Montréal (quartier Saint-Louis) (051530)","051530",null,"Saint-Charles-Borromée V  (61035)","61035"]
[null,null,null,null,null,null,"Saint-Charles-sur-Richelieu M  (57057)","57057",null,null,null,null,"Montréal (050710)","050710",null,"Saint-Charles-de-Bellechasse M  (19097)","19097"]
[null,null,null,null,null,null,"Saint-Christophe-d'Arthabaska P  (39060)","39060",null,null,null,null,"Montreuil (071100)","071100",null,"Saint-Charles-de-Bourget M  (94260)","94260"]
[null,null,null,null,null,null,"Saint-Chrysostome M  (69017)","69017",null,null,null,null,"Moreau (061510)","061510",null,"Saint-Charles-Garnier P  (09010)","09010"]
[null,null,null,null,null,null,"Saint-Claude M  (42100)","42100",null,null,null,null,"Morency (101530)","101530",null,"Saint-Charles-sur-Richelieu M  (57057)","57057"]
[null,null,null,null,null,null,"Saint-Clément M  (11005)","11005",null,null,null,null,"Morin (060180)","060180",null,"Saint-Christophe-d'Arthabaska P  (39060)","39060"]
[null,null,null,null,null,null,"Saint-Cléophas P  (07090)","07090",null,null,null,null,"Mountain (073230)","073230",null,"Saint-Chrysostome M  (69017)","69017"]
[null,null,null,null,null,null,"Saint-Cléophas-de-Brandon M  (52075)","52075",null,null,null,null,"Mousseau (061320)","061320",null,"Saint-Claude M  (42100)","42100"]
[null,null,null,null,null,null,"Saint-Clet M  (71045)","71045",null,null,null,null,"Mulgrave (060380)","060380",null,"Saint-Clément M  (11005)","11005"]
[null,null,null,null,null,null,"Saint-Colomban V  (75005)","75005",null,null,null,null,"Musquaro (100520)","100520",null,"Saint-Cléophas P  (07090)","07090"]
[null,null,null,null,null,null,"Saint-Côme M  (62065)","62065",null,null,null,null,"Nantel (061800)","061800",null,"Saint-Cléophas-de-Brandon M  (52075)","52075"]
[null,null,null,null,null,null,"Saint-Côme--Linière M  (29057)","29057",null,null,null,null,"Napierville (050080)","050080",null,"Saint-Clet M  (71045)","71045"]
[null,null,null,null,null,null,"Saint-Constant V  (67035)","67035",null,null,null,null,"Natashquan (100580)","100580",null,"Saint-Colomban V  (75005)","75005"]
[null,null,null,null,null,null,"Saint-Cuthbert M  (52062)","52062",null,null,null,null,"Nédelec (070920)","070920",null,"Saint-Côme M  (62065)","62065"]
[null,null,null,null,null,null,"Saint-Cyprien M  (12005)","12005",null,null,null,null,"Neigette (020720)","020720",null,"Saint-Côme--Linière M  (29057)","29057"]
[null,null,null,null,null,null,"Saint-Cyprien P  (28040)","28040",null,null,null,null,"Nelson (041860)","041860",null,"Saint-Constant V  (67035)","67035"]
[null,null,null,null,null,null,"Saint-Cyprien-de-Napierville M  (68035)","68035",null,null,null,null,"Nemtayé (021180)","021180",null,"Saint-Cuthbert M  (52062)","52062"]
[null,null,null,null,null,null,"Saint-Cyrille-de-Lessard P  (17045)","17045",null,null,null,null,"New Glasgow (051390)","051390",null,"Saint-Cyprien M  (12005)","12005"]
[null,null,null,null,null,null,"Saint-Cyrille-de-Wendover M  (49070)","49070",null,null,null,null,"New Richmond (020420)","020420",null,"Saint-Cyprien P  (28040)","28040"]
[null,null,null,null,null,null,"Saint-Damase M  (54017)","54017",null,null,null,null,"New Rockland (041380)","041380",null,"Saint-Cyprien-de-Napierville M  (68035)","68035"]
[null,null,null,null,null,null,"Saint-Damase P  (07105)","07105",null,null,null,null,"Newport (020080)","020080",null,"Saint-Cyrille-de-Lessard P  (17045)","17045"]
[null,null,null,null,null,null,"Saint-Damase-de-L'Islet M  (17040)","17040",null,null,null,null,"Newport (040290)","040290",null,"Saint-Cyrille-de-Wendover M  (49070)","49070"]
[null,null,null,null,null,null,"Saint-Damien P  (62075)","62075",null,null,null,null,"Nominingue (061260)","061260",null,"Saint-Damase M  (54017)","54017"]
[null,null,null,null,null,null,"Saint-Damien-de-Buckland P  (19030)","19030",null,null,null,null,"Noranda (071280)","071280",null,"Saint-Damase P  (07105)","07105"]
[null,null,null,null,null,null,"Saint-David M  (53005)","53005",null,null,null,null,"Noré (101300)","101300",null,"Saint-Damase-de-L'Islet M  (17040)","17040"]
[null,null,null,null,null,null,"Saint-David-de-Falardeau M  (94245)","94245",null,null,null,null,"Normandie (070480)","070480",null,"Saint-Damien P  (62075)","62075"]
[null,null,null,null,null,null,"Saint-Denis-De La Bouteillerie M  (14055)","14055",null,null,null,null,"Normandin (081210)","081210",null,"Saint-Damien-de-Buckland P  (19030)","19030"]
[null,null,null,null,null,null,"Saint-Denis-de-Brompton M  (42025)","42025",null,null,null,null,"Normanville (101250)","101250",null,"Saint-David M  (53005)","53005"]
[null,null,null,null,null,null,"Saint-Denis-sur-Richelieu M  (57068)","57068",null,null,null,null,"Northfield (060780)","060780",null,"Saint-David-de-Falardeau M  (94245)","94245"]
[null,null,null,null,null,null,"Saint-Didace P  (52090)","52090",null,null,null,null,"Notre-Dame-de-Bonsecours (040810)","040810",null,"Saint-Denis-De La Bouteillerie M  (14055)","14055"]
[null,null,null,null,null,null,"Saint-Dominique M  (54060)","54060",null,null,null,null,"Notre-Dame-de-Bonsecours (060320)","060320",null,"Saint-Denis-de-Brompton M  (42025)","42025"]
[null,null,null,null,null,null,"Saint-Dominique-du-Rosaire M  (88065)","88065",null,null,null,null,"Notre-Dame-de-la-Nativité-de-Bécancour (042400)","042400",null,"Saint-Denis-sur-Richelieu M  (57068)","57068"]
[null,null,null,null,null,null,"Saint-Donat M  (62060)","62060",null,null,null,null,"Notre-Dame-de-L'Assomption-de-MacNider (021400)","021400",null,"Saint-Didace P  (52090)","52090"]
[null,null,null,null,null,null,"Saint-Donat P  (09030)","09030",null,null,null,null,"Notre-Dame-de-L'Assomption-de-Repentigny (051250)","051250",null,"Saint-Dominique M  (54060)","54060"]
[null,null,null,null,null,null,"Sainte-Adèle V  (77022)","77022",null,null,null,null,"Notre-Dame-de-la-Victoire (031320)","031320",null,"Saint-Dominique-du-Rosaire M  (88065)","88065"]
[null,null,null,null,null,null,"Sainte-Agathe-de-Lotbinière M  (33017)","33017",null,null,null,null,"Notre-Dame-de-Portneuf (090980)","090980",null,"Saint-Donat M  (62060)","62060"]
[null,null,null,null,null,null,"Sainte-Agathe-des-Monts V  (78032)","78032",null,null,null,null,"Notre-Dame-de-Québec (La Banlieue) (090560)","090560",null,"Saint-Donat P  (09030)","09030"]
[null,null,null,null,null,null,"Sainte-Angèle-de-Mérici M  (09035)","09035",null,null,null,null,"Notre-Dame-de-Saint-Hyacinthe (040890)","040890",null,"Sainte-Adèle V  (77022)","77022"]
[null,null,null,null,null,null,"Sainte-Angèle-de-Monnoir M  (55030)","55030",null,null,null,null,"Notre-Dame-des-Anges (090610)","090610",null,"Sainte-Agathe-de-Lotbinière M  (33017)","33017"]
[null,null,null,null,null,null,"Sainte-Angèle-de-Prémont M  (51055)","51055",null,null,null,null,"Notre-Dame-des-Anges (091100)","091100",null,"Sainte-Agathe-des-Monts V  (78032)","78032"]
[null,null,null,null,null,null,"Sainte-Anne-de-Beaupré V  (21030)","21030",null,null,null,null,"Notre-Dame-des-Anges-de-Stanbridge (040580)","040580",null,"Sainte-Angèle-de-Mérici M  (09035)","09035"]
[null,null,null,null,null,null,"Sainte-Anne-de-Bellevue V  (66117)","66117",null,null,null,null,"Notre-Dame-des-Neiges-des-Trois-Pistoles (030290)","030290",null,"Sainte-Angèle-de-Monnoir M  (55030)","55030"]
[null,null,null,null,null,null,"Sainte-Anne-de-la-Pérade M  (37205)","37205",null,null,null,null,"Notre-Dame-des-Sept-Douleurs (030330)","030330",null,"Sainte-Angèle-de-Prémont M  (51055)","51055"]
[null,null,null,null,null,null,"Sainte-Anne-de-la-Pocatière P  (14090)","14090",null,null,null,null,"Notre-Dame-du-Lac-Témiscouata (030100)","030100",null,"Sainte-Anne-de-Beaupré V  (21030)","21030"]
[null,null,null,null,null,null,"Sainte-Anne-de-la-Rochelle M  (42050)","42050",null,null,null,null,"Notre-Dame-du-Mont-Carmel (030450)","030450",null,"Sainte-Anne-de-Bellevue V  (66117)","66117"]
[null,null,null,null,null,null,"Sainte-Anne-de-Sabrevois P  (56060)","56060",null,null,null,null,"Notre-Dame-du-Mont-Carmel (062760)","062760",null,"Sainte-Anne-de-la-Pérade M  (37205)","37205"]
[null,null,null,null,null,null,"Sainte-Anne-des-Lacs P  (77035)","77035",null,null,null,null,"Notre-Dame-du-Portage (030380)","030380",null,"Sainte-Anne-de-la-Pocatière P  (14090)","14090"]
[null,null,null,null,null,null,"Sainte-Anne-des-Monts V  (04037)","04037",null,null,null,null,"Notre-Dame-du-Portage (030590)","030590",null,"Sainte-Anne-de-la-Rochelle M  (42050)","42050"]
[null,null,null,null,null,null,"Sainte-Anne-de-Sorel M  (53065)","53065",null,null,null,null,"Notre-Dame-du-Sacré-Coeur (020880)","020880",null,"Sainte-Anne-de-Sabrevois P  (56060)","56060"]
[null,null,null,null,null,null,"Sainte-Anne-des-Plaines V  (73035)","73035",null,null,null,null,"Nouveau-Québec (100810)","100810",null,"Sainte-Anne-des-Lacs P  (77035)","77035"]
[null,null,null,null,null,null,"Sainte-Anne-du-Lac M  (79115)","79115",null,null,null,null,"Obalski (081420)","081420",null,"Sainte-Anne-des-Monts V  (04037)","04037"]
[null,null,null,null,null,null,"Sainte-Apolline-de-Patton P  (18025)","18025",null,null,null,null,"Onslow (070020)","070020",null,"Sainte-Anne-de-Sorel M  (53065)","53065"]
[null,null,null,null,null,null,"Sainte-Aurélie M  (28015)","28015",null,null,null,null,"Orford (041330)","041330",null,"Sainte-Anne-des-Plaines V  (73035)","73035"]
[null,null,null,null,null,null,"Sainte-Barbe M  (69065)","69065",null,null,null,null,"Orvilliers (073180)","073180",null,"Sainte-Anne-du-Lac M  (79115)","79115"]
[null,null,null,null,null,null,"Sainte-Béatrix M  (62020)","62020",null,null,null,null,"Otis (080100)","080100",null,"Sainte-Apolline-de-Patton P  (18025)","18025"]
[null,null,null,null,null,null,"Sainte-Brigide-d'Iberville M  (56105)","56105",null,null,null,null,"Ouiatchouan (080920)","080920",null,"Sainte-Aurélie M  (28015)","28015"]
[null,null,null,null,null,null,"Sainte-Brigitte-de-Laval V  (22045)","22045",null,null,null,null,"Ouimet (020660)","020660",null,"Sainte-Barbe M  (69065)","69065"]
[null,null,null,null,null,null,"Sainte-Brigitte-des-Saults P  (49085)","49085",null,null,null,null,"Pabos (020060)","020060",null,"Sainte-Béatrix M  (62020)","62020"]
[null,null,null,null,null,null,"Sainte-Catherine V  (67030)","67030",null,null,null,null,"Packington (030030)","030030",null,"Sainte-Brigide-d'Iberville M  (56105)","56105"]
[null,null,null,null,null,null,"Sainte-Catherine-de-Hatley M  (45060)","45060",null,null,null,null,"Painchaud (030400)","030400",null,"Sainte-Brigitte-de-Laval V  (22045)","22045"]
[null,null,null,null,null,null,"Sainte-Catherine-de-la-Jacques-Cartier V  (22005)","22005",null,null,null,null,"Palmarolle (072240)","072240",null,"Sainte-Brigitte-des-Saults P  (49085)","49085"]
[null,null,null,null,null,null,"Sainte-Cécile-de-Lévrard P  (38060)","38060",null,null,null,null,"Panet (030800)","030800",null,"Sainte-Catherine V  (67030)","67030"]
[null,null,null,null,null,null,"Sainte-Cécile-de-Milton M  (47055)","47055",null,null,null,null,"Papineau (063560)","063560",null,"Sainte-Catherine-de-Hatley M  (45060)","45060"]
[null,null,null,null,null,null,"Sainte-Cécile-de-Whitton M  (30050)","30050",null,null,null,null,"Paquet (081560)","081560",null,"Sainte-Catherine-de-la-Jacques-Cartier V  (22005)","22005"]
[null,null,null,null,null,null,"Sainte-Christine P  (48020)","48020",null,null,null,null,"Paradis (072720)","072720",null,"Sainte-Cécile-de-Lévrard P  (38060)","38060"]
[null,null,null,null,null,null,"Sainte-Christine-d'Auvergne M  (34105)","34105",null,null,null,null,"Parent (063400)","063400",null,"Sainte-Cécile-de-Milton M  (47055)","47055"]
[null,null,null,null,null,null,"Sainte-Claire M  (19055)","19055",null,null,null,null,"Parent (080980)","080980",null,"Sainte-Cécile-de-Whitton M  (30050)","30050"]
[null,null,null,null,null,null,"Sainte-Clotilde M  (68020)","68020",null,null,null,null,"Parke (030480)","030480",null,"Sainte-Christine P  (48020)","48020"]
[null,null,null,null,null,null,"Sainte-Clotilde-de-Beauce M  (31060)","31060",null,null,null,null,"Parker (101590)","101590",null,"Sainte-Christine-d'Auvergne M  (34105)","34105"]
[null,null,null,null,null,null,"Sainte-Clotilde-de-Horton M  (39117)","39117",null,null,null,null,"Pascalis (071640)","071640",null,"Sainte-Claire M  (19055)","19055"]
[null,null,null,null,null,null,"Sainte-Croix M  (33102)","33102",null,null,null,null,"Patapédia (020580)","020580",null,"Sainte-Clotilde M  (68020)","68020"]
[null,null,null,null,null,null,"Saint-Edmond-de-Grantham P  (49100)","49100",null,null,null,null,"Patton (030830)","030830",null,"Sainte-Clotilde-de-Beauce M  (31060)","31060"]
[null,null,null,null,null,null,"Saint-Edmond-les-Plaines M  (92050)","92050",null,null,null,null,"Pau (063610)","063610",null,"Sainte-Clotilde-de-Horton M  (39117)","39117"]
[null,null,null,null,null,null,"Saint-Édouard M  (68045)","68045",null,null,null,null,"Payment (063410)","063410",null,"Sainte-Croix M  (33102)","33102"]
[null,null,null,null,null,null,"Saint-Édouard-de-Fabre P  (85015)","85015",null,null,null,null,"Pellegrin (020110)","020110",null,"Saint-Edmond-de-Grantham P  (49100)","49100"]
[null,null,null,null,null,null,"Saint-Édouard-de-Lotbinière P  (33080)","33080",null,null,null,null,"Pelletier (081180)","081180",null,"Saint-Edmond-les-Plaines M  (92050)","92050"]
[null,null,null,null,null,null,"Saint-Édouard-de-Maskinongé M  (51050)","51050",null,null,null,null,"Percé (020020)","020020",null,"Saint-Édouard M  (68045)","68045"]
[null,null,null,null,null,null,"Sainte-Edwidge-de-Clifton CT (44055)","44055",null,null,null,null,"Périgny (080020)","080020",null,"Saint-Édouard-de-Fabre P  (85015)","85015"]
[null,null,null,null,null,null,"Sainte-Élisabeth M  (52030)","52030",null,null,null,null,"Pérodeau (061520)","061520",null,"Saint-Édouard-de-Lotbinière P  (33080)","33080"]
[null,null,null,null,null,null,"Sainte-Élizabeth-de-Warwick M  (39090)","39090",null,null,null,null,"Perron (072660)","072660",null,"Saint-Édouard-de-Maskinongé M  (51050)","51050"]
[null,null,null,null,null,null,"Sainte-Émélie-de-l'Énergie M  (62070)","62070",null,null,null,null,"Pershing (071480)","071480",null,"Sainte-Edwidge-de-Clifton CT (44055)","44055"]
[null,null,null,null,null,null,"Sainte-Eulalie M  (50005)","50005",null,null,null,null,"Perthuis (091240)","091240",null,"Sainte-Élisabeth M  (52030)","52030"]
[null,null,null,null,null,null,"Sainte-Euphémie-sur-Rivière-du-Sud M  (18035)","18035",null,null,null,null,"Peuvret (100460)","100460",null,"Sainte-Élizabeth-de-Warwick M  (39090)","39090"]
[null,null,null,null,null,null,"Sainte-Famille-de-l'Île-d'Orléans M  (20010)","20010",null,null,null,null,"Phélypeaux (100160)","100160",null,"Sainte-Émélie-de-l'Énergie M  (62070)","62070"]
[null,null,null,null,null,null,"Sainte-Félicité M  (08023)","08023",null,null,null,null,"Philipsburg (040540)","040540",null,"Sainte-Eulalie M  (50005)","50005"]
[null,null,null,null,null,null,"Sainte-Félicité M  (17025)","17025",null,null,null,null,"Picquet (073020)","073020",null,"Sainte-Euphémie-sur-Rivière-du-Sud M  (18035)","18035"]
[null,null,null,null,null,null,"Sainte-Flavie P  (09085)","09085",null,null,null,null,"Pinault (021160)","021160",null,"Sainte-Famille-de-l'Île-d'Orléans M  (20010)","20010"]
[null,null,null,null,null,null,"Sainte-Florence M  (07010)","07010",null,null,null,null,"Pinet (101270)","101270",null,"Sainte-Félicité M  (08023)","08023"]
[null,null,null,null,null,null,"Sainte-Françoise M  (38035)","38035",null,null,null,null,"Plessis (081710)","081710",null,"Sainte-Félicité M  (17025)","17025"]
[null,null,null,null,null,null,"Sainte-Françoise P  (11030)","11030",null,null,null,null,"Plessisville (041830)","041830",null,"Sainte-Flavie P  (09085)","09085"]
[null,null,null,null,null,null,"Sainte-Geneviève-de-Batiscan P  (37215)","37215",null,null,null,null,"Pohénégamook (030060)","030060",null,"Sainte-Florence M  (07010)","07010"]
[null,null,null,null,null,null,"Sainte-Geneviève-de-Berthier M  (52040)","52040",null,null,null,null,"Pointe-au-Pic (090040)","090040",null,"Sainte-Françoise M  (38035)","38035"]
[null,null,null,null,null,null,"Sainte-Germaine-Boulé M  (87030)","87030",null,null,null,null,"Pointe-aux-Trembles (050620)","050620",null,"Sainte-Françoise P  (11030)","11030"]
[null,null,null,null,null,null,"Sainte-Gertrude-Manneville M  (88085)","88085",null,null,null,null,"Pointe-aux-Trembles (090880)","090880",null,"Sainte-Geneviève-de-Batiscan P  (37215)","37215"]
[null,null,null,null,null,null,"Sainte-Hedwidge M  (91030)","91030",null,null,null,null,"Pointe-Claire (050760)","050760",null,"Sainte-Geneviève-de-Berthier M  (52040)","52040"]
[null,null,null,null,null,null,"Sainte-Hélène-de-Bagot M  (54095)","54095",null,null,null,null,"Pointe-Claire (050770)","050770",null,"Sainte-Germaine-Boulé M  (87030)","87030"]
[null,null,null,null,null,null,"Sainte-Hélène-de-Chester M  (39035)","39035",null,null,null,null,"Pointe-d'Acton (041040)","041040",null,"Sainte-Gertrude-Manneville M  (88085)","88085"]
[null,null,null,null,null,null,"Sainte-Hélène-de-Kamouraska M  (14025)","14025",null,null,null,null,"Pointe-Fortune (051010)","051010",null,"Sainte-Hedwidge M  (91030)","91030"]
[null,null,null,null,null,null,"Sainte-Hélène-de-Mancebourg P  (87070)","87070",null,null,null,null,"Pointe-Gatineau (060600)","060600",null,"Sainte-Hélène-de-Bagot M  (54095)","54095"]
[null,null,null,null,null,null,"Sainte-Hénédine P  (26040)","26040",null,null,null,null,"Poisson (072960)","072960",null,"Sainte-Hélène-de-Chester M  (39035)","39035"]
[null,null,null,null,null,null,"Sainte-Irène P  (07040)","07040",null,null,null,null,"Polette (063160)","063160",null,"Sainte-Hélène-de-Kamouraska M  (14025)","14025"]
[null,null,null,null,null,null,"Sainte-Jeanne-d'Arc P  (09020)","09020",null,null,null,null,"Pommeroy (073250)","073250",null,"Sainte-Hélène-de-Mancebourg P  (87070)","87070"]
[null,null,null,null,null,null,"Sainte-Jeanne-d'Arc VL (92015)","92015",null,null,null,null,"Ponsonby (060500)","060500",null,"Sainte-Hénédine P  (26040)","26040"]
[null,null,null,null,null,null,"Sainte-Julie V  (59010)","59010",null,null,null,null,"Pontchartrain (100210)","100210",null,"Sainte-Irène P  (07040)","07040"]
[null,null,null,null,null,null,"Sainte-Julienne M  (63060)","63060",null,null,null,null,"Pontefract (070380)","070380",null,"Sainte-Jeanne-d'Arc P  (09020)","09020"]
[null,null,null,null,null,null,"Sainte-Justine M  (28045)","28045",null,null,null,null,"Pontgravé (101200)","101200",null,"Sainte-Jeanne-d'Arc VL (92015)","92015"]
[null,null,null,null,null,null,"Sainte-Justine-de-Newton M  (71115)","71115",null,null,null,null,"Pontleroy (073150)","073150",null,"Sainte-Julie V  (59010)","59010"]
[null,null,null,null,null,null,"Saint-Élie-de-Caxton M  (51075)","51075",null,null,null,null,"Pope (061440)","061440",null,"Sainte-Julienne M  (63060)","63060"]
[null,null,null,null,null,null,"Saint-Éloi P  (11035)","11035",null,null,null,null,"Portage-du-Fort (070100)","070100",null,"Sainte-Justine M  (28045)","28045"]
[null,null,null,null,null,null,"Sainte-Louise P  (17060)","17060",null,null,null,null,"Port-Daniel (020340)","020340",null,"Sainte-Justine-de-Newton M  (71115)","71115"]
[null,null,null,null,null,null,"Saint-Elphège P  (50095)","50095",null,null,null,null,"Portland (060410)","060410",null,"Saint-Élie-de-Caxton M  (51075)","51075"]
[null,null,null,null,null,null,"Sainte-Luce M  (09092)","09092",null,null,null,null,"Pothier (063650)","063650",null,"Saint-Éloi P  (11035)","11035"]
[null,null,null,null,null,null,"Sainte-Lucie-de-Beauregard M  (18020)","18020",null,null,null,null,"Potton (040460)","040460",null,"Sainte-Louise P  (17060)","17060"]
[null,null,null,null,null,null,"Sainte-Lucie-des-Laurentides M  (78020)","78020",null,null,null,null,"Poularies (072220)","072220",null,"Saint-Elphège P  (50095)","50095"]
[null,null,null,null,null,null,"Saint-Elzéar M  (05050)","05050",null,null,null,null,"Preissac (071820)","071820",null,"Sainte-Luce M  (09092)","09092"]
[null,null,null,null,null,null,"Saint-Elzéar M  (26022)","26022",null,null,null,null,"Preston (060540)","060540",null,"Sainte-Lucie-de-Beauregard M  (18020)","18020"]
[null,null,null,null,null,null,"Saint-Elzéar-de-Témiscouata M  (13085)","13085",null,null,null,null,"Price (040220)","040220",null,"Sainte-Lucie-des-Laurentides M  (78020)","78020"]
[null,null,null,null,null,null,"Sainte-Madeleine VL (54025)","54025",null,null,null,null,"Princeville (042010)","042010",null,"Saint-Elzéar M  (05050)","05050"]
[null,null,null,null,null,null,"Sainte-Madeleine-de-la-Rivière-Madeleine M  (04005)","04005",null,null,null,null,"Privat (072200)","072200",null,"Saint-Elzéar M  (26022)","26022"]
[null,null,null,null,null,null,"Sainte-Marcelline-de-Kildare M  (62030)","62030",null,null,null,null,"Privat (072210)","072210",null,"Saint-Elzéar-de-Témiscouata M  (13085)","13085"]
[null,null,null,null,null,null,"Sainte-Marguerite P  (26035)","26035",null,null,null,null,"Proulx (081120)","081120",null,"Sainte-Madeleine VL (54025)","54025"]
[null,null,null,null,null,null,"Sainte-Marguerite-du-Lac-Masson V  (77012)","77012",null,null,null,null,"Provost (062320)","062320",null,"Sainte-Madeleine-de-la-Rivière-Madeleine M  (04005)","04005"]
[null,null,null,null,null,null,"Sainte-Marguerite-Marie M  (07005)","07005",null,null,null,null,"Québec (quartier Champlain) (091230)","091230",null,"Sainte-Marcelline-de-Kildare M  (62030)","62030"]
[null,null,null,null,null,null,"Sainte-Marie V  (26030)","26030",null,null,null,null,"Québec (quartier du Palais) (091210)","091210",null,"Sainte-Marguerite P  (26035)","26035"]
[null,null,null,null,null,null,"Sainte-Marie-de-Blandford M  (38015)","38015",null,null,null,null,"Québec (quartier Jacques-Cartier) (091180)","091180",null,"Sainte-Marguerite-du-Lac-Masson V  (77012)","77012"]
[null,null,null,null,null,null,"Sainte-Marie-Madeleine P  (54030)","54030",null,null,null,null,"Québec (quartier Montcalm) (090600)","090600",null,"Sainte-Marguerite-Marie M  (07005)","07005"]
[null,null,null,null,null,null,"Sainte-Marie-Salomé M  (63005)","63005",null,null,null,null,"Québec (quartier Saint-Jean) (091200)","091200",null,"Sainte-Marie V  (26030)","26030"]
[null,null,null,null,null,null,"Sainte-Marthe M  (71110)","71110",null,null,null,null,"Québec (quartier Saint-Louis) (091220)","091220",null,"Sainte-Marie-de-Blandford M  (38015)","38015"]
[null,null,null,null,null,null,"Sainte-Marthe-sur-le-Lac V  (72015)","72015",null,null,null,null,"Québec (quartier Saint-Pierre) (091190)","091190",null,"Sainte-Marie-Madeleine P  (54030)","54030"]
[null,null,null,null,null,null,"Sainte-Martine M  (70012)","70012",null,null,null,null,"Québec (quartier Saint-Roch) (091170)","091170",null,"Sainte-Marie-Salomé M  (63005)","63005"]
[null,null,null,null,null,null,"Sainte-Mélanie M  (61050)","61050",null,null,null,null,"Quesnel (081640)","081640",null,"Sainte-Marthe M  (71110)","71110"]
[null,null,null,null,null,null,"Saint-Émile-de-Suffolk M  (80125)","80125",null,null,null,null,"Quévillon (072780)","072780",null,"Sainte-Marthe-sur-le-Lac V  (72015)","72015"]
[null,null,null,null,null,null,"Sainte-Monique M  (50057)","50057",null,null,null,null,"Queylus (081470)","081470",null,"Sainte-Martine M  (70012)","70012"]
[null,null,null,null,null,null,"Sainte-Monique M  (93075)","93075",null,null,null,null,"Quyon (070010)","070010",null,"Sainte-Mélanie M  (61050)","61050"]
[null,null,null,null,null,null,"Sainte-Paule M  (08040)","08040",null,null,null,null,"Racine (081000)","081000",null,"Saint-Émile-de-Suffolk M  (80125)","80125"]
[null,null,null,null,null,null,"Sainte-Perpétue M  (17030)","17030",null,null,null,null,"Radisson (101580)","101580",null,"Sainte-Monique M  (50057)","50057"]
[null,null,null,null,null,null,"Sainte-Perpétue P  (50050)","50050",null,null,null,null,"Radnor (063010)","063010",null,"Sainte-Monique M  (93075)","93075"]
[null,null,null,null,null,null,"Sainte-Pétronille VL (20030)","20030",null,null,null,null,"Ragueneau (101020)","101020",null,"Sainte-Paule M  (08040)","08040"]
[null,null,null,null,null,null,"Saint-Éphrem-de-Beauce M  (29112)","29112",null,null,null,null,"Rameau (020120)","020120",null,"Sainte-Perpétue M  (17030)","17030"]
[null,null,null,null,null,null,"Saint-Épiphane M  (12030)","12030",null,null,null,null,"Ramezay (081360)","081360",null,"Sainte-Perpétue P  (50050)","50050"]
[null,null,null,null,null,null,"Sainte-Praxède P  (31050)","31050",null,null,null,null,"Rapides-des-Joachims (070510)","070510",null,"Sainte-Pétronille VL (20030)","20030"]
[null,null,null,null,null,null,"Sainte-Rita M  (11015)","11015",null,null,null,null,"Raudin (020100)","020100",null,"Saint-Éphrem-de-Beauce M  (29112)","29112"]
[null,null,null,null,null,null,"Sainte-Rose-de-Watford M  (28030)","28030",null,null,null,null,"Raudot (030180)","030180",null,"Saint-Épiphane M  (12030)","12030"]
[null,null,null,null,null,null,"Sainte-Rose-du-Nord P  (94230)","94230",null,null,null,null,"Rawdon (061710)","061710",null,"Sainte-Praxède P  (31050)","31050"]
[null,null,null,null,null,null,"Sainte-Sabine M  (46105)","46105",null,null,null,null,"Reclus (070700)","070700",null,"Sainte-Rita M  (11015)","11015"]
[null,null,null,null,null,null,"Sainte-Sabine P  (28065)","28065",null,null,null,null,"Rémigny (071080)","071080",null,"Sainte-Rose-de-Watford M  (28030)","28030"]
[null,null,null,null,null,null,"Sainte-Séraphine P  (39105)","39105",null,null,null,null,"Rhéaume (063690)","063690",null,"Sainte-Rose-du-Nord P  (94230)","94230"]
[null,null,null,null,null,null,"Sainte-Sophie M  (75028)","75028",null,null,null,null,"Rhodes (063500)","063500",null,"Sainte-Sabine M  (46105)","46105"]
[null,null,null,null,null,null,"Sainte-Sophie-de-Lévrard P  (38040)","38040",null,null,null,null,"Richardson (081480)","081480",null,"Sainte-Sabine P  (28065)","28065"]
[null,null,null,null,null,null,"Sainte-Sophie-d'Halifax M  (32023)","32023",null,null,null,null,"Richelieu (040820)","040820",null,"Sainte-Séraphine P  (39105)","39105"]
[null,null,null,null,null,null,"Saint-Esprit M  (63030)","63030",null,null,null,null,"Richmond (041460)","041460",null,"Sainte-Sophie M  (75028)","75028"]
[null,null,null,null,null,null,"Sainte-Thècle M  (35050)","35050",null,null,null,null,"Rigaud (051000)","051000",null,"Sainte-Sophie-de-Lévrard P  (38040)","38040"]
[null,null,null,null,null,null,"Sainte-Thérèse V  (73010)","73010",null,null,null,null,"Ripon (060360)","060360",null,"Sainte-Sophie-d'Halifax M  (32023)","32023"]
[null,null,null,null,null,null,"Sainte-Thérèse-de-Gaspé M  (02010)","02010",null,null,null,null,"Risborough (040160)","040160",null,"Saint-Esprit M  (63030)","63030"]
[null,null,null,null,null,null,"Sainte-Thérèse-de-la-Gatineau M  (83055)","83055",null,null,null,null,"Ristigouche (020540)","020540",null,"Sainte-Thècle M  (35050)","35050"]
[null,null,null,null,null,null,"Saint-Étienne-de-Beauharnois M  (70030)","70030",null,null,null,null,"Rivière-Aguanus (101420)","101420",null,"Sainte-Thérèse V  (73010)","73010"]
[null,null,null,null,null,null,"Saint-Étienne-de-Bolton M  (45100)","45100",null,null,null,null,"Rivière-au-Tonnerre (100720)","100720",null,"Sainte-Thérèse-de-Gaspé M  (02010)","02010"]
[null,null,null,null,null,null,"Saint-Étienne-des-Grès P  (51090)","51090",null,null,null,null,"Rivière-aux-Outardes (101460)","101460",null,"Sainte-Thérèse-de-la-Gatineau M  (83055)","83055"]
[null,null,null,null,null,null,"Saint-Eugène M  (49105)","49105",null,null,null,null,"Rivière-aux-Rochers (101400)","101400",null,"Saint-Étienne-de-Beauharnois M  (70030)","70030"]
[null,null,null,null,null,null,"Saint-Eugène-d'Argentenay M  (92065)","92065",null,null,null,null,"Rivière-Betsiamites (080560)","080560",null,"Saint-Étienne-de-Bolton M  (45100)","45100"]
[null,null,null,null,null,null,"Saint-Eugène-de-Guigues M  (85085)","85085",null,null,null,null,"Rivière-des-Prairies (050630)","050630",null,"Saint-Étienne-des-Grès P  (51090)","51090"]
[null,null,null,null,null,null,"Saint-Eugène-de-Ladrière P  (10075)","10075",null,null,null,null,"Rivière-du-gouffre (091260)","091260",null,"Saint-Eugène M  (49105)","49105"]
[null,null,null,null,null,null,"Sainte-Ursule M  (51040)","51040",null,null,null,null,"Rivière-du-Lièvre (062570)","062570",null,"Saint-Eugène-d'Argentenay M  (92065)","92065"]
[null,null,null,null,null,null,"Saint-Eusèbe P  (13030)","13030",null,null,null,null,"Rivière-Gatineau (063420)","063420",null,"Saint-Eugène-de-Guigues M  (85085)","85085"]
[null,null,null,null,null,null,"Saint-Eustache V  (72005)","72005",null,null,null,null,"Rivière-Hamilton (100150)","100150",null,"Saint-Eugène-de-Ladrière P  (10075)","10075"]
[null,null,null,null,null,null,"Saint-Évariste-de-Forsyth M  (29025)","29025",null,null,null,null,"Rivière-Jacques-Cartier (090350)","090350",null,"Sainte-Ursule M  (51040)","51040"]
[null,null,null,null,null,null,"Sainte-Victoire-de-Sorel M  (53025)","53025",null,null,null,null,"Rivière-Magpie (101470)","101470",null,"Saint-Eusèbe P  (13030)","13030"]
[null,null,null,null,null,null,"Saint-Fabien P  (10070)","10070",null,null,null,null,"Rivière-Malbaie (091280)","091280",null,"Saint-Eustache V  (72005)","72005"]
[null,null,null,null,null,null,"Saint-Fabien-de-Panet P  (18015)","18015",null,null,null,null,"Rivière-Manicouagan (101380)","101380",null,"Saint-Évariste-de-Forsyth M  (29025)","29025"]
[null,null,null,null,null,null,"Saint-Faustin--Lac-Carré M  (78047)","78047",null,null,null,null,"Rivière-Manouane (080600)","080600",null,"Sainte-Victoire-de-Sorel M  (53025)","53025"]
[null,null,null,null,null,null,"Saint-Félicien V  (91042)","91042",null,null,null,null,"Rivière-Mécatina (100170)","100170",null,"Saint-Fabien P  (10070)","10070"]
[null,null,null,null,null,null,"Saint-Félix-de-Dalquier M  (88060)","88060",null,null,null,null,"Rivière-Moisie (101440)","101440",null,"Saint-Fabien-de-Panet P  (18015)","18015"]
[null,null,null,null,null,null,"Saint-Félix-de-Kingsey M  (49005)","49005",null,null,null,null,"Rivière-Ouelle (030530)","030530",null,"Saint-Faustin--Lac-Carré M  (78047)","78047"]
[null,null,null,null,null,null,"Saint-Félix-de-Valois M  (62007)","62007",null,null,null,null,"Rivière-Pentecôte (101390)","101390",null,"Saint-Félicien V  (91042)","91042"]
[null,null,null,null,null,null,"Saint-Félix-d'Otis M  (94225)","94225",null,null,null,null,"Rivière-Péribonca (080540)","080540",null,"Saint-Félix-de-Dalquier M  (88060)","88060"]
[null,null,null,null,null,null,"Saint-Ferdinand M  (32013)","32013",null,null,null,null,"Rivière-Portneuf (081670)","081670",null,"Saint-Félix-de-Kingsey M  (49005)","49005"]
[null,null,null,null,null,null,"Saint-Ferréol-les-Neiges M  (21010)","21010",null,null,null,null,"Rivière-Rupert (081570)","081570",null,"Saint-Félix-de-Valois M  (62007)","62007"]
[null,null,null,null,null,null,"Saint-Flavien M  (33052)","33052",null,null,null,null,"Rivière-Sainte-Marguerite (100820)","100820",null,"Saint-Félix-d'Otis M  (94225)","94225"]
[null,null,null,null,null,null,"Saint-Fortunat M  (31030)","31030",null,null,null,null,"Rivière-Shipshaw (081660)","081660",null,"Saint-Ferdinand M  (32013)","32013"]
[null,null,null,null,null,null,"Saint-François-d'Assise M  (06055)","06055",null,null,null,null,"Robertson (061420)","061420",null,"Saint-Ferréol-les-Neiges M  (21010)","21010"]
[null,null,null,null,null,null,"Saint-François-de-la-Rivière-du-Sud M  (18060)","18060",null,null,null,null,"Roberval (080860)","080860",null,"Saint-Flavien M  (33052)","33052"]
[null,null,null,null,null,null,"Saint-François-de-l'Île-d'Orléans M  (20005)","20005",null,null,null,null,"Roberval (080880)","080880",null,"Saint-Fortunat M  (31030)","31030"]
[null,null,null,null,null,null,"Saint-François-de-Sales M  (91015)","91015",null,null,null,null,"Roberval (081680)","081680",null,"Saint-François-d'Assise M  (06055)","06055"]
[null,null,null,null,null,null,"Saint-François-du-Lac M  (50128)","50128",null,null,null,null,"Robidoux (020440)","020440",null,"Saint-François-de-la-Rivière-du-Sud M  (18060)","18060"]
[null,null,null,null,null,null,"Saint-François-Xavier-de-Brompton M  (42020)","42020",null,null,null,null,"Robinson (030020)","030020",null,"Saint-François-de-l'Île-d'Orléans M  (20005)","20005"]
[null,null,null,null,null,null,"Saint-François-Xavier-de-Viger M  (12025)","12025",null,null,null,null,"Robitaille (030160)","030160",null,"Saint-François-de-Sales M  (91015)","91015"]
[null,null,null,null,null,null,"Saint-Frédéric P  (27065)","27065",null,null,null,null,"Rochebaucourt (072100)","072100",null,"Saint-François-du-Lac M  (50128)","50128"]
[null,null,null,null,null,null,"Saint-Fulgence M  (94235)","94235",null,null,null,null,"Rochemonteix (100740)","100740",null,"Saint-François-Xavier-de-Brompton M  (42020)","42020"]
[null,null,null,null,null,null,"Saint-Gabriel V  (52080)","52080",null,null,null,null,"Rochers-aux-Oiseaux (010100)","010100",null,"Saint-François-Xavier-de-Viger M  (12025)","12025"]
[null,null,null,null,null,null,"Saint-Gabriel-de-Brandon M  (52085)","52085",null,null,null,null,"Rochon (061500)","061500",null,"Saint-Frédéric P  (27065)","27065"]
[null,null,null,null,null,null,"Saint-Gabriel-de-Rimouski M  (09025)","09025",null,null,null,null,"Rock Island (040390)","040390",null,"Saint-Fulgence M  (94235)","94235"]
[null,null,null,null,null,null,"Saint-Gabriel-de-Valcartier M  (22025)","22025",null,null,null,null,"Rohault (081730)","081730",null,"Saint-Gabriel V  (52080)","52080"]
[null,null,null,null,null,null,"Saint-Gabriel-Lalemant M  (14075)","14075",null,null,null,null,"Rolette (030810)","030810",null,"Saint-Gabriel-de-Brandon M  (52085)","52085"]
[null,null,null,null,null,null,"Saint-Gédéon M  (93035)","93035",null,null,null,null,"Rolland (061790)","061790",null,"Saint-Gabriel-de-Rimouski M  (09025)","09025"]
[null,null,null,null,null,null,"Saint-Gédéon-de-Beauce M  (29013)","29013",null,null,null,null,"Romieu (021520)","021520",null,"Saint-Gabriel-de-Valcartier M  (22025)","22025"]
[null,null,null,null,null,null,"Saint-Georges V  (29073)","29073",null,null,null,null,"Roquemaure (072260)","072260",null,"Saint-Gabriel-Lalemant M  (14075)","14075"]
[null,null,null,null,null,null,"Saint-Georges-de-Clarenceville M  (56010)","56010",null,null,null,null,"Ross (080900)","080900",null,"Saint-Gédéon M  (93035)","93035"]
[null,null,null,null,null,null,"Saint-Georges-de-Windsor M  (40032)","40032",null,null,null,null,"Rouillard (030120)","030120",null,"Saint-Gédéon-de-Beauce M  (29013)","29013"]
[null,null,null,null,null,null,"Saint-Gérard-Majella P  (53085)","53085",null,null,null,null,"Rouleau (080510)","080510",null,"Saint-Georges V  (29073)","29073"]
[null,null,null,null,null,null,"Saint-Germain P  (14045)","14045",null,null,null,null,"Rousseau (072680)","072680",null,"Saint-Georges-de-Clarenceville M  (56010)","56010"]
[null,null,null,null,null,null,"Saint-Germain-de-Grantham M  (49048)","49048",null,null,null,null,"Routhier (063450)","063450",null,"Saint-Georges-de-Windsor M  (40032)","40032"]
[null,null,null,null,null,null,"Saint-Gervais M  (19075)","19075",null,null,null,null,"Roux (030980)","030980",null,"Saint-Gérard-Majella P  (53085)","53085"]
[null,null,null,null,null,null,"Saint-Gilbert P  (34060)","34060",null,null,null,null,"Rouyn (071240)","071240",null,"Saint-Germain P  (14045)","14045"]
[null,null,null,null,null,null,"Saint-Gilles M  (33035)","33035",null,null,null,null,"Rouyn (071260)","071260",null,"Saint-Germain-de-Grantham M  (49048)","49048"]
[null,null,null,null,null,null,"Saint-Godefroi CT (05015)","05015",null,null,null,null,"Roxton Falls (041250)","041250",null,"Saint-Gervais M  (19075)","19075"]
[null,null,null,null,null,null,"Saint-Guillaume M  (49113)","49113",null,null,null,null,"Roxton (041240)","041240",null,"Saint-Gilbert P  (34060)","34060"]
[null,null,null,null,null,null,"Saint-Guillaume-Nord NO (62912)","62912",null,null,null,null,"Roy (081460)","081460",null,"Saint-Gilles M  (33035)","33035"]
[null,null,null,null,null,null,"Saint-Guy M  (11020)","11020",null,null,null,null,"Royal-Roussillon (072340)","072340",null,"Saint-Godefroi CT (05015)","05015"]
[null,null,null,null,null,null,"Saint-Henri M  (19068)","19068",null,null,null,null,"Royer (100920)","100920",null,"Saint-Guillaume M  (49113)","49113"]
[null,null,null,null,null,null,"Saint-Henri-de-Taillon M  (93070)","93070",null,null,null,null,"Sabourin (071010)","071010",null,"Saint-Guillaume-Nord NO (62912)","62912"]
[null,null,null,null,null,null,"Saint-Herménégilde M  (44015)","44015",null,null,null,null,"Sagard (090180)","090180",null,"Saint-Guy M  (11020)","11020"]
[null,null,null,null,null,null,"Saint-Hilaire-de-Dorset P  (29020)","29020",null,null,null,null,"Saguenay (090160)","090160",null,"Saint-Henri M  (19068)","19068"]
[null,null,null,null,null,null,"Saint-Hilarion P  (16050)","16050",null,null,null,null,"Saint Andrews (060010)","060010",null,"Saint-Henri-de-Taillon M  (93070)","93070"]
[null,null,null,null,null,null,"Saint-Hippolyte M  (75045)","75045",null,null,null,null,"Saint-Adolphe (090320)","090320",null,"Saint-Herménégilde M  (44015)","44015"]
[null,null,null,null,null,null,"Saint-Honoré V  (94240)","94240",null,null,null,null,"Saint-Agapit (042480)","042480",null,"Saint-Hilaire-de-Dorset P  (29020)","29020"]
[null,null,null,null,null,null,"Saint-Honoré-de-Shenley M  (29038)","29038",null,null,null,null,"Saint-Aimé (042120)","042120",null,"Saint-Hilarion P  (16050)","16050"]
[null,null,null,null,null,null,"Saint-Honoré-de-Témiscouata M  (13090)","13090",null,null,null,null,"Saint-Alban-d'Alton (091040)","091040",null,"Saint-Hippolyte M  (75045)","75045"]
[null,null,null,null,null,null,"Saint-Hubert-de-Rivière-du-Loup M  (12010)","12010",null,null,null,null,"Saint-Alexandre (030580)","030580",null,"Saint-Honoré V  (94240)","94240"]
[null,null,null,null,null,null,"Saint-Hugues M  (54100)","54100",null,null,null,null,"Saint-Alexandre (051670)","051670",null,"Saint-Honoré-de-Shenley M  (29038)","29038"]
[null,null,null,null,null,null,"Saint-Hyacinthe V  (54048)","54048",null,null,null,null,"Saint-Alexis (061640)","061640",null,"Saint-Honoré-de-Témiscouata M  (13090)","13090"]
[null,null,null,null,null,null,"Saint-Ignace-de-Loyola M  (52045)","52045",null,null,null,null,"Saint-Alexis (080120)","080120",null,"Saint-Hubert-de-Rivière-du-Loup M  (12010)","12010"]
[null,null,null,null,null,null,"Saint-Ignace-de-Stanbridge M  (46095)","46095",null,null,null,null,"Saint-Alphonse (080130)","080130",null,"Saint-Hugues M  (54100)","54100"]
[null,null,null,null,null,null,"Saint-Irénée P  (15005)","15005",null,null,null,null,"Saint-Alphonse-de-Rodriguez (061940)","061940",null,"Saint-Hyacinthe V  (54048)","54048"]
[null,null,null,null,null,null,"Saint-Isidore M  (26063)","26063",null,null,null,null,"Saint-Ambroise-de-Kildare (061920)","061920",null,"Saint-Ignace-de-Loyola M  (52045)","52045"]
[null,null,null,null,null,null,"Saint-Isidore P  (67040)","67040",null,null,null,null,"Saint-Ambroise-de-la-Jeune-Lorette (090710)","090710",null,"Saint-Ignace-de-Stanbridge M  (46095)","46095"]
[null,null,null,null,null,null,"Saint-Isidore-de-Clifton M  (41012)","41012",null,null,null,null,"Saint-Anaclet (020920)","020920",null,"Saint-Irénée P  (15005)","15005"]
[null,null,null,null,null,null,"Saint-Jacques M  (63013)","63013",null,null,null,null,"Saint-André (030570)","030570",null,"Saint-Isidore M  (26063)","26063"]
[null,null,null,null,null,null,"Saint-Jacques-de-Leeds M  (31140)","31140",null,null,null,null,"Saint-André-Avellin (060340)","060340",null,"Saint-Isidore P  (67040)","67040"]
[null,null,null,null,null,null,"Saint-Jacques-le-Majeur-de-Wolfestown P  (31025)","31025",null,null,null,null,"Saint-André-d'Acton (041020)","041020",null,"Saint-Isidore-de-Clifton M  (41012)","41012"]
[null,null,null,null,null,null,"Saint-Jacques-le-Mineur M  (68040)","68040",null,null,null,null,"Saint-Anselme (031080)","031080",null,"Saint-Jacques M  (63013)","63013"]
[null,null,null,null,null,null,"Saint-Janvier-de-Joly M  (33065)","33065",null,null,null,null,"Saint-Antoine (042570)","042570",null,"Saint-Jacques-de-Leeds M  (31140)","31140"]
[null,null,null,null,null,null,"Saint-Jean-Baptiste M  (57033)","57033",null,null,null,null,"Saint-Antoine (050600)","050600",null,"Saint-Jacques-le-Majeur-de-Wolfestown P  (31025)","31025"]
[null,null,null,null,null,null,"Saint-Jean-de-Brébeuf M  (31100)","31100",null,null,null,null,"Saint-Antoine-Abbé (050240)","050240",null,"Saint-Jacques-le-Mineur M  (68040)","68040"]
[null,null,null,null,null,null,"Saint-Jean-de-Cherbourg P  (08010)","08010",null,null,null,null,"Saint-Antoine-de-la-Baie-du-Febvre (042290)","042290",null,"Saint-Janvier-de-Joly M  (33065)","33065"]
[null,null,null,null,null,null,"Saint-Jean-de-Dieu M  (11010)","11010",null,null,null,null,"Saint-Antoine-de-la-Rivière-du-Loup (062380)","062380",null,"Saint-Jean-Baptiste M  (57033)","57033"]
[null,null,null,null,null,null,"Saint-Jean-de-la-Lande M  (13010)","13010",null,null,null,null,"Saint-Antoine-de-Lavaltrie (062100)","062100",null,"Saint-Jean-de-Brébeuf M  (31100)","31100"]
[null,null,null,null,null,null,"Saint-Jean-de-l'Île-d'Orléans M  (20015)","20015",null,null,null,null,"Saint-Antoine-de-l'Île-aux-Grues (030930)","030930",null,"Saint-Jean-de-Cherbourg P  (08010)","08010"]
[null,null,null,null,null,null,"Saint-Jean-de-Matha M  (62015)","62015",null,null,null,null,"Saint-Antoine-de-Longueuil (050500)","050500",null,"Saint-Jean-de-Dieu M  (11010)","11010"]
[null,null,null,null,null,null,"Saint-Jean-Port-Joli M  (17070)","17070",null,null,null,null,"Saint-Antonin (030230)","030230",null,"Saint-Jean-de-la-Lande M  (13010)","13010"]
[null,null,null,null,null,null,"Saint-Jean-sur-Richelieu V  (56083)","56083",null,null,null,null,"Saint-Apollinaire (042490)","042490",null,"Saint-Jean-de-l'Île-d'Orléans M  (20015)","20015"]
[null,null,null,null,null,null,"Saint-Jérôme V  (75017)","75017",null,null,null,null,"Saint-Armand-Est (040510)","040510",null,"Saint-Jean-de-Matha M  (62015)","62015"]
[null,null,null,null,null,null,"Saint-Joachim P  (21020)","21020",null,null,null,null,"Saint-Armand-Ouest (040530)","040530",null,"Saint-Jean-Port-Joli M  (17070)","17070"]
[null,null,null,null,null,null,"Saint-Joachim-de-Shefford M  (47040)","47040",null,null,null,null,"Saint-Arsène (030320)","030320",null,"Saint-Jean-sur-Richelieu V  (56083)","56083"]
[null,null,null,null,null,null,"Saint-Joseph-de-Beauce V  (27043)","27043",null,null,null,null,"Saint-Athanase (051650)","051650",null,"Saint-Jérôme V  (75017)","75017"]
[null,null,null,null,null,null,"Saint-Joseph-de-Coleraine M  (31045)","31045",null,null,null,null,"Saint-Aubert (030740)","030740",null,"Saint-Joachim P  (21020)","21020"]
[null,null,null,null,null,null,"Saint-Joseph-de-Kamouraska P  (14030)","14030",null,null,null,null,"Saint-Augustin (051090)","051090",null,"Saint-Joachim-de-Shefford M  (47040)","47040"]
[null,null,null,null,null,null,"Saint-Joseph-de-Lepage P  (09070)","09070",null,null,null,null,"Saint-Augustin (090860)","090860",null,"Saint-Joseph-de-Beauce V  (27043)","27043"]
[null,null,null,null,null,null,"Saint-Joseph-des-Érables M  (27050)","27050",null,null,null,null,"Saint-Barnabé (040920)","040920",null,"Saint-Joseph-de-Coleraine M  (31045)","31045"]
[null,null,null,null,null,null,"Saint-Joseph-de-Sorel V  (53050)","53050",null,null,null,null,"Saint-Barnabé (062910)","062910",null,"Saint-Joseph-de-Kamouraska P  (14030)","14030"]
[null,null,null,null,null,null,"Saint-Joseph-du-Lac M  (72025)","72025",null,null,null,null,"Saint-Barthélemy (062180)","062180",null,"Saint-Joseph-de-Lepage P  (09070)","09070"]
[null,null,null,null,null,null,"Saint-Jude M  (54110)","54110",null,null,null,null,"Saint-Basile (090960)","090960",null,"Saint-Joseph-des-Érables M  (27050)","27050"]
[null,null,null,null,null,null,"Saint-Jules P  (27055)","27055",null,null,null,null,"Saint-Benoît (051080)","051080",null,"Saint-Joseph-de-Sorel V  (53050)","53050"]
[null,null,null,null,null,null,"Saint-Julien M  (31035)","31035",null,null,null,null,"Saint-Benoît-Joseph-Labre (021200)","021200",null,"Saint-Joseph-du-Lac M  (72025)","72025"]
[null,null,null,null,null,null,"Saint-Just-de-Bretenières M  (18005)","18005",null,null,null,null,"Saint-Bernard (031230)","031230",null,"Saint-Jude M  (54110)","54110"]
[null,null,null,null,null,null,"Saint-Juste-du-Lac M  (13040)","13040",null,null,null,null,"Saint-Bonaventure (042080)","042080",null,"Saint-Jules P  (27055)","27055"]
[null,null,null,null,null,null,"Saint-Justin M  (51045)","51045",null,null,null,null,"Saint-Boniface (062940)","062940",null,"Saint-Julien M  (31035)","31035"]
[null,null,null,null,null,null,"Saint-Lambert P  (87120)","87120",null,null,null,null,"Saint-Bruno (050480)","050480",null,"Saint-Just-de-Bretenières M  (18005)","18005"]
[null,null,null,null,null,null,"Saint-Lambert V  (58012)","58012",null,null,null,null,"Saint-Camille (041510)","041510",null,"Saint-Juste-du-Lac M  (13040)","13040"]
[null,null,null,null,null,null,"Saint-Lambert-de-Lauzon M  (26070)","26070",null,null,null,null,"Saint-Canut (051140)","051140",null,"Saint-Justin M  (51045)","51045"]
[null,null,null,null,null,null,"Saint-Laurent-de-l'Île-d'Orléans M  (20020)","20020",null,null,null,null,"Saint-Casimir (091020)","091020",null,"Saint-Lambert P  (87120)","87120"]
[null,null,null,null,null,null,"Saint-Lazare V  (71105)","71105",null,null,null,null,"Saint-Castin (101310)","101310",null,"Saint-Lambert V  (58012)","58012"]
[null,null,null,null,null,null,"Saint-Lazare-de-Bellechasse M  (19050)","19050",null,null,null,null,"Saint-Célestin (042340)","042340",null,"Saint-Lambert-de-Lauzon M  (26070)","26070"]
[null,null,null,null,null,null,"Saint-Léandre P  (08065)","08065",null,null,null,null,"Saint-Césaire (040750)","040750",null,"Saint-Laurent-de-l'Île-d'Orléans M  (20020)","20020"]
[null,null,null,null,null,null,"Saint-Léonard-d'Aston M  (50042)","50042",null,null,null,null,"Saint-Césaire (040760)","040760",null,"Saint-Lazare V  (71105)","71105"]
[null,null,null,null,null,null,"Saint-Léonard-de-Portneuf M  (34115)","34115",null,null,null,null,"Saint-Charles (031090)","031090",null,"Saint-Lazare-de-Bellechasse M  (19050)","19050"]
[null,null,null,null,null,null,"Saint-Léon-de-Standon P  (19020)","19020",null,null,null,null,"Saint-Charles (040870)","040870",null,"Saint-Léandre P  (08065)","08065"]
[null,null,null,null,null,null,"Saint-Léon-le-Grand P  (07030)","07030",null,null,null,null,"Saint-Charles-Borromée (061860)","061860",null,"Saint-Léonard-d'Aston M  (50042)","50042"]
[null,null,null,null,null,null,"Saint-Léon-le-Grand P  (51035)","51035",null,null,null,null,"Saint-Christophe (041910)","041910",null,"Saint-Léonard-de-Portneuf M  (34115)","34115"]
[null,null,null,null,null,null,"Saint-Liboire M  (54072)","54072",null,null,null,null,"Saint-Clément (050300)","050300",null,"Saint-Léon-de-Standon P  (19020)","19020"]
[null,null,null,null,null,null,"Saint-Liguori M  (63065)","63065",null,null,null,null,"Saint-Clet (050900)","050900",null,"Saint-Léon-le-Grand P  (07030)","07030"]
[null,null,null,null,null,null,"Saint-Lin--Laurentides V  (63048)","63048",null,null,null,null,"Saint-Colomban (051150)","051150",null,"Saint-Léon-le-Grand P  (51035)","51035"]
[null,null,null,null,null,null,"Saint-Louis M  (54120)","54120",null,null,null,null,"Saint-Colomb-de-Sillery (090640)","090640",null,"Saint-Liboire M  (54072)","54072"]
[null,null,null,null,null,null,"Saint-Louis-de-Blandford M  (39170)","39170",null,null,null,null,"Saint-Constant (050400)","050400",null,"Saint-Liguori M  (63065)","63065"]
[null,null,null,null,null,null,"Saint-Louis-de-Gonzague M  (28035)","28035",null,null,null,null,"Saint-Cuthbert (062200)","062200",null,"Saint-Lin--Laurentides V  (63048)","63048"]
[null,null,null,null,null,null,"Saint-Louis-de-Gonzague P  (70035)","70035",null,null,null,null,"Saint-Cyprien (050070)","050070",null,"Saint-Louis M  (54120)","54120"]
[null,null,null,null,null,null,"Saint-Louis-de-Gonzague-du-Cap-Tourmente P  (21015)","21015",null,null,null,null,"Saint-Cyrille (030710)","030710",null,"Saint-Louis-de-Blandford M  (39170)","39170"]
[null,null,null,null,null,null,"Saint-Louis-du-Ha! Ha! P  (13080)","13080",null,null,null,null,"Saint-Damase (040770)","040770",null,"Saint-Louis-de-Gonzague M  (28035)","28035"]
[null,null,null,null,null,null,"Saint-Luc-de-Bellechasse M  (28060)","28060",null,null,null,null,"Saint-Damien-de-Brandon (062280)","062280",null,"Saint-Louis-de-Gonzague P  (70035)","70035"]
[null,null,null,null,null,null,"Saint-Luc-de-Vincennes M  (37225)","37225",null,null,null,null,"Saint-David (042220)","042220",null,"Saint-Louis-de-Gonzague-du-Cap-Tourmente P  (21015)","21015"]
[null,null,null,null,null,null,"Saint-Lucien M  (49030)","49030",null,null,null,null,"Saint-David-de-L'Auberivière (031310)","031310",null,"Saint-Louis-du-Ha! Ha! P  (13080)","13080"]
[null,null,null,null,null,null,"Saint-Ludger M  (30072)","30072",null,null,null,null,"Saint-Denis (021460)","021460",null,"Saint-Luc-de-Bellechasse M  (28060)","28060"]
[null,null,null,null,null,null,"Saint-Ludger-de-Milot M  (93080)","93080",null,null,null,null,"Saint-Denis (030540)","030540",null,"Saint-Luc-de-Vincennes M  (37225)","37225"]
[null,null,null,null,null,null,"Saint-Magloire M  (28075)","28075",null,null,null,null,"Saint-Denis (040940)","040940",null,"Saint-Lucien M  (49030)","49030"]
[null,null,null,null,null,null,"Saint-Majorique-de-Grantham P  (49095)","49095",null,null,null,null,"Saint-Didace (062260)","062260",null,"Saint-Ludger M  (30072)","30072"]
[null,null,null,null,null,null,"Saint-Malachie P  (19025)","19025",null,null,null,null,"Saint-Dominique (040970)","040970",null,"Saint-Ludger-de-Milot M  (93080)","93080"]
[null,null,null,null,null,null,"Saint-Malo M  (44003)","44003",null,null,null,null,"Saint-Donat (020960)","020960",null,"Saint-Magloire M  (28075)","28075"]
[null,null,null,null,null,null,"Saint-Marc-de-Figuery P  (88040)","88040",null,null,null,null,"Saint-Dunstan-du-Lac-Beauport (090760)","090760",null,"Saint-Majorique-de-Grantham P  (49095)","49095"]
[null,null,null,null,null,null,"Saint-Marc-des-Carrières V  (34065)","34065",null,null,null,null,"Sainte-Adèle-d'Abercrombie (051440)","051440",null,"Saint-Malachie P  (19025)","19025"]
[null,null,null,null,null,null,"Saint-Marc-du-Lac-Long P  (13020)","13020",null,null,null,null,"Sainte-Agathe (042470)","042470",null,"Saint-Malo M  (44003)","44003"]
[null,null,null,null,null,null,"Saint-Marcel M  (17020)","17020",null,null,null,null,"Sainte-Agathe-des-Monts (051450)","051450",null,"Saint-Marc-de-Figuery P  (88040)","88040"]
[null,null,null,null,null,null,"Saint-Marcel-de-Richelieu M  (54125)","54125",null,null,null,null,"Sainte-Agnès (090060)","090060",null,"Saint-Marc-des-Carrières V  (34065)","34065"]
[null,null,null,null,null,null,"Saint-Marcellin P  (10025)","10025",null,null,null,null,"Sainte-Angèle (040780)","040780",null,"Saint-Marc-du-Lac-Long P  (13020)","13020"]
[null,null,null,null,null,null,"Saint-Marc-sur-Richelieu M  (57050)","57050",null,null,null,null,"Sainte-Angèle-de-Laval (042390)","042390",null,"Saint-Marcel M  (17020)","17020"]
[null,null,null,null,null,null,"Saint-Martin P  (29045)","29045",null,null,null,null,"Sainte-Angèle-de-Mérici (020700)","020700",null,"Saint-Marcel-de-Richelieu M  (54125)","54125"]
[null,null,null,null,null,null,"Saint-Mathias-sur-Richelieu M  (55065)","55065",null,null,null,null,"Sainte-Angélique (060310)","060310",null,"Saint-Marcellin P  (10025)","10025"]
[null,null,null,null,null,null,"Saint-Mathieu M  (67005)","67005",null,null,null,null,"Sainte-Anne (042200)","042200",null,"Saint-Marc-sur-Richelieu M  (57050)","57050"]
[null,null,null,null,null,null,"Saint-Mathieu-de-Beloeil M  (57045)","57045",null,null,null,null,"Sainte-Anne (050780)","050780",null,"Saint-Martin P  (29045)","29045"]
[null,null,null,null,null,null,"Saint-Mathieu-de-Rioux M  (11050)","11050",null,null,null,null,"Sainte-Anne (090360)","090360",null,"Saint-Mathias-sur-Richelieu M  (55065)","55065"]
[null,null,null,null,null,null,"Saint-Mathieu-d'Harricana M  (88050)","88050",null,null,null,null,"Sainte-Anne-de-Chicoutimi (080400)","080400",null,"Saint-Mathieu M  (67005)","67005"]
[null,null,null,null,null,null,"Saint-Mathieu-du-Parc M  (51070)","51070",null,null,null,null,"Sainte-Anne-de-la-Pérade (062840)","062840",null,"Saint-Mathieu-de-Beloeil M  (57045)","57045"]
[null,null,null,null,null,null,"Saint-Maurice P  (37230)","37230",null,null,null,null,"Sainte-Anne-de-la-Pocatière (030430)","030430",null,"Saint-Mathieu-de-Rioux M  (11050)","11050"]
[null,null,null,null,null,null,"Saint-Maxime-du-Mont-Louis M  (04010)","04010",null,null,null,null,"Sainte-Anne-des-Monts (021560)","021560",null,"Saint-Mathieu-d'Harricana M  (88050)","88050"]
[null,null,null,null,null,null,"Saint-Médard M  (11025)","11025",null,null,null,null,"Sainte-Anne-des-Plaines (051290)","051290",null,"Saint-Mathieu-du-Parc M  (51070)","51070"]
[null,null,null,null,null,null,"Saint-Michel M  (68050)","68050",null,null,null,null,"Sainte-Anne-d'Yamachiche (062660)","062660",null,"Saint-Maurice P  (37230)","37230"]
[null,null,null,null,null,null,"Saint-Michel-de-Bellechasse M  (19110)","19110",null,null,null,null,"Sainte-Béatrix (061960)","061960",null,"Saint-Maxime-du-Mont-Louis M  (04010)","04010"]
[null,null,null,null,null,null,"Saint-Michel-des-Saints M  (62085)","62085",null,null,null,null,"Sainte-Brigide (051630)","051630",null,"Saint-Médard M  (11025)","11025"]
[null,null,null,null,null,null,"Saint-Michel-du-Squatec M  (13065)","13065",null,null,null,null,"Sainte-Brigitte (042310)","042310",null,"Saint-Michel M  (68050)","68050"]
[null,null,null,null,null,null,"Saint-Modeste M  (12020)","12020",null,null,null,null,"Sainte-Brigitte-de-Laval (090310)","090310",null,"Saint-Michel-de-Bellechasse M  (19110)","19110"]
[null,null,null,null,null,null,"Saint-Moïse P  (07095)","07095",null,null,null,null,"Sainte-Catherine (090940)","090940",null,"Saint-Michel-des-Saints M  (62085)","62085"]
[null,null,null,null,null,null,"Saint-Narcisse P  (37240)","37240",null,null,null,null,"Sainte-Cécile (050350)","050350",null,"Saint-Michel-du-Squatec M  (13065)","13065"]
[null,null,null,null,null,null,"Saint-Narcisse-de-Beaurivage P  (33030)","33030",null,null,null,null,"Sainte-Cécile-de-Milton (041200)","041200",null,"Saint-Modeste M  (12020)","12020"]
[null,null,null,null,null,null,"Saint-Narcisse-de-Rimouski P  (10015)","10015",null,null,null,null,"Sainte-Cécile-du-Bic (020860)","020860",null,"Saint-Moïse P  (07095)","07095"]
[null,null,null,null,null,null,"Saint-Nazaire M  (93045)","93045",null,null,null,null,"Sainte-Claire (031070)","031070",null,"Saint-Narcisse P  (37240)","37240"]
[null,null,null,null,null,null,"Saint-Nazaire-d'Acton P  (48050)","48050",null,null,null,null,"Sainte-Croix (042560)","042560",null,"Saint-Narcisse-de-Beaurivage P  (33030)","33030"]
[null,null,null,null,null,null,"Saint-Nazaire-de-Dorchester P  (19015)","19015",null,null,null,null,"Saint-Edmond-de-Stoneham (090800)","090800",null,"Saint-Narcisse-de-Rimouski P  (10015)","10015"]
[null,null,null,null,null,null,"Saint-Nérée-de-Bellechasse M  (19045)","19045",null,null,null,null,"Sainte-Dorothée (051160)","051160",null,"Saint-Nazaire M  (93045)","93045"]
[null,null,null,null,null,null,"Saint-Noël VL (07100)","07100",null,null,null,null,"Saint-Édouard (042510)","042510",null,"Saint-Nazaire-d'Acton P  (48050)","48050"]
[null,null,null,null,null,null,"Saint-Norbert P  (52070)","52070",null,null,null,null,"Saint-Édouard (050100)","050100",null,"Saint-Nazaire-de-Dorchester P  (19015)","19015"]
[null,null,null,null,null,null,"Saint-Norbert-d'Arthabaska M  (39043)","39043",null,null,null,null,"Saint-Édouard-de-Frampton (031170)","031170",null,"Saint-Nérée-de-Bellechasse M  (19045)","19045"]
[null,null,null,null,null,null,"Saint-Octave-de-Métis P  (09055)","09055",null,null,null,null,"Saint-Édouard-de-Gentilly (042410)","042410",null,"Saint-Noël VL (07100)","07100"]
[null,null,null,null,null,null,"Saint-Odilon-de-Cranbourne P  (27035)","27035",null,null,null,null,"Sainte-Élizabeth (061880)","061880",null,"Saint-Norbert P  (52070)","52070"]
[null,null,null,null,null,null,"Saint-Omer M  (17005)","17005",null,null,null,null,"Sainte-Emmélie (042520)","042520",null,"Saint-Norbert-d'Arthabaska M  (39043)","39043"]
[null,null,null,null,null,null,"Saint-Onésime-d'Ixworth M  (14080)","14080",null,null,null,null,"Sainte-Emmélie-de-l'Énergie (062000)","062000",null,"Saint-Octave-de-Métis P  (09055)","09055"]
[null,null,null,null,null,null,"Saint-Ours V  (53032)","53032",null,null,null,null,"Sainte-Eulalie (041990)","041990",null,"Saint-Odilon-de-Cranbourne P  (27035)","27035"]
[null,null,null,null,null,null,"Saint-Pacôme M  (14070)","14070",null,null,null,null,"Sainte-Famille (090520)","090520",null,"Saint-Omer M  (17005)","17005"]
[null,null,null,null,null,null,"Saint-Pamphile V  (17010)","17010",null,null,null,null,"Sainte-Famille-de-Boucherville (050520)","050520",null,"Saint-Onésime-d'Ixworth M  (14080)","14080"]
[null,null,null,null,null,null,"Saint-Pascal V  (14018)","14018",null,null,null,null,"Sainte-Félicité (021480)","021480",null,"Saint-Ours V  (53032)","53032"]
[null,null,null,null,null,null,"Saint-Patrice-de-Beaurivage M  (33025)","33025",null,null,null,null,"Sainte-Flavie (021000)","021000",null,"Saint-Pacôme M  (14070)","14070"]
[null,null,null,null,null,null,"Saint-Patrice-de-Sherrington M  (68025)","68025",null,null,null,null,"Sainte-Flore (062980)","062980",null,"Saint-Pamphile V  (17010)","17010"]
[null,null,null,null,null,null,"Saint-Paul M  (61005)","61005",null,null,null,null,"Sainte-Foy (090660)","090660",null,"Saint-Pascal V  (14018)","14018"]
[null,null,null,null,null,null,"Saint-Paul-d'Abbotsford M  (55015)","55015",null,null,null,null,"Sainte-Françoise (030280)","030280",null,"Saint-Patrice-de-Beaurivage M  (33025)","33025"]
[null,null,null,null,null,null,"Saint-Paul-de-la-Croix P  (12035)","12035",null,null,null,null,"Sainte-Geneviève (050790)","050790",null,"Saint-Patrice-de-Sherrington M  (68025)","68025"]
[null,null,null,null,null,null,"Saint-Paul-de-l'Île-aux-Noix M  (56035)","56035",null,null,null,null,"Sainte-Geneviève (050800)","050800",null,"Saint-Paul M  (61005)","61005"]
[null,null,null,null,null,null,"Saint-Paul-de-Montminy M  (18030)","18030",null,null,null,null,"Sainte-Geneviève-de-Batiscan (062810)","062810",null,"Saint-Paul-d'Abbotsford M  (55015)","55015"]
[null,null,null,null,null,null,"Saint-Paulin M  (51060)","51060",null,null,null,null,"Sainte-Gertrude (042040)","042040",null,"Saint-Paul-de-la-Croix P  (12035)","12035"]
[null,null,null,null,null,null,"Saint-Philémon P  (19005)","19005",null,null,null,null,"Sainte-Hélène (030500)","030500",null,"Saint-Paul-de-l'Île-aux-Noix M  (56035)","56035"]
[null,null,null,null,null,null,"Saint-Philibert M  (29065)","29065",null,null,null,null,"Sainte-Hélène (041080)","041080",null,"Saint-Paul-de-Montminy M  (18030)","18030"]
[null,null,null,null,null,null,"Saint-Philippe V  (67010)","67010",null,null,null,null,"Sainte-Hélène (041890)","041890",null,"Saint-Paulin M  (51060)","51060"]
[null,null,null,null,null,null,"Saint-Philippe-de-Néri P  (14060)","14060",null,null,null,null,"Sainte-Hénédine (031190)","031190",null,"Saint-Philémon P  (19005)","19005"]
[null,null,null,null,null,null,"Saint-Pie V  (54008)","54008",null,null,null,null,"Sainte-Jeanne-de-l'Île-Perrot (050910)","050910",null,"Saint-Philibert M  (29065)","29065"]
[null,null,null,null,null,null,"Saint-Pie-de-Guire P  (49130)","49130",null,null,null,null,"Sainte-Jeanne-de-Neuville (090920)","090920",null,"Saint-Philippe V  (67010)","67010"]
[null,null,null,null,null,null,"Saint-Pierre VL (61020)","61020",null,null,null,null,"Sainte-Julie (050560)","050560",null,"Saint-Philippe-de-Néri P  (14060)","14060"]
[null,null,null,null,null,null,"Saint-Pierre-Baptiste P  (32050)","32050",null,null,null,null,"Sainte-Julienne (061680)","061680",null,"Saint-Pie V  (54008)","54008"]
[null,null,null,null,null,null,"Saint-Pierre-de-Broughton M  (31135)","31135",null,null,null,null,"Sainte-Justine-de-Newton (050970)","050970",null,"Saint-Pie-de-Guire P  (49130)","49130"]
[null,null,null,null,null,null,"Saint-Pierre-de-Lamy M  (13075)","13075",null,null,null,null,"Saint-Élie (062920)","062920",null,"Saint-Pierre VL (61020)","61020"]
[null,null,null,null,null,null,"Saint-Pierre-de-la-Rivière-du-Sud P  (18055)","18055",null,null,null,null,"Saint-Éloi (030300)","030300",null,"Saint-Pierre-Baptiste P  (32050)","32050"]
[null,null,null,null,null,null,"Saint-Pierre-de-l'Île-d'Orléans M  (20025)","20025",null,null,null,null,"Sainte-Louise (030760)","030760",null,"Saint-Pierre-de-Broughton M  (31135)","31135"]
[null,null,null,null,null,null,"Saint-Pierre-les-Becquets M  (38065)","38065",null,null,null,null,"Sainte-Luce (020940)","020940",null,"Saint-Pierre-de-Lamy M  (13075)","13075"]
[null,null,null,null,null,null,"Saint-Placide M  (72043)","72043",null,null,null,null,"Saint-Elzéar (041780)","041780",null,"Saint-Pierre-de-la-Rivière-du-Sud P  (18055)","18055"]
[null,null,null,null,null,null,"Saint-Polycarpe M  (71020)","71020",null,null,null,null,"Sainte-Madeleine (040860)","040860",null,"Saint-Pierre-de-l'Île-d'Orléans M  (20025)","20025"]
[null,null,null,null,null,null,"Saint-Prime M  (91035)","91035",null,null,null,null,"Sainte-Madeleine-de-Rigaud (050990)","050990",null,"Saint-Pierre-les-Becquets M  (38065)","38065"]
[null,null,null,null,null,null,"Saint-Prosper M  (28020)","28020",null,null,null,null,"Sainte-Marguerite (031180)","031180",null,"Saint-Placide M  (72043)","72043"]
[null,null,null,null,null,null,"Saint-Prosper-de-Champlain M  (37250)","37250",null,null,null,null,"Sainte-Marguerite (051430)","051430",null,"Saint-Polycarpe M  (71020)","71020"]
[null,null,null,null,null,null,"Saint-Raphaël M  (19082)","19082",null,null,null,null,"Sainte-Marguerite-de-Blairfindie (050050)","050050",null,"Saint-Prime M  (91035)","91035"]
[null,null,null,null,null,null,"Saint-Raymond V  (34128)","34128",null,null,null,null,"Sainte-Marie (041790)","041790",null,"Saint-Prosper M  (28020)","28020"]
[null,null,null,null,null,null,"Saint-Rémi V  (68055)","68055",null,null,null,null,"Sainte-Marie-de-Blandford (042420)","042420",null,"Saint-Prosper-de-Champlain M  (37250)","37250"]
[null,null,null,null,null,null,"Saint-Rémi-de-Tingwick M  (39020)","39020",null,null,null,null,"Sainte-Marie-de-Monnoir (040790)","040790",null,"Saint-Raphaël M  (19082)","19082"]
[null,null,null,null,null,null,"Saint-René P  (29050)","29050",null,null,null,null,"Sainte-Marie-de-Sayabec (021300)","021300",null,"Saint-Raymond V  (34128)","34128"]
[null,null,null,null,null,null,"Saint-René-de-Matane M  (08035)","08035",null,null,null,null,"Sainte-Marie-Salomé (061600)","061600",null,"Saint-Rémi V  (68055)","68055"]
[null,null,null,null,null,null,"Saint-Robert M  (53020)","53020",null,null,null,null,"Sainte-Marthe (050960)","050960",null,"Saint-Rémi-de-Tingwick M  (39020)","39020"]
[null,null,null,null,null,null,"Saint-Robert-Bellarmin M  (30070)","30070",null,null,null,null,"Sainte-Martine (050270)","050270",null,"Saint-René P  (29050)","29050"]
[null,null,null,null,null,null,"Saint-Roch-de-l'Achigan M  (63035)","63035",null,null,null,null,"Sainte-Mélanie (061910)","061910",null,"Saint-René-de-Matane M  (08035)","08035"]
[null,null,null,null,null,null,"Saint-Roch-de-Mékinac P  (35045)","35045",null,null,null,null,"Sainte-Monique (042300)","042300",null,"Saint-Robert M  (53020)","53020"]
[null,null,null,null,null,null,"Saint-Roch-de-Richelieu M  (53040)","53040",null,null,null,null,"Sainte-Monique (051120)","051120",null,"Saint-Robert-Bellarmin M  (30070)","30070"]
[null,null,null,null,null,null,"Saint-Roch-des-Aulnaies M  (17065)","17065",null,null,null,null,"Sainte-Perpétue (042320)","042320",null,"Saint-Roch-de-l'Achigan M  (63035)","63035"]
[null,null,null,null,null,null,"Saint-Roch-Ouest M  (63040)","63040",null,null,null,null,"Sainte-Pétronille (090460)","090460",null,"Saint-Roch-de-Mékinac P  (35045)","35045"]
[null,null,null,null,null,null,"Saint-Romain M  (30100)","30100",null,null,null,null,"Sainte-Philomène (050280)","050280",null,"Saint-Roch-de-Richelieu M  (53040)","53040"]
[null,null,null,null,null,null,"Saint-Rosaire P  (39145)","39145",null,null,null,null,"Saint-Éphrem-de-Tring (040240)","040240",null,"Saint-Roch-des-Aulnaies M  (17065)","17065"]
[null,null,null,null,null,null,"Saint-Samuel M  (39130)","39130",null,null,null,null,"Saint-Éphrem-d'Upton (041000)","041000",null,"Saint-Roch-Ouest M  (63040)","63040"]
[null,null,null,null,null,null,"Saints-Anges P  (26010)","26010",null,null,null,null,"Saint-Éphrem-d'Upton (041010)","041010",null,"Saint-Romain M  (30100)","30100"]
[null,null,null,null,null,null,"Saint-Sauveur V  (77043)","77043",null,null,null,null,"Sainte-Pudentienne (041220)","041220",null,"Saint-Rosaire P  (39145)","39145"]
[null,null,null,null,null,null,"Saint-Sébastien M  (30085)","30085",null,null,null,null,"Sainte-Pudentienne (041230)","041230",null,"Saint-Samuel M  (39130)","39130"]
[null,null,null,null,null,null,"Saint-Sébastien M  (56050)","56050",null,null,null,null,"Sainte-Rosalie (040980)","040980",null,"Saints-Anges P  (26010)","26010"]
[null,null,null,null,null,null,"Saint-Sévère P  (51030)","51030",null,null,null,null,"Sainte-Rose (051180)","051180",null,"Saint-Sauveur V  (77043)","77043"]
[null,null,null,null,null,null,"Saint-Séverin P  (27070)","27070",null,null,null,null,"Sainte-Rose (051190)","051190",null,"Saint-Sébastien M  (30085)","30085"]
[null,null,null,null,null,null,"Saint-Séverin P  (35020)","35020",null,null,null,null,"Sainte-Rose-du-Dégelé (030110)","030110",null,"Saint-Sébastien M  (56050)","56050"]
[null,null,null,null,null,null,"Saint-Siméon M  (15058)","15058",null,null,null,null,"Sainte-Scholastique (051100)","051100",null,"Saint-Sévère P  (51030)","51030"]
[null,null,null,null,null,null,"Saint-Siméon P  (05055)","05055",null,null,null,null,"Sainte-Scholastique (051110)","051110",null,"Saint-Séverin P  (27070)","27070"]
[null,null,null,null,null,null,"Saint-Simon M  (54090)","54090",null,null,null,null,"Sainte-Sophie (051380)","051380",null,"Saint-Séverin P  (35020)","35020"]
[null,null,null,null,null,null,"Saint-Simon-de-Rimouski M  (11055)","11055",null,null,null,null,"Saint-Esprit (061660)","061660",null,"Saint-Siméon M  (15058)","15058"]
[null,null,null,null,null,null,"Saint-Simon-les-Mines M  (29125)","29125",null,null,null,null,"Sainte-Thècle (063040)","063040",null,"Saint-Siméon P  (05055)","05055"]
[null,null,null,null,null,null,"Saint-Sixte M  (80070)","80070",null,null,null,null,"Sainte-Thérèse (051360)","051360",null,"Saint-Simon M  (54090)","54090"]
[null,null,null,null,null,null,"Saints-Martyrs-Canadiens P  (39005)","39005",null,null,null,null,"Sainte-Thérèse-de-Blainville (051350)","051350",null,"Saint-Simon-de-Rimouski M  (11055)","11055"]
[null,null,null,null,null,null,"Saint-Stanislas M  (37245)","37245",null,null,null,null,"Saint-Étienne (050320)","050320",null,"Saint-Simon-les-Mines M  (29125)","29125"]
[null,null,null,null,null,null,"Saint-Stanislas M  (92070)","92070",null,null,null,null,"Saint-Étienne (062680)","062680",null,"Saint-Sixte M  (80070)","80070"]
[null,null,null,null,null,null,"Saint-Stanislas-de-Kostka M  (70040)","70040",null,null,null,null,"Saint-Étienne-de-Beaumont (031120)","031120",null,"Saints-Martyrs-Canadiens P  (39005)","39005"]
[null,null,null,null,null,null,"Saint-Sulpice P  (60020)","60020",null,null,null,null,"Saint-Étienne-de-Lauzon (031270)","031270",null,"Saint-Stanislas M  (37245)","37245"]
[null,null,null,null,null,null,"Saint-Sylvère M  (38005)","38005",null,null,null,null,"Saint-Eugène (030730)","030730",null,"Saint-Stanislas M  (92070)","92070"]
[null,null,null,null,null,null,"Saint-Sylvestre M  (33007)","33007",null,null,null,null,"Sainte-Ursule (062420)","062420",null,"Saint-Stanislas-de-Kostka M  (70040)","70040"]
[null,null,null,null,null,null,"Saint-Télesphore M  (71015)","71015",null,null,null,null,"Saint-Eustache (051020)","051020",null,"Saint-Sulpice P  (60020)","60020"]
[null,null,null,null,null,null,"Saint-Tharcisius P  (07070)","07070",null,null,null,null,"Saint-Eustache (051030)","051030",null,"Saint-Sylvère M  (38005)","38005"]
[null,null,null,null,null,null,"Saint-Théodore-d'Acton M  (48045)","48045",null,null,null,null,"Sainte-Victoire (042140)","042140",null,"Saint-Sylvestre M  (33007)","33007"]
[null,null,null,null,null,null,"Saint-Théophile M  (29005)","29005",null,null,null,null,"Sainte-Victoire (042580)","042580",null,"Saint-Télesphore M  (71015)","71015"]
[null,null,null,null,null,null,"Saint-Thomas M  (61027)","61027",null,null,null,null,"Saint-Fabien (020840)","020840",null,"Saint-Tharcisius P  (07070)","07070"]
[null,null,null,null,null,null,"Saint-Thomas-Didyme M  (92045)","92045",null,null,null,null,"Saint-Félix-de-Valois (061900)","061900",null,"Saint-Théodore-d'Acton M  (48045)","48045"]
[null,null,null,null,null,null,"Saint-Thuribe P  (34085)","34085",null,null,null,null,"Saint-Félix-du-Cap-Rouge (090680)","090680",null,"Saint-Théophile M  (29005)","29005"]
[null,null,null,null,null,null,"Saint-Tite V  (35027)","35027",null,null,null,null,"Saint-Féréol (090410)","090410",null,"Saint-Thomas M  (61027)","61027"]
[null,null,null,null,null,null,"Saint-Tite-des-Caps M  (21005)","21005",null,null,null,null,"Saint-Fidèle (090110)","090110",null,"Saint-Thomas-Didyme M  (92045)","92045"]
[null,null,null,null,null,null,"Saint-Ubalde M  (34090)","34090",null,null,null,null,"Saint-Flavien (042500)","042500",null,"Saint-Thuribe P  (34085)","34085"]
[null,null,null,null,null,null,"Saint-Ulric M  (08073)","08073",null,null,null,null,"Saint-François (041720)","041720",null,"Saint-Tite V  (35027)","35027"]
[null,null,null,null,null,null,"Saint-Urbain P  (16055)","16055",null,null,null,null,"Saint-François (090540)","090540",null,"Saint-Tite-des-Caps M  (21005)","21005"]
[null,null,null,null,null,null,"Saint-Urbain-Premier M  (70005)","70005",null,null,null,null,"Saint-François-de-la-Rivière-du-Sud (030910)","030910",null,"Saint-Ubalde M  (34090)","34090"]
[null,null,null,null,null,null,"Saint-Valentin M  (56030)","56030",null,null,null,null,"Saint-François-de-Sales (051210)","051210",null,"Saint-Ulric M  (08073)","08073"]
[null,null,null,null,null,null,"Saint-Valère M  (39135)","39135",null,null,null,null,"Saint-François-du-Lac (042260)","042260",null,"Saint-Urbain P  (16055)","16055"]
[null,null,null,null,null,null,"Saint-Valérien P  (10060)","10060",null,null,null,null,"Saint-François-Xavier (090210)","090210",null,"Saint-Urbain-Premier M  (70005)","70005"]
[null,null,null,null,null,null,"Saint-Valérien-de-Milton M  (54065)","54065",null,null,null,null,"Saint-François-Xavier-de-Batiscan (062820)","062820",null,"Saint-Valentin M  (56030)","56030"]
[null,null,null,null,null,null,"Saint-Vallier M  (19117)","19117",null,null,null,null,"Saint-Frédéric (041740)","041740",null,"Saint-Valère M  (39135)","39135"]
[null,null,null,null,null,null,"Saint-Venant-de-Paquette M  (44005)","44005",null,null,null,null,"Saint-Gabriel-de-Brandon (062220)","062220",null,"Saint-Valérien P  (10060)","10060"]
[null,null,null,null,null,null,"Saint-Vianney M  (07075)","07075",null,null,null,null,"Saint-Gabriel-de-Valcartier (090780)","090780",null,"Saint-Valérien-de-Milton M  (54065)","54065"]
[null,null,null,null,null,null,"Saint-Victor M  (27008)","27008",null,null,null,null,"Saint-Georges (041710)","041710",null,"Saint-Vallier M  (19117)","19117"]
[null,null,null,null,null,null,"Saint-Wenceslas M  (50023)","50023",null,null,null,null,"Saint-Georges-de-Clarenceville (040550)","040550",null,"Saint-Venant-de-Paquette M  (44005)","44005"]
[null,null,null,null,null,null,"Saint-Zacharie M  (28005)","28005",null,null,null,null,"Saint-Georges-d'Henryville (051690)","051690",null,"Saint-Vianney M  (07075)","07075"]
[null,null,null,null,null,null,"Saint-Zénon M  (62080)","62080",null,null,null,null,"Saint-Germain-de-Rimouski (020900)","020900",null,"Saint-Victor M  (27008)","27008"]
[null,null,null,null,null,null,"Saint-Zénon-du-Lac-Humqui P  (07035)","07035",null,null,null,null,"Saint-Germain-de-Rimouski (020910)","020910",null,"Saint-Wenceslas M  (50023)","50023"]
[null,null,null,null,null,null,"Saint-Zéphirin-de-Courval P  (50090)","50090",null,null,null,null,"Saint-Germains (080420)","080420",null,"Saint-Zacharie M  (28005)","28005"]
[null,null,null,null,null,null,"Saint-Zotique M  (71025)","71025",null,null,null,null,"Saint-Gervais (031060)","031060",null,"Saint-Zénon M  (62080)","62080"]
[null,null,null,null,null,null,"Salaberry-de-Valleyfield V  (70052)","70052",null,null,null,null,"Saint-Gilles (042460)","042460",null,"Saint-Zénon-du-Lac-Humqui P  (07035)","07035"]
[null,null,null,null,null,null,"Salluit TI (99887)","99887",null,null,null,null,"Saint-Grégoire (042370)","042370",null,"Saint-Zéphirin-de-Courval P  (50090)","50090"]
[null,null,null,null,null,null,"Salluit VN (99135)","99135",null,null,null,null,"Saint-Grégoire (051640)","051640",null,"Saint-Zotique M  (71025)","71025"]
[null,null,null,null,null,null,"Sault-au-Cochon NO (21902)","21902",null,null,null,null,"Saint-Guillaume-d'Upton (042070)","042070",null,"Salaberry-de-Valleyfield V  (70052)","70052"]
[null,null,null,null,null,null,"Sayabec M  (07085)","07085",null,null,null,null,"Saint-Henri-de-Lauzon (031250)","031250",null,"Salluit TI (99887)","99887"]
[null,null,null,null,null,null,"Schefferville V  (97040)","97040",null,null,null,null,"Saint-Henri-de-Mascouche (051280)","051280",null,"Salluit VN (99135)","99135"]
[null,null,null,null,null,null,"Scotstown V  (41080)","41080",null,null,null,null,"Saint-Hermas (051070)","051070",null,"Sault-au-Cochon NO (21902)","21902"]
[null,null,null,null,null,null,"Scott M  (26048)","26048",null,null,null,null,"Saint-Hilaire (040840)","040840",null,"Sayabec M  (07085)","07085"]
[null,null,null,null,null,null,"Senneterre P  (89045)","89045",null,null,null,null,"Saint-Hilaire (080630)","080630",null,"Schefferville V  (97040)","97040"]
[null,null,null,null,null,null,"Senneterre V  (89040)","89040",null,null,null,null,"Saint-Hilarion (090260)","090260",null,"Scotstown V  (41080)","41080"]
[null,null,null,null,null,null,"Senneville VL (66127)","66127",null,null,null,null,"Saint-Hippolyte (051420)","051420",null,"Scott M  (26048)","26048"]
[null,null,null,null,null,null,"Sept-Îles V  (97007)","97007",null,null,null,null,"Saint-Hubert (050490)","050490",null,"Senneterre P  (89045)","89045"]
[null,null,null,null,null,null,"Shannon V  (22020)","22020",null,null,null,null,"Saint-Hughes (041100)","041100",null,"Senneterre V  (89040)","89040"]
[null,null,null,null,null,null,"Shawinigan V  (36033)","36033",null,null,null,null,"Saint-Hyacinthe (040910)","040910",null,"Senneville VL (66127)","66127"]
[null,null,null,null,null,null,"Shawville M  (84010)","84010",null,null,null,null,"Saint-Hyacinthe-le-Confesseur (040900)","040900",null,"Sept-Îles V  (97007)","97007"]
[null,null,null,null,null,null,"Sheenboro M  (84095)","84095",null,null,null,null,"Saint-Ignace-du-Coteau-du-Lac (050840)","050840",null,"Shannon V  (22020)","22020"]
[null,null,null,null,null,null,"Shefford CT (47035)","47035",null,null,null,null,"Saint-Irénée (090010)","090010",null,"Shawinigan V  (36033)","36033"]
[null,null,null,null,null,null,"Sherbrooke V  (43027)","43027",null,null,null,null,"Saint-Isidore (031210)","031210",null,"Shawville M  (84010)","84010"]
[null,null,null,null,null,null,"Shigawake M  (05010)","05010",null,null,null,null,"Saint-Isidore (050410)","050410",null,"Sheenboro M  (84095)","84095"]
[null,null,null,null,null,null,"Sorel-Tracy V  (53052)","53052",null,null,null,null,"Saint-Jacques-de-l'Achigan (061610)","061610",null,"Shefford CT (47035)","47035"]
[null,null,null,null,null,null,"Stanbridge East M  (46045)","46045",null,null,null,null,"Saint-Jacques-des-Piles (063020)","063020",null,"Sherbrooke V  (43027)","43027"]
[null,null,null,null,null,null,"Stanbridge Station M  (46030)","46030",null,null,null,null,"Saint-Jacques-le-Mineur (050380)","050380",null,"Shigawake M  (05010)","05010"]
[null,null,null,null,null,null,"Stanstead CT (45025)","45025",null,null,null,null,"Saint-Janvier (051370)","051370",null,"Sorel-Tracy V  (53052)","53052"]
[null,null,null,null,null,null,"Stanstead V  (45008)","45008",null,null,null,null,"Saint-Jean (050030)","050030",null,"Stanbridge East M  (46045)","46045"]
[null,null,null,null,null,null,"Stanstead-Est M  (44050)","44050",null,null,null,null,"Saint-Jean (050040)","050040",null,"Stanbridge Station M  (46030)","46030"]
[null,null,null,null,null,null,"Stoke M  (42005)","42005",null,null,null,null,"Saint-Jean (080060)","080060",null,"Stanstead CT (45025)","45025"]
[null,null,null,null,null,null,"Stoneham-et-Tewkesbury CU (22035)","22035",null,null,null,null,"Saint-Jean (090510)","090510",null,"Stanstead V  (45008)","45008"]
[null,null,null,null,null,null,"Stornoway M  (30105)","30105",null,null,null,null,"Saint-Jean-Baptiste (040850)","040850",null,"Stanstead-Est M  (44050)","44050"]
[null,null,null,null,null,null,"Stratford CT (30110)","30110",null,null,null,null,"Saint-Jean-Baptiste (050690)","050690",null,"Stoke M  (42005)","42005"]
[null,null,null,null,null,null,"Stukely-Sud VL (45105)","45105",null,null,null,null,"Saint-Jean-Baptiste-de-l'Île-Verte (030310)","030310",null,"Stoneham-et-Tewkesbury CU (22035)","22035"]
[null,null,null,null,null,null,"Sutton V  (46058)","46058",null,null,null,null,"Saint-Jean-Baptiste-de-Nicolet (042350)","042350",null,"Stornoway M  (30105)","30105"]
[null,null,null,null,null,null,"Tadoussac VL (95005)","95005",null,null,null,null,"Saint-Jean-Chrysostome (031260)","031260",null,"Stratford CT (30110)","30110"]
[null,null,null,null,null,null,"Taschereau M  (87042)","87042",null,null,null,null,"Saint-Jean-Chrysostome (050230)","050230",null,"Stukely-Sud VL (45105)","45105"]
[null,null,null,null,null,null,"Tasiujaq TI (99892)","99892",null,null,null,null,"Saint-Jean-de-Matha (061980)","061980",null,"Sutton V  (46058)","46058"]
[null,null,null,null,null,null,"Tasiujaq VN (99100)","99100",null,null,null,null,"Saint-Jean-Deschaillons (042530)","042530",null,"Tadoussac VL (95005)","95005"]
[null,null,null,null,null,null,"Témiscaming V  (85005)","85005",null,null,null,null,"Saint-Jean-Port-Joli (030780)","030780",null,"Taschereau M  (87042)","87042"]
[null,null,null,null,null,null,"Témiscouata-sur-le-Lac V  (13073)","13073",null,null,null,null,"Saint-Jérôme (051130)","051130",null,"Tasiujaq TI (99892)","99892"]
[null,null,null,null,null,null,"Terrasse-Vaudreuil M  (71075)","71075",null,null,null,null,"Saint-Jérôme (051400)","051400",null,"Tasiujaq VN (99100)","99100"]
[null,null,null,null,null,null,"Terrebonne V  (64008)","64008",null,null,null,null,"Saint-Jérôme-de-Matane (021420)","021420",null,"Témiscaming V  (85005)","85005"]
[null,null,null,null,null,null,"Thetford Mines V  (31084)","31084",null,null,null,null,"Saint-Jérusalem (060020)","060020",null,"Témiscouata-sur-le-Lac V  (13073)","13073"]
[null,null,null,null,null,null,"Thorne M  (84045)","84045",null,null,null,null,"Saint-Joachim (090400)","090400",null,"Terrasse-Vaudreuil M  (71075)","71075"]
[null,null,null,null,null,null,"Thurso V  (80050)","80050",null,null,null,null,"Saint-Joachim-de-Châteauguay (050290)","050290",null,"Terrebonne V  (64008)","64008"]
[null,null,null,null,null,null,"Timiskaming R  (85806)","85806",null,null,null,null,"Saint-Joseph (031360)","031360",null,"Thetford Mines V  (31084)","31084"]
[null,null,null,null,null,null,"Tingwick M  (39025)","39025",null,null,null,null,"Saint-Joseph (041750)","041750",null,"Thorne M  (84045)","84045"]
[null,null,null,null,null,null,"TNO aquatique de la MRC d'Abitibi-Ouest NO (87990)","87990",null,null,null,null,"Saint-Joseph (042170)","042170",null,"Thurso V  (80050)","80050"]
[null,null,null,null,null,null,"TNO aquatique de la MRC d'Antoine-Labelle NO (79990)","79990",null,null,null,null,"Saint-Joseph-de-Chambly (050450)","050450",null,"Timiskaming R  (85806)","85806"]
[null,null,null,null,null,null,"TNO aquatique de la MRC d'Argenteuil NO (76990)","76990",null,null,null,null,"Saint-Joseph-de-Lanoraie (062110)","062110",null,"Tingwick M  (39025)","39025"]
[null,null,null,null,null,null,"TNO aquatique de la MRC d'Avignon NO (06990)","06990",null,null,null,null,"Saint-Joseph-de-Lepage (020980)","020980",null,"TNO aquatique de la MRC d'Abitibi-Ouest NO (87990)","87990"]
[null,null,null,null,null,null,"TNO aquatique de la MRC de Beauharnois-Salaberry NO (70990)","70990",null,null,null,null,"Saint-Joseph-de-Maskinongé (062360)","062360",null,"TNO aquatique de la MRC d'Antoine-Labelle NO (79990)","79990"]
[null,null,null,null,null,null,"TNO aquatique de la MRC de Bellechasse NO (19990)","19990",null,null,null,null,"Saint-Joseph-des-Cèdres (050830)","050830",null,"TNO aquatique de la MRC d'Argenteuil NO (76990)","76990"]
[null,null,null,null,null,null,"TNO aquatique de la MRC de Bonaventure NO (05990)","05990",null,null,null,null,"Saint-Joseph-du-Lac (051040)","051040",null,"TNO aquatique de la MRC d'Avignon NO (06990)","06990"]
[null,null,null,null,null,null,"TNO aquatique de la MRC de Brome-Missisquoi NO (46990)","46990",null,null,null,null,"Saint-Jude (040930)","040930",null,"TNO aquatique de la MRC de Beauharnois-Salaberry NO (70990)","70990"]
[null,null,null,null,null,null,"TNO aquatique de la MRC de Charlevoix NO (16990)","16990",null,null,null,null,"Saint-Justin (062440)","062440",null,"TNO aquatique de la MRC de Bellechasse NO (19990)","19990"]
[null,null,null,null,null,null,"TNO aquatique de la MRC de D'Autray NO (52990)","52990",null,null,null,null,"Saint-Lambert (031240)","031240",null,"TNO aquatique de la MRC de Bonaventure NO (05990)","05990"]
[null,null,null,null,null,null,"TNO aquatique de la MRC de Drummond NO (49990)","49990",null,null,null,null,"Saint-Laurent (050750)","050750",null,"TNO aquatique de la MRC de Brome-Missisquoi NO (46990)","46990"]
[null,null,null,null,null,null,"TNO aquatique de la MRC de Kamouraska NO (14990)","14990",null,null,null,null,"Saint-Laurent (090500)","090500",null,"TNO aquatique de la MRC de Charlevoix NO (16990)","16990"]
[null,null,null,null,null,null,"TNO aquatique de la MRC de La Côte-de-Beaupré NO (21990)","21990",null,null,null,null,"Saint-Lazare (031040)","031040",null,"TNO aquatique de la MRC de D'Autray NO (52990)","52990"]
[null,null,null,null,null,null,"TNO aquatique de la MRC de La Côte-de-Gaspé NO (03990)","03990",null,null,null,null,"Saint-Lazare (050950)","050950",null,"TNO aquatique de la MRC de Drummond NO (49990)","49990"]
[null,null,null,null,null,null,"TNO aquatique de la MRC de La Haute-Côte-Nord NO (95990)","95990",null,null,null,null,"Saint-Léonard (041980)","041980",null,"TNO aquatique de la MRC de Kamouraska NO (14990)","14990"]
[null,null,null,null,null,null,"TNO aquatique de la MRC de La Haute-Gaspésie NO (04990)","04990",null,null,null,null,"Saint-Léon-de-Standon (031160)","031160",null,"TNO aquatique de la MRC de La Côte-de-Beaupré NO (21990)","21990"]
[null,null,null,null,null,null,"TNO aquatique de la MRC de La Matanie NO (08990)","08990",null,null,null,null,"Saint-Léon-le-Grand (062410)","062410",null,"TNO aquatique de la MRC de La Côte-de-Gaspé NO (03990)","03990"]
[null,null,null,null,null,null,"TNO aquatique de la MRC de La Mitis NO (09990)","09990",null,null,null,null,"Saint-Liboire (040990)","040990",null,"TNO aquatique de la MRC de La Haute-Côte-Nord NO (95990)","95990"]
[null,null,null,null,null,null,"TNO aquatique de la MRC de La Nouvelle-Beauce NO (26990)","26990",null,null,null,null,"Saint-Liguori (061620)","061620",null,"TNO aquatique de la MRC de La Haute-Gaspésie NO (04990)","04990"]
[null,null,null,null,null,null,"TNO aquatique de la MRC de la Rivière-du-Nord NO (75990)","75990",null,null,null,null,"Saint-Lin (051300)","051300",null,"TNO aquatique de la MRC de La Matanie NO (08990)","08990"]
[null,null,null,null,null,null,"TNO aquatique de la MRC de La Vallée-de-la-Gatineau NO (83990)","83990",null,null,null,null,"Saint-Louis (042110)","042110",null,"TNO aquatique de la MRC de La Mitis NO (09990)","09990"]
[null,null,null,null,null,null,"TNO aquatique de la MRC de Lac-Saint-Jean-Est NO (93990)","93990",null,null,null,null,"Saint-Louis-de-Gonzague (050330)","050330",null,"TNO aquatique de la MRC de La Nouvelle-Beauce NO (26990)","26990"]
[null,null,null,null,null,null,"TNO aquatique de la MRC de L'Assomption NO (60990)","60990",null,null,null,null,"Saint-Louis-de-Kamouraska (030550)","030550",null,"TNO aquatique de la MRC de la Rivière-du-Nord NO (75990)","75990"]
[null,null,null,null,null,null,"TNO aquatique de la MRC de L'Île-d'Orléans NO (20990)","20990",null,null,null,null,"Saint-Louis-de-Kamouraska (030560)","030560",null,"TNO aquatique de la MRC de La Vallée-de-la-Gatineau NO (83990)","83990"]
[null,null,null,null,null,null,"TNO aquatique de la MRC de Lotbinière NO (33990)","33990",null,null,null,null,"Saint-Louis-de-l'Île-aux-Coudres (090200)","090200",null,"TNO aquatique de la MRC de Lac-Saint-Jean-Est NO (93990)","93990"]
[null,null,null,null,null,null,"TNO aquatique de la MRC de Manicouagan NO (96990)","96990",null,null,null,null,"Saint-Louis-de-Lotbinière (042550)","042550",null,"TNO aquatique de la MRC de L'Assomption NO (60990)","60990"]
[null,null,null,null,null,null,"TNO aquatique de la MRC de Maskinongé NO (51990)","51990",null,null,null,null,"Saint-Louis-de-Terrebonne (051340)","051340",null,"TNO aquatique de la MRC de L'Île-d'Orléans NO (20990)","20990"]
[null,null,null,null,null,null,"TNO aquatique de la MRC de Mékinac NO (35990)","35990",null,null,null,null,"Saint-Louis-du-Ha!Ha! (030080)","030080",null,"TNO aquatique de la MRC de Lotbinière NO (33990)","33990"]
[null,null,null,null,null,null,"TNO aquatique de la MRC de Minganie NO (98990)","98990",null,null,null,null,"Saint-Luc (050060)","050060",null,"TNO aquatique de la MRC de Manicouagan NO (96990)","96990"]
[null,null,null,null,null,null,"TNO aquatique de la MRC de Montmagny NO (18990)","18990",null,null,null,null,"Saint-Luc (062800)","062800",null,"TNO aquatique de la MRC de Maskinongé NO (51990)","51990"]
[null,null,null,null,null,null,"TNO aquatique de la MRC de Papineau NO (80990)","80990",null,null,null,null,"Saint-Malachie (031020)","031020",null,"TNO aquatique de la MRC de Mékinac NO (35990)","35990"]
[null,null,null,null,null,null,"TNO aquatique de la MRC de Pontiac NO (84990)","84990",null,null,null,null,"Saint-Malachie (050250)","050250",null,"TNO aquatique de la MRC de Minganie NO (98990)","98990"]
[null,null,null,null,null,null,"TNO aquatique de la MRC de Portneuf NO (34990)","34990",null,null,null,null,"Saint-Marc (050550)","050550",null,"TNO aquatique de la MRC de Montmagny NO (18990)","18990"]
[null,null,null,null,null,null,"TNO aquatique de la MRC de Rimouski-Neigette NO (10990)","10990",null,null,null,null,"Saint-Marcel (042100)","042100",null,"TNO aquatique de la MRC de Papineau NO (80990)","80990"]
[null,null,null,null,null,null,"TNO aquatique de la MRC de Roussillon NO (67990)","67990",null,null,null,null,"Saint-Martin (051170)","051170",null,"TNO aquatique de la MRC de Pontiac NO (84990)","84990"]
[null,null,null,null,null,null,"TNO aquatique de la MRC de Sept-Rivières NO (97990)","97990",null,null,null,null,"Saint-Mathias (040830)","040830",null,"TNO aquatique de la MRC de Portneuf NO (34990)","34990"]
[null,null,null,null,null,null,"TNO aquatique de la MRC de Vaudreuil-Soulanges NO (71990)","71990",null,null,null,null,"Saint-Mathieu (020810)","020810",null,"TNO aquatique de la MRC de Rimouski-Neigette NO (10990)","10990"]
[null,null,null,null,null,null,"TNO aquatique de la MRC des Basques NO (11990)","11990",null,null,null,null,"Saint-Mathieu (062960)","062960",null,"TNO aquatique de la MRC de Roussillon NO (67990)","67990"]
[null,null,null,null,null,null,"TNO aquatique de la MRC des Chenaux NO (37990)","37990",null,null,null,null,"Saint-Mathieu-de-Beloeil (050540)","050540",null,"TNO aquatique de la MRC de Sept-Rivières NO (97990)","97990"]
[null,null,null,null,null,null,"TNO aquatique de la MRC du Domaine-du-Roy NO (91990)","91990",null,null,null,null,"Saint-Maurice (062720)","062720",null,"TNO aquatique de la MRC de Vaudreuil-Soulanges NO (71990)","71990"]
[null,null,null,null,null,null,"TNO aquatique de la MRC du Fjord-du-Saguenay NO (94990)","94990",null,null,null,null,"Saint-Maxime-du-Mont-Louis (021640)","021640",null,"TNO aquatique de la MRC des Basques NO (11990)","11990"]
[null,null,null,null,null,null,"TNO aquatique de la MRC du Haut-Saint-Laurent NO (69990)","69990",null,null,null,null,"Saint-Michel (031100)","031100",null,"TNO aquatique de la MRC des Chenaux NO (37990)","37990"]
[null,null,null,null,null,null,"TNO aquatique de la MRC du Rocher-Percé NO (02990)","02990",null,null,null,null,"Saint-Michel (042240)","042240",null,"TNO aquatique de la MRC du Domaine-du-Roy NO (91990)","91990"]
[null,null,null,null,null,null,"TNO aquatique de la MRC du Val-Saint-François NO (42990)","42990",null,null,null,null,"Saint-Michel (042250)","042250",null,"TNO aquatique de la MRC du Fjord-du-Saguenay NO (94990)","94990"]
[null,null,null,null,null,null,"TNO aquatique de la MRC Le Golfe-du-Saint-Laurent NO (98992)","98992",null,null,null,null,"Saint-Michel-Archange (050110)","050110",null,"TNO aquatique de la MRC du Haut-Saint-Laurent NO (69990)","69990"]
[null,null,null,null,null,null,"TNO aquatique de la MRC Pierre-De Saurel NO (53990)","53990",null,null,null,null,"Saint-Michel-de-Vaudreuil (050920)","050920",null,"TNO aquatique de la MRC du Rocher-Percé NO (02990)","02990"]
[null,null,null,null,null,null,"TNO aquatique du TE de Montréal NO (66990)","66990",null,null,null,null,"Saint-Michel-de-Vaudreuil (050940)","050940",null,"TNO aquatique de la MRC du Val-Saint-François NO (42990)","42990"]
[null,null,null,null,null,null,"TNO aquatique du TE de Shawinigan NO (36990)","36990",null,null,null,null,"Saint-Modeste (030240)","030240",null,"TNO aquatique de la MRC Le Golfe-du-Saint-Laurent NO (98992)","98992"]
[null,null,null,null,null,null,"TNO aquatique du TE de Sherbrooke NO (43990)","43990",null,null,null,null,"Saint-Narcisse (042450)","042450",null,"TNO aquatique de la MRC Pierre-De Saurel NO (53990)","53990"]
[null,null,null,null,null,null,"TNO terrestre de la MRC de Roussillon NO (67940)","67940",null,null,null,null,"Saint-Narcisse (062780)","062780",null,"TNO aquatique du TE de Montréal NO (66990)","66990"]
[null,null,null,null,null,null,"TNO terrestre du TE de Montréal NO (66940)","66940",null,null,null,null,"Saint-Nicolas (031280)","031280",null,"TNO aquatique du TE de Shawinigan NO (36990)","36990"]
[null,null,null,null,null,null,"Toponyme à venir NO (99910)","99910",null,null,null,null,"Saint-Norbert (041920)","041920",null,"TNO aquatique du TE de Sherbrooke NO (43990)","43990"]
[null,null,null,null,null,null,"Toponyme à venir NO (99914)","99914",null,null,null,null,"Saint-Norbert (062210)","062210",null,"TNO terrestre de la MRC de Roussillon NO (67940)","67940"]
[null,null,null,null,null,null,"Toponyme à venir NO (99916)","99916",null,null,null,null,"Saint-Octave-de-Métis (021380)","021380",null,"TNO terrestre du TE de Montréal NO (66940)","66940"]
[null,null,null,null,null,null,"Toponyme à venir NO (99918)","99918",null,null,null,null,"Saint-Onésime (030420)","030420",null,"Toponyme à venir NO (99910)","99910"]
[null,null,null,null,null,null,"Toponyme à venir NO (99920)","99920",null,null,null,null,"Saint-Onge (081100)","081100",null,"Toponyme à venir NO (99914)","99914"]
[null,null,null,null,null,null,"Toponyme à venir NO (99922)","99922",null,null,null,null,"Saint-Ours (040950)","040950",null,"Toponyme à venir NO (99916)","99916"]
[null,null,null,null,null,null,"Toponyme à venir NO (99924)","99924",null,null,null,null,"Saint-Ours (042150)","042150",null,"Toponyme à venir NO (99918)","99918"]
[null,null,null,null,null,null,"Tourville M  (17035)","17035",null,null,null,null,"Saint-Pacôme (030440)","030440",null,"Toponyme à venir NO (99920)","99920"]
[null,null,null,null,null,null,"Trécesson CT (88075)","88075",null,null,null,null,"Saint-Pascal (030510)","030510",null,"Toponyme à venir NO (99922)","99922"]
[null,null,null,null,null,null,"Très-Saint-Rédempteur M  (71125)","71125",null,null,null,null,"Saint-Patrice-de-Beaurivage (041880)","041880",null,"Toponyme à venir NO (99924)","99924"]
[null,null,null,null,null,null,"Très-Saint-Sacrement P  (69030)","69030",null,null,null,null,"Saint-Patrice-de-la-Rivière-du-Loup (030360)","030360",null,"Tourville M  (17035)","17035"]
[null,null,null,null,null,null,"Tring-Jonction VL (27060)","27060",null,null,null,null,"Saint-Patrice-de-Sherrington (050090)","050090",null,"Trécesson CT (88075)","88075"]
[null,null,null,null,null,null,"Trois-Pistoles V  (11040)","11040",null,null,null,null,"Saint-Paul (041900)","041900",null,"Très-Saint-Rédempteur M  (71125)","71125"]
[null,null,null,null,null,null,"Trois-Rives M  (35055)","35055",null,null,null,null,"Saint-Paul (061810)","061810",null,"Très-Saint-Sacrement P  (69030)","69030"]
[null,null,null,null,null,null,"Trois-Rivières V  (37067)","37067",null,null,null,null,"Saint-Paul-d'Abbotsford (040740)","040740",null,"Tring-Jonction VL (27060)","27060"]
[null,null,null,null,null,null,"Uashat R  (97802)","97802",null,null,null,null,"Saint-Paulin (062480)","062480",null,"Trois-Pistoles V  (11040)","11040"]
[null,null,null,null,null,null,"Ulverton M  (42078)","42078",null,null,null,null,"Saint-Paul-l'Ermite (051260)","051260",null,"Trois-Rives M  (35055)","35055"]
[null,null,null,null,null,null,"Umiujaq TI (99878)","99878",null,null,null,null,"Saint-Philippe (050390)","050390",null,"Trois-Rivières V  (37067)","37067"]
[null,null,null,null,null,null,"Umiujaq VN (99080)","99080",null,null,null,null,"Saint-Philippe-de-Néri (030520)","030520",null,"Uashat R  (97802)","97802"]
[null,null,null,null,null,null,"Upton M  (48038)","48038",null,null,null,null,"Saint-Pie (040960)","040960",null,"Ulverton M  (42078)","42078"]
[null,null,null,null,null,null,"Val-Alain M  (33070)","33070",null,null,null,null,"Saint-Pie-de-Guire (042230)","042230",null,"Umiujaq TI (99878)","99878"]
[null,null,null,null,null,null,"Val-Brillant M  (07080)","07080",null,null,null,null,"Saint-Pierre (030900)","030900",null,"Umiujaq VN (99080)","99080"]
[null,null,null,null,null,null,"Valcourt CT (42060)","42060",null,null,null,null,"Saint-Pierre (090480)","090480",null,"Upton M  (48038)","48038"]
[null,null,null,null,null,null,"Valcourt V  (42055)","42055",null,null,null,null,"Saint-Pierre-de-Sorel (042180)","042180",null,"Val-Alain M  (33070)","33070"]
[null,null,null,null,null,null,"Val-David VL (78010)","78010",null,null,null,null,"Saint-Pierre-du-Lac (021240)","021240",null,"Val-Brillant M  (07080)","07080"]
[null,null,null,null,null,null,"Val-des-Bois M  (80140)","80140",null,null,null,null,"Saint-Pierre-les-Becquets (042430)","042430",null,"Valcourt CT (42060)","42060"]
[null,null,null,null,null,null,"Val-des-Lacs M  (78100)","78100",null,null,null,null,"Saint-Placide (051060)","051060",null,"Valcourt V  (42055)","42055"]
[null,null,null,null,null,null,"Val-des-Monts M  (82015)","82015",null,null,null,null,"Saint-Polycarpe (050890)","050890",null,"Val-David VL (78010)","78010"]
[null,null,null,null,null,null,"Val-d'Or V  (89008)","89008",null,null,null,null,"Saint-Prosper (062860)","062860",null,"Val-des-Bois M  (80140)","80140"]
[null,null,null,null,null,null,"Val-Joli M  (42095)","42095",null,null,null,null,"Saint-Raphaël (031050)","031050",null,"Val-des-Lacs M  (78100)","78100"]
[null,null,null,null,null,null,"Vallée-Jonction M  (26015)","26015",null,null,null,null,"Saint-Raymond (091110)","091110",null,"Val-des-Monts M  (82015)","82015"]
[null,null,null,null,null,null,"Val-Morin M  (78005)","78005",null,null,null,null,"Saint-Rémi (050120)","050120",null,"Val-d'Or V  (89008)","89008"]
[null,null,null,null,null,null,"Val-Racine M  (30015)","30015",null,null,null,null,"Saint-Rémi (050130)","050130",null,"Val-Joli M  (42095)","42095"]
[null,null,null,null,null,null,"Val-Saint-Gilles M  (87105)","87105",null,null,null,null,"Saint-Rémi (091080)","091080",null,"Vallée-Jonction M  (26015)","26015"]
[null,null,null,null,null,null,"Varennes V  (59020)","59020",null,null,null,null,"Saint-Robert (042130)","042130",null,"Val-Morin M  (78005)","78005"]
[null,null,null,null,null,null,"Vaudreuil-Dorion V  (71083)","71083",null,null,null,null,"Saint-Roch (042160)","042160",null,"Val-Racine M  (30015)","30015"]
[null,null,null,null,null,null,"Vaudreuil-sur-le-Lac VL (71090)","71090",null,null,null,null,"Saint-Roch-de-l'Achigan (051310)","051310",null,"Val-Saint-Gilles M  (87105)","87105"]
[null,null,null,null,null,null,"Venise-en-Québec M  (56005)","56005",null,null,null,null,"Saint-Roch-des-Aulnets (030770)","030770",null,"Varennes V  (59020)","59020"]
[null,null,null,null,null,null,"Verchères M  (59025)","59025",null,null,null,null,"Saint-Roch-Nord (090620)","090620",null,"Vaudreuil-Dorion V  (71083)","71083"]
[null,null,null,null,null,null,"Victoriaville V  (39062)","39062",null,null,null,null,"Saint-Romuald-de-Farnham-Ouest (040640)","040640",null,"Vaudreuil-sur-le-Lac VL (71090)","71090"]
[null,null,null,null,null,null,"Ville-Marie V  (85025)","85025",null,null,null,null,"Saint-Romuald-d'Etchemin (031290)","031290",null,"Venise-en-Québec M  (56005)","56005"]
[null,null,null,null,null,null,"Villeroy M  (32085)","32085",null,null,null,null,"Saint-Sauveur (051410)","051410",null,"Verchères M  (59025)","59025"]
[null,null,null,null,null,null,"Waltham M  (84070)","84070",null,null,null,null,"Saint-Sauveur (090580)","090580",null,"Victoriaville V  (39062)","39062"]
[null,null,null,null,null,null,"Warden VL (47030)","47030",null,null,null,null,"Saint-Sébastien (051680)","051680",null,"Ville-Marie V  (85025)","85025"]
[null,null,null,null,null,null,"Warwick V  (39077)","39077",null,null,null,null,"Saint-Sévère (062500)","062500",null,"Villeroy M  (32085)","32085"]
[null,null,null,null,null,null,"Waskaganish TC (99806)","99806",null,null,null,null,"Saint-Séverin (041770)","041770",null,"Waltham M  (84070)","84070"]
[null,null,null,null,null,null,"Waskaganish VC (99035)","99035",null,null,null,null,"Saint-Siméon (090120)","090120",null,"Warden VL (47030)","47030"]
[null,null,null,null,null,null,"Waswanipi TC (99802)","99802",null,null,null,null,"Saint-Simon (020820)","020820",null,"Warwick V  (39077)","39077"]
[null,null,null,null,null,null,"Waswanipi VC (99010)","99010",null,null,null,null,"Saint-Simon (041090)","041090",null,"Waskaganish TC (99806)","99806"]
[null,null,null,null,null,null,"Waterloo V  (47025)","47025",null,null,null,null,"Saint-Stanislas (062880)","062880",null,"Waskaganish VC (99035)","99035"]
[null,null,null,null,null,null,"Waterville V  (44080)","44080",null,null,null,null,"Saint-Stanislas-de-Kostka (050340)","050340",null,"Waswanipi TC (99802)","99802"]
[null,null,null,null,null,null,"Weedon M  (41098)","41098",null,null,null,null,"Saint-Sulpice (051220)","051220",null,"Waswanipi VC (99010)","99010"]
[null,null,null,null,null,null,"Wemindji TC (99812)","99812",null,null,null,null,"Saint-Sylvestre (041870)","041870",null,"Waterloo V  (47025)","47025"]
[null,null,null,null,null,null,"Wemindji VC (99050)","99050",null,null,null,null,"Saint-Télesphore (031300)","031300",null,"Waterville V  (44080)","44080"]
[null,null,null,null,null,null,"Wemotaci R  (90802)","90802",null,null,null,null,"Saint-Télesphore (050880)","050880",null,"Weedon M  (41098)","41098"]
[null,null,null,null,null,null,"Wendake R  (23802)","23802",null,null,null,null,"Saint-Théodore-d'Acton (041050)","041050",null,"Wemindji TC (99812)","99812"]
[null,null,null,null,null,null,"Wentworth CT (76035)","76035",null,null,null,null,"Saint-Thomas (030880)","030880",null,"Wemindji VC (99050)","99050"]
[null,null,null,null,null,null,"Wentworth-Nord M  (77060)","77060",null,null,null,null,"Saint-Thomas (040560)","040560",null,"Wemotaci R  (90802)","90802"]
[null,null,null,null,null,null,"Westbury CT (41065)","41065",null,null,null,null,"Saint-Thomas (061820)","061820",null,"Wendake R  (23802)","23802"]
[null,null,null,null,null,null,"Westmount V  (66032)","66032",null,null,null,null,"Saint-Thomas-de-Pierreville (042270)","042270",null,"Wentworth CT (76035)","76035"]
[null,null,null,null,null,null,"Whapmagoostui TC (99816)","99816",null,null,null,null,"Saint-Timothée (050370)","050370",null,"Wentworth-Nord M  (77060)","77060"]
[null,null,null,null,null,null,"Whapmagoostui VC (99070)","99070",null,null,null,null,"Saint-Tite (062900)","062900",null,"Westbury CT (41065)","41065"]
[null,null,null,null,null,null,"Whitworth R  (12802)","12802",null,null,null,null,"Saint-Tite (090420)","090420",null,"Westmount V  (66032)","66032"]
[null,null,null,null,null,null,"Wickham M  (49040)","49040",null,null,null,null,"Saint-Ubalde (091060)","091060",null,"Whapmagoostui TC (99816)","99816"]
[null,null,null,null,null,null,"Windsor V  (42088)","42088",null,null,null,null,"Saint-Ulric (021410)","021410",null,"Whapmagoostui VC (99070)","99070"]
[null,null,null,null,null,null,"Winneway EI (85804)","85804",null,null,null,null,"Saint-Urbain (090280)","090280",null,"Whitworth R  (12802)","12802"]
[null,null,null,null,null,null,"Wôlinak R  (38802)","38802",null,null,null,null,"Saint-Urbain-Premier (050260)","050260",null,"Wickham M  (49040)","49040"]
[null,null,null,null,null,null,"Wotton M  (40017)","40017",null,null,null,null,"Saint-Valentin (050020)","050020",null,"Windsor V  (42088)","42088"]
[null,null,null,null,null,null,"Yamachiche M  (51020)","51020",null,null,null,null,"Saint-Valérien-de-Milton (041210)","041210",null,"Winneway EI (85804)","85804"]
[null,null,null,null,null,null,"Yamaska M  (53072)","53072",null,null,null,null,"Saint-Vallier (031110)","031110",null,"Wôlinak R  (38802)","38802"]
[null,null,null,null,null,null,null,null,null,null,null,null,"Saint-Victor-de-Tring (042670)","042670",null,"Wotton M  (40017)","40017"]
[null,null,null,null,null,null,null,null,null,null,null,null,"Saint-Vincent (100360)","100360",null,"Yamachiche M  (51020)","51020"]
[null,null,null,null,null,null,null,null,null,null,null,null,"Saint-Vincent-de-Paul (051200)","051200",null,"Yamaska M  (53072)","53072"]
[null,null,null,null,null,null,null,null,null,null,null,null,"Saint-Wenceslas (042330)","042330"]
[null,null,null,null,null,null,null,null,null,null,null,null,"Saint-Zéphirin-de-Courval (042280)","042280"]
[null,null,null,null,null,null,null,null,null,null,null,null,"Saint-Zotique (050870)","050870"]
[null,null,null,null,null,null,null,null,null,null,null,null,"Salaberry-de-Valleyfield (050360)","050360"]
[null,null,null,null,null,null,null,null,null,null,null,null,"Sault-au-Récollet (050670)","050670"]
[null,null,null,null,null,null,null,null,null,null,null,null,"Sault-Saint-Louis (050420)","050420"]
[null,null,null,null,null,null,null,null,null,null,null,null,"Saussure (081620)","081620"]
[null,null,null,null,null,null,null,null,null,null,null,null,"Sauvé (073010)","073010"]
[null,null,null,null,null,null,null,null,null,null,null,null,"Scotstown (040310)","040310"]
[null,null,null,null,null,null,null,null,null,null,null,null,"Scott (081450)","081450"]
[null,null,null,null,null,null,null,null,null,null,null,null,"Senneterre (071720)","071720"]
[null,null,null,null,null,null,null,null,null,null,null,null,"Senneterre (071740)","071740"]
[null,null,null,null,null,null,null,null,null,null,null,null,"Senneville (071620)","071620"]
[null,null,null,null,null,null,null,null,null,null,null,null,"Sérigny (073300)","073300"]
[null,null,null,null,null,null,null,null,null,null,null,null,"Shawville (070080)","070080"]
[null,null,null,null,null,null,null,null,null,null,null,null,"Sheen (070340)","070340"]
[null,null,null,null,null,null,null,null,null,null,null,null,"Shefford (041120)","041120"]
[null,null,null,null,null,null,null,null,null,null,null,null,"Shehyn (070730)","070730"]
[null,null,null,null,null,null,null,null,null,null,null,null,"Shenley (040190)","040190"]
[null,null,null,null,null,null,null,null,null,null,null,null,"Sherbrooke (quartier centre) (042590)","042590"]
[null,null,null,null,null,null,null,null,null,null,null,null,"Sherbrooke (quartier est) (042620)","042620"]
[null,null,null,null,null,null,null,null,null,null,null,null,"Sherbrooke (quartier nord) (042600)","042600"]
[null,null,null,null,null,null,null,null,null,null,null,null,"Sherbrooke (quartier sud) (042610)","042610"]
[null,null,null,null,null,null,null,null,null,null,null,null,"Sherbrooke (042690)","042690"]
[null,null,null,null,null,null,null,null,null,null,null,null,"Shipton (041410)","041410"]
[null,null,null,null,null,null,null,null,null,null,null,null,"Shoolbred (020500)","020500"]
[null,null,null,null,null,null,null,null,null,null,null,null,"Sicotte (060940)","060940"]
[null,null,null,null,null,null,null,null,null,null,null,null,"Signay (080700)","080700"]
[null,null,null,null,null,null,null,null,null,null,null,null,"Simard (080360)","080360"]
[null,null,null,null,null,null,null,null,null,null,null,null,"Simpson (041960)","041960"]
[null,null,null,null,null,null,null,null,null,null,null,null,"Somerset (041840)","041840"]
[null,null,null,null,null,null,null,null,null,null,null,null,"Somerset-Nord (041850)","041850"]
[null,null,null,null,null,null,null,null,null,null,null,null,"Somerset-Sud (041820)","041820"]
[null,null,null,null,null,null,null,null,null,null,null,null,"Sorel (042190)","042190"]
[null,null,null,null,null,null,null,null,null,null,null,null,"Soulanges (050820)","050820"]
[null,null,null,null,null,null,null,null,null,null,null,null,"Spalding (040090)","040090"]
[null,null,null,null,null,null,null,null,null,null,null,null,"Stanbridge (040590)","040590"]
[null,null,null,null,null,null,null,null,null,null,null,null,"Stanfold (042020)","042020"]
[null,null,null,null,null,null,null,null,null,null,null,null,"Stanstead Plain (040410)","040410"]
[null,null,null,null,null,null,null,null,null,null,null,null,"Stanstead (040420)","040420"]
[null,null,null,null,null,null,null,null,null,null,null,null,"Stoke (041340)","041340"]
[null,null,null,null,null,null,null,null,null,null,null,null,"Stratford (041580)","041580"]
[null,null,null,null,null,null,null,null,null,null,null,null,"Stukely (041110)","041110"]
[null,null,null,null,null,null,null,null,null,null,null,null,"Suffolk (060480)","060480"]
[null,null,null,null,null,null,null,null,null,null,null,null,"Sutton (040470)","040470"]
[null,null,null,null,null,null,null,null,null,null,null,null,"Sweetsburg (040620)","040620"]
[null,null,null,null,null,null,null,null,null,null,null,null,"Sydenham (020300)","020300"]
[null,null,null,null,null,null,null,null,null,null,null,null,"Tabaret (070790)","070790"]
[null,null,null,null,null,null,null,null,null,null,null,null,"Taché (080320)","080320"]
[null,null,null,null,null,null,null,null,null,null,null,null,"Tadoussac (101160)","101160"]
[null,null,null,null,null,null,null,null,null,null,null,null,"Taillon (080720)","080720"]
[null,null,null,null,null,null,null,null,null,null,null,null,"Talon (030820)","030820"]
[null,null,null,null,null,null,null,null,null,null,null,null,"Taschereau (021660)","021660"]
[null,null,null,null,null,null,null,null,null,null,null,null,"Templeton (060610)","060610"]
[null,null,null,null,null,null,null,null,null,null,null,null,"Terrebonne (051330)","051330"]
[null,null,null,null,null,null,null,null,null,null,null,null,"Terre-Ferme-de-Mingan (100710)","100710"]
[null,null,null,null,null,null,null,null,null,null,null,null,"Tessier (021440)","021440"]
[null,null,null,null,null,null,null,null,null,null,null,null,"Thetford (041650)","041650"]
[null,null,null,null,null,null,null,null,null,null,null,null,"Thorne (070180)","070180"]
[null,null,null,null,null,null,null,null,null,null,null,null,"Thurso (060300)","060300"]
[null,null,null,null,null,null,null,null,null,null,null,null,"Tiblemont (071660)","071660"]
[null,null,null,null,null,null,null,null,null,null,null,null,"Tilly (101290)","101290"]
[null,null,null,null,null,null,null,null,null,null,null,null,"Tingwick (041420)","041420"]
[null,null,null,null,null,null,null,null,null,null,null,null,"Tonnancourt (072510)","072510"]
[null,null,null,null,null,null,null,null,null,null,null,null,"Tonti (091130)","091130"]
[null,null,null,null,null,null,null,null,null,null,null,null,"Tourelle (021580)","021580"]
[null,null,null,null,null,null,null,null,null,null,null,null,"Tourouvre (063350)","063350"]
[null,null,null,null,null,null,null,null,null,null,null,null,"Toussaint (073370)","073370"]
[null,null,null,null,null,null,null,null,null,null,null,null,"Tracy (062060)","062060"]
[null,null,null,null,null,null,null,null,null,null,null,null,"Trécesson (072160)","072160"]
[null,null,null,null,null,null,null,null,null,null,null,null,"Tremblay (080380)","080380"]
[null,null,null,null,null,null,null,null,null,null,null,null,"Très-Saint-Rédempteur (050980)","050980"]
[null,null,null,null,null,null,null,null,null,null,null,null,"Trévet (073310)","073310"]
[null,null,null,null,null,null,null,null,null,null,null,null,"Trois-Rivières (062610)","062610"]
[null,null,null,null,null,null,null,null,null,null,null,null,"Trois-Rivières (062620)","062620"]
[null,null,null,null,null,null,null,null,null,null,null,null,"Trudel (063510)","063510"]
[null,null,null,null,null,null,null,null,null,null,null,null,"Turcotte (063210)","063210"]
[null,null,null,null,null,null,null,null,null,null,null,null,"Turgeon (061340)","061340"]
[null,null,null,null,null,null,null,null,null,null,null,null,"Upton (042060)","042060"]
[null,null,null,null,null,null,null,null,null,null,null,null,"Urban (073030)","073030"]
[null,null,null,null,null,null,null,null,null,null,null,null,"Val-Barrette (061400)","061400"]
[null,null,null,null,null,null,null,null,null,null,null,null,"Vallières (063220)","063220"]
[null,null,null,null,null,null,null,null,null,null,null,null,"Valois (101540)","101540"]
[null,null,null,null,null,null,null,null,null,null,null,null,"Varennes (050570)","050570"]
[null,null,null,null,null,null,null,null,null,null,null,null,"Varennes (050580)","050580"]
[null,null,null,null,null,null,null,null,null,null,null,null,"Varin (020620)","020620"]
[null,null,null,null,null,null,null,null,null,null,null,null,"Vassal (072460)","072460"]
[null,null,null,null,null,null,null,null,null,null,null,null,"Vassan (071610)","071610"]
[null,null,null,null,null,null,null,null,null,null,null,null,"Vaudray (071140)","071140"]
[null,null,null,null,null,null,null,null,null,null,null,null,"Vauquelin (071500)","071500"]
[null,null,null,null,null,null,null,null,null,null,null,null,"Verchères (050590)","050590"]
[null,null,null,null,null,null,null,null,null,null,null,null,"Verrazzano (100280)","100280"]
[null,null,null,null,null,null,null,null,null,null,null,null,"Vezza (073240)","073240"]
[null,null,null,null,null,null,null,null,null,null,null,null,"Viger (030250)","030250"]
[null,null,null,null,null,null,null,null,null,null,null,null,"Villars (070960)","070960"]
[null,null,null,null,null,null,null,null,null,null,null,null,"Villebon (071460)","071460"]
[null,null,null,null,null,null,null,null,null,null,null,null,"Villejouin (101480)","101480"]
[null,null,null,null,null,null,null,null,null,null,null,null,"Ville-Marie (070780)","070780"]
[null,null,null,null,null,null,null,null,null,null,null,null,"Villemontel (071940)","071940"]
[null,null,null,null,null,null,null,null,null,null,null,null,"Villeneuve (060440)","060440"]
[null,null,null,null,null,null,null,null,null,null,null,null,"Virot (101070)","101070"]
[null,null,null,null,null,null,null,null,null,null,null,null,"Wabassee (061180)","061180"]
[null,null,null,null,null,null,null,null,null,null,null,null,"Wakefield (060680)","060680"]
[null,null,null,null,null,null,null,null,null,null,null,null,"Waltham (070280)","070280"]
[null,null,null,null,null,null,null,null,null,null,null,null,"Ware (030970)","030970"]
[null,null,null,null,null,null,null,null,null,null,null,null,"Warwick (041940)","041940"]
[null,null,null,null,null,null,null,null,null,null,null,null,"Waterloo (041130)","041130"]
[null,null,null,null,null,null,null,null,null,null,null,null,"Waterville (041290)","041290"]
[null,null,null,null,null,null,null,null,null,null,null,null,"Watford (031140)","031140"]
[null,null,null,null,null,null,null,null,null,null,null,null,"Weedon (041550)","041550"]
[null,null,null,null,null,null,null,null,null,null,null,null,"Weedon-Centre (041560)","041560"]
[null,null,null,null,null,null,null,null,null,null,null,null,"Wells (061010)","061010"]
[null,null,null,null,null,null,null,null,null,null,null,null,"Wendover (042090)","042090"]
[null,null,null,null,null,null,null,null,null,null,null,null,"Wentworth (060120)","060120"]
[null,null,null,null,null,null,null,null,null,null,null,null,"Westbury (040330)","040330"]
[null,null,null,null,null,null,null,null,null,null,null,null,"Wexford (061720)","061720"]
[null,null,null,null,null,null,null,null,null,null,null,null,"Weymontachingue (063230)","063230"]
[null,null,null,null,null,null,null,null,null,null,null,null,"Whitton (040100)","040100"]
[null,null,null,null,null,null,null,null,null,null,null,null,"Whitworth (030220)","030220"]
[null,null,null,null,null,null,null,null,null,null,null,null,"Wickham (041060)","041060"]
[null,null,null,null,null,null,null,null,null,null,null,null,"Windsor Mills (041400)","041400"]
[null,null,null,null,null,null,null,null,null,null,null,null,"Windsor (041390)","041390"]
[null,null,null,null,null,null,null,null,null,null,null,null,"Winslow (040130)","040130"]
[null,null,null,null,null,null,null,null,null,null,null,null,"Woburn (040010)","040010"]
[null,null,null,null,null,null,null,null,null,null,null,null,"Wolfe (051480)","051480"]
[null,null,null,null,null,null,null,null,null,null,null,null,"Wolfestown (041610)","041610"]
[null,null,null,null,null,null,null,null,null,null,null,null,"Woodbridge (030460)","030460"]
[null,null,null,null,null,null,null,null,null,null,null,null,"Wotton (041520)","041520"]
[null,null,null,null,null,null,null,null,null,null,null,null,"Wright (060800)","060800"]
[null,null,null,null,null,null,null,null,null,null,null,null,"Wurtele (061460)","061460"]
[null,null,null,null,null,null,null,null,null,null,null,null,"Yéo (070540)","070540"]
[null,null,null,null,null,null,null,null,null,null,null,null,"York (020180)","020180"]